{"text_format":"1","workbook":"xlsx","n_sheets":10,"sheets":["Introduction","A-Target Capab. & Comm. Info","B-Site Info","C-Partner Agencies & Catering","D-Field Kitchen Site Support","E-Storage, Cooking & Power ","F-Packaging, Moving & Sanitat","G-Staffing & Staff Support","H-Safety, Traffic Cntrl & Misc","Reference"],"not_rendered":{"charts":0,"images":0,"macros":1,"external_links":0,"defined_names":0,"comments":0,"pivot_tables":0},"unopened":[],"bounds":{"document_bytes":16777216,"sheet_cells":100000,"rows_first":2000,"rows_last":500,"rows_between":2000,"halvings":0,"cell_chars":16384,"cell_head_chars":4096},"cells_cut":0,"cells_raw":0,"read":"whole","date_system":"1900"}

{"sheet":"Introduction","index":0,"n_rows":29,"n_cols":16384,"rows_kept":29,"cut":false,"hidden":false,"merged":[]}
["Feeding Wrap Around Menu"]
["Version 1 - 12/16/2022"]
[]
["Introduction"]
["This job tool is designed to assist partners in determining what wrap around services are needed to support a feeding mission. The list of possible needs is comprehensive but may not be exhaustive. Partners should consider which items are available on site, can be provided by participating organizations, contracted locally, or which are not easily available to local level partners. If local level partners encounter difficulty acquiring or procuring items or services, an official Resource Request for assistance from the commonwealth via the usual process may be considered. Some state agency assets may be available to assist or the commonwealth may implement a contract to meet the need. Delivery, installation, and demobilization should be arranged for all systems."]
[]
["Essential components/information for feeding operations are designated with red text."]
[]
["Glossary of terms available in the following template (to be replaced by the Pennsylvania Multi-Agency Feeding Plan, currently in development):"]
["Multi-Agency Feeding Plan Template"]
[]
["Planning assunption: 5-10% of the affected population may require feeding assistance"]
[]
["Table of Contents"]
["Section A: Target Capability & Community Information"]
["Section B: Site Information "]
["Section C: Partner Agencies and Interim Catering"]
["Section D: Field Kitchen Site Support"]
["Section E: Storage, Cooking & Power"]
["Section F: Packaging, Moving & Sanitation"]
["Section G: Staffing & Staff Support"]
["Section H: Safety, Traffic Control & Misc."]
[]
["Contact","Table of Contents","Table of Contents","Table of Contents","Table of Contents","Table of Contents","Table of Contents","Table of Contents","Table of Contents","Table of Contents","Table of Contents","Table of Contents","Table of Contents","Table of Contents","Table of Contents","Table of Contents","Table of Contents","Table of Contents","Table of Contents","Table of Contents","Table of Contents","Table of Contents","Table of Contents","Table of Contents","Table of Contents","Table of Contents","Table of Contents","Table of Contents","Table of Contents","Table of Contents","Table of Contents","Table of Contents","Table of Contents","Table of Contents","Table of Contents","Table of Contents","Table of Contents","Table of Contents","Table of Contents","Table of Contents","Table of Contents","Table of Contents","Table of Contents","Table of Contents","Table of Contents","Table of Contents","Table of Contents","Table of Contents","Table of Contents","Table of Contents","Table of Contents","Table of Contents","Table of Contents","Table of Contents","Table of Contents","Table of Contents","Table of Contents","Table of Contents","Table of Contents","Table of Contents","Table of Contents","Table of Contents","Table of Contents","Table of Contents","Table of Contents","Table of Contents","Table of Contents","Table of Contents","Table of Contents","Table of Contents","Table of Contents","Table of Contents","Table of Contents","Table of Contents","Table of Contents","Table of Contents","Table of Contents","Table of Contents","Table of Contents","Table of Contents","Table of Contents","Table of Contents","Table of Contents","Table of Contents","Table of Contents","Table of Contents","Table of Contents","Table of Contents","Table of Contents","Table of Contents","Table of Contents","Table of Contents","Table of Contents","Table of Contents","Table of Contents","Table of Contents","Table of Contents","Table of Contents","Table of Contents","Table of Contents","Table of Contents","Table of Contents","Table of Contents","Table of Contents","Table of Contents","Table of Contents","Table of Contents","Table of Contents","Table of Contents","Table of Contents","Table of Contents","Table of Contents","Table of Contents","Table of Contents","Table of Contents","Table of Contents","Table of Contents","Table of Contents","Table of Contents","Table of Contents","Table of Contents","Table of Contents","Table of Contents","Table of Contents","Table of Contents","Table of Contents","Table of Contents","Table of Contents","Table of Contents","Table of Contents","Table of Contents","Table of Contents","Table of Contents","Table of Contents","Table of Contents","Table of Contents","Table of Contents","Table of Contents","Table of Contents","Table of Contents","Table of Contents","Table of Contents","Table of Contents","Table of Contents","Table of Contents","Table of Contents","Table of Contents","Table of Contents","Table of Contents","Table of Contents","Table of Contents","Table of Contents","Table of Contents","Table of Contents","Table of Contents","Table of Contents","Table of Contents","Table of Contents","Table of Contents","Table of Contents","Table of Contents","Table of Contents","Table of Contents","Table of Contents","Table of Contents","Table of Contents","Table of Contents","Table of Contents","Table of Contents","Table of Contents","Table of Contents","Table of Contents","Table of Contents","Table of Contents","Table of Contents","Table of Contents","Table of Contents","Table of Contents","Table of Contents","Table of Contents","Table of Contents","Table of Contents","Table of Contents","Table of Contents","Table of Contents","Table of Contents","Table of Contents","Table of Contents","Table of Contents","Table of Contents","Table of Contents","Table of Contents","Table of Contents","Table of Contents","Table of Contents","Table of Contents","Table of Contents","Table of Contents","Table of Contents","Table of Contents","Table of Contents","Table of Contents","Table of Contents","Table of Contents","Table of Contents","Table of Contents","Table of Contents","Table of Contents","Table of Contents","Table of Contents","Table of Contents","Table of Contents","Table of Contents","Table of Contents","Table of Contents","Table of Contents","Table of Contents","Table of Contents","Table of Contents","Table of Contents","Table of Contents","Table of Contents","Table of Contents","Table of Contents","Table of Contents","Table of Contents","Table of Contents","Table of Contents","Table of Contents","Table of Contents","Table of Contents","Table of Contents","Table of Contents","Table of Contents","Table of Contents","Table of Contents","Table of Contents","Table of Contents","Table of Contents","Table of Contents","Table of Contents","Table of Contents","Table of Contents","Table of Contents","Table of Contents","Table of Contents","Table of Contents","Table of Contents","Table of Contents","Table of Contents","Table of Contents","Table of Contents","Table of Contents","Table of Contents","Table of Contents","Table of Contents","Table of Contents","Table of Contents","Table of Contents","Table of Contents","Table of Contents","Table of Contents","Table of Contents","Table of Contents","Table of Contents","Table of Contents","Table of Contents","Table of Contents","Table of Contents","Table of Contents","Table of Contents","Table of Contents","Table of Contents","Table of Contents","Table of Contents","Table of Contents","Table of Contents","Table of Contents","Table of Contents","Table of Contents","Table of Contents","Table of Contents","Table of Contents","Table of Contents","Table of Contents","Table of Contents","Table of Contents","Table of Contents","Table of Contents","Table of Contents","Table of Contents","Table of Contents","Table of Contents","Table of Contents","Table of Contents","Table of Contents","Table of Contents","Table of Contents","Table of Contents","Table of Contents","Table of Contents","Table of Contents","Table of Contents","Table of Contents","Table of Contents","Table of Contents","Table of Contents","Table of Contents","Table of Contents","Table of Contents","Table of Contents","Table of Contents","Table of Contents","Table of Contents","Table of Contents","Table of Contents","Table of Contents","Table of Contents","Table of Contents","Table of Contents","Table of Contents","Table of Contents","Table of Contents","Table of Contents","Table of Contents","Table of Contents","Table of Contents","Table of Contents","Table of Contents","Table of Contents","Table of Contents","Table of Contents","Table of Contents","Table of Contents","Table of Contents","Table of Contents","Table of Contents","Table of Contents","Table of Contents","Table of Contents","Table of Contents","Table of Contents","Table of Contents","Table of Contents","Table of Contents","Table of Contents","Table of Contents","Table of Contents","Table of Contents","Table of Contents","Table of Contents","Table of Contents","Table of Contents","Table of Contents","Table of Contents","Table of Contents","Table of Contents","Table of Contents","Table of Contents","Table of Contents","Table of Contents","Table of Contents","Table of Contents","Table of Contents","Table of Contents","Table of Contents","Table of Contents","Table of Contents","Table of Contents","Table of Contents","Table of Contents","Table of Contents","Table of Contents","Table of Contents","Table of Contents","Table of Contents","Table of Contents","Table of Contents","Table of Contents","Table of Contents","Table of Contents","Table of Contents","Table of Contents","Table of Contents","Table of Contents","Table of Contents","Table of Contents","Table of Contents","Table of Contents","Table of Contents","Table of Contents","Table of Contents","Table of Contents","Table of Contents","Table of Contents","Table of Contents","Table of Contents","Table of Contents","Table of Contents","Table of Contents","Table of Contents","Table of Contents","Table of Contents","Table of Contents","Table of Contents","Table of Contents","Table of Contents","Table of Contents","Table of Contents","Table of Contents","Table of Contents","Table of Contents","Table of Contents","Table of Contents","Table of Contents","Table of Contents","Table of Contents","Table of Contents","Table of Contents","Table of Contents","Table of Contents","Table of Contents","Table of Contents","Table of Contents","Table of Contents","Table of Contents","Table of Contents","Table of Contents","Table of Contents","Table of Contents","Table of Contents","Table of Contents","Table of Contents","Table of Contents","Table of Contents","Table of Contents","Table of Contents","Table of Contents","Table of Contents","Table of Contents","Table of Contents","Table of Contents","Table of Contents","Table of Contents","Table of Contents","Table of Contents","Table of Contents","Table of Contents","Table of Contents","Table of Contents","Table of Contents","Table of Contents","Table of Contents","Table of Contents","Table of Contents","Table of Contents","Table of Contents","Table of Contents","Table of Contents","Table of Contents","Table of Contents","Table of Contents","Table of Contents","Table of Contents","Table of Contents","Table of Contents","Table of Contents","Table of Contents","Table of Contents","Table of Contents","Table of Contents","Table of Contents","Table of Contents","Table of Contents","Table of Contents","Table of Contents","Table of Contents","Table of Contents","Table of Contents","Table of Contents","Table of Contents","Table of Contents","Table of Contents","Table of Contents","Table of Contents","Table of Contents","Table of Contents","Table of Contents","Table of Contents","Table of Contents","Table of Contents","Table of Contents","Table of Contents","Table of Contents","Table of Contents","Table of Contents","Table of Contents","Table of Contents","Table of Contents","Table of Contents","Table of Contents","Table of Contents","Table of Contents","Table of Contents","Table of Contents","Table of Contents","Table of Contents","Table of Contents","Table of Contents","Table of Contents","Table of Contents","Table of Contents","Table of Contents","Table of Contents","Table of Contents","Table of Contents","Table of Contents","Table of Contents","Table of Contents","Table of Contents","Table of Contents","Table of Contents","Table of Contents","Table of Contents","Table of Contents","Table of Contents","Table of Contents","Table of Contents","Table of Contents","Table of Contents","Table of Contents","Table of Contents","Table of Contents","Table of Contents","Table of Contents","Table of Contents","Table of Contents","Table of Contents","Table of Contents","Table of Contents","Table of Contents","Table of Contents","Table of Contents","Table of Contents","Table of Contents","Table of Contents","Table of Contents","Table of Contents","Table of Contents","Table of Contents","Table of Contents","Table of Contents","Table of Contents","Table of Contents","Table of Contents","Table of Contents","Table of Contents","Table of Contents","Table of Contents","Table of Contents","Table of Contents","Table of Contents","Table of Contents","Table of Contents","Table of Contents","Table of Contents","Table of Contents","Table of Contents","Table of Contents","Table of Contents","Table of Contents","Table of Contents","Table of Contents","Table of Contents","Table of Contents","Table of Contents","Table of Contents","Table of Contents","Table of Contents","Table of Contents","Table of Contents","Table of Contents","Table of Contents","Table of Contents","Table of Contents","Table of Contents","Table of Contents","Table of Contents","Table of Contents","Table of Contents","Table of Contents","Table of Contents","Table of Contents","Table of Contents","Table of Contents","Table of Contents","Table of Contents","Table of Contents","Table of Contents","Table of Contents","Table of Contents","Table of Contents","Table of Contents","Table of Contents","Table of Contents","Table of Contents","Table of Contents","Table of Contents","Table of Contents","Table of Contents","Table of Contents","Table of Contents","Table of Contents","Table of Contents","Table of Contents","Table of Contents","Table of Contents","Table of Contents","Table of Contents","Table of Contents","Table of Contents","Table of Contents","Table of Contents","Table of Contents","Table of Contents","Table of Contents","Table of Contents","Table of Contents","Table of Contents","Table of Contents","Table of Contents","Table of Contents","Table of Contents","Table of Contents","Table of Contents","Table of Contents","Table of Contents","Table of Contents","Table of Contents","Table of Contents","Table of Contents","Table of Contents","Table of Contents","Table of Contents","Table of Contents","Table of Contents","Table of Contents","Table of Contents","Table of Contents","Table of Contents","Table of Contents","Table of Contents","Table of Contents","Table of Contents","Table of Contents","Table of Contents","Table of Contents","Table of Contents","Table of Contents","Table of Contents","Table of Contents","Table of Contents","Table of Contents","Table of Contents","Table of Contents","Table of Contents","Table of Contents","Table of Contents","Table of Contents","Table of Contents","Table of Contents","Table of Contents","Table of Contents","Table of Contents","Table of Contents","Table of Contents","Table of Contents","Table of Contents","Table of Contents","Table of Contents","Table of Contents","Table of Contents","Table of Contents","Table of Contents","Table of Contents","Table of Contents","Table of Contents","Table of Contents","Table of Contents","Table of Contents","Table of Contents","Table of Contents","Table of Contents","Table of Contents","Table of Contents","Table of Contents","Table of Contents","Table of Contents","Table of Contents","Table of Contents","Table of Contents","Table of Contents","Table of Contents","Table of Contents","Table of Contents","Table of Contents","Table of Contents","Table of Contents","Table of Contents","Table of Contents","Table of Contents","Table of Contents","Table of Contents","Table of Contents","Table of Contents","Table of Contents","Table of Contents","Table of Contents","Table of Contents","Table of Contents","Table of Contents","Table of Contents","Table of Contents","Table of Contents","Table of Contents","Table of Contents","Table of Contents","Table of Contents","Table of Contents","Table of Contents","Table of Contents","Table of Contents","Table of Contents","Table of Contents","Table of Contents","Table of Contents","Table of Contents","Table of Contents","Table of Contents","Table of Contents","Table of Contents","Table of Contents","Table of Contents","Table of Contents","Table of Contents","Table of Contents","Table of Contents","Table of Contents","Table of Contents","Table of Contents","Table of Contents","Table of Contents","Table of Contents","Table of Contents","Table of Contents","Table of Contents","Table of Contents","Table of Contents","Table of Contents","Table of Contents","Table of Contents","Table of Contents","Table of Contents","Table of Contents","Table of Contents","Table of Contents","Table of Contents","Table of Contents","Table of Contents","Table of Contents","Table of Contents","Table of Contents","Table of Contents","Table of Contents","Table of Contents","Table of Contents","Table of Contents","Table of Contents","Table of Contents","Table of Contents","Table of Contents","Table of Contents","Table of Contents","Table of Contents","Table of Contents","Table of Contents","Table of Contents","Table of Contents","Table of Contents","Table of Contents","Table of Contents","Table of Contents","Table of Contents","Table of Contents","Table of Contents","Table of Contents","Table of Contents","Table of Contents","Table of Contents","Table of Contents","Table of Contents","Table of Contents","Table of Contents","Table of Contents","Table of Contents","Table of Contents","Table of Contents","Table of Contents","Table of Contents","Table of Contents","Table of Contents","Table of Contents","Table of Contents","Table of Contents","Table of Contents","Table of Contents","Table of Contents","Table of Contents","Table of Contents","Table of Contents","Table of Contents","Table of Contents","Table of Contents","Table of Contents","Table of Contents","Table of Contents","Table of Contents","Table of Contents","Table of Contents","Table of Contents","Table of Contents","Table of Contents","Table of Contents","Table of Contents","Table of Contents","Table of Contents","Table of Contents","Table of Contents","Table of Contents","Table of Contents","Table of Contents","Table of Contents","Table of Contents","Table of Contents","Table of Contents","Table of Contents","Table of Contents","Table of Contents","Table of Contents","Table of Contents","Table of Contents","Table of Contents","Table of Contents","Table of Contents","Table of Contents","Table of Contents","Table of Contents","Table of Contents","Table of Contents","Table of Contents","Table of Contents","Table of Contents","Table of Contents","Table of Contents","Table of Contents","Table of Contents","Table of Contents","Table of Contents","Table of Contents","Table of Contents","Table of Contents","Table of Contents","Table of Contents","Table of Contents","Table of Contents","Table of Contents","Table of Contents","Table of Contents","Table of Contents","Table of Contents","Table of Contents","Table of Contents","Table of Contents","Table of Contents","Table of Contents","Table of Contents","Table of Contents","Table of Contents","Table of Contents","Table of Contents","Table of Contents","Table of Contents","Table of Contents","Table of Contents","Table of Contents","Table of Contents","Table of Contents","Table of Contents","Table of Contents","Table of Contents","Table of Contents","Table of Contents","Table of Contents","Table of Contents","Table of Contents","Table of Contents","Table of Contents","Table of Contents","Table of Contents","Table of Contents","Table of Contents","Table of Contents","Table of Contents","Table of Contents","Table of Contents","Table of Contents","Table of Contents","Table of Contents","Table of Contents","Table of Contents","Table of Contents","Table of Contents","Table of Contents","Table of Contents","Table of Contents","Table of Contents","Table of Contents","Table of Contents","Table of Contents","Table of Contents","Table of Contents","Table of Contents","Table of Contents","Table of Contents","Table of Contents","Table of Contents","Table of Contents","Table of Contents","Table of Contents","Table of Contents","Table of Contents","Table of Contents","Table of Contents","Table of Contents","Table of Contents","Table of Contents","Table of Contents","Table of Contents","Table of Contents","Table of Contents","Table of Contents","Table of Contents","Table of Contents","Table of Contents","Table of Contents","Table of Contents","Table of Contents","Table of Contents","Table of Contents","Table of Contents","Table of Contents","Table of Contents","Table of Contents","Table of Contents","Table of Contents","Table of Contents","Table of Contents","Table of Contents","Table of Contents","Table of Contents","Table of Contents","Table of Contents","Table of Contents","Table of Contents","Table of Contents","Table of Contents","Table of Contents","Table of Contents","Table of Contents","Table of Contents","Table of Contents","Table of Contents","Table of Contents","Table of Contents","Table of Contents","Table of Contents","Table of Contents","Table of Contents","Table of Contents","Table of Contents","Table of Contents","Table of Contents","Table of Contents","Table of Contents","Table of Contents","Table of Contents","Table of Contents","Table of Contents","Table of Contents","Table of Contents","Table of Contents","Table of Contents","Table of Contents","Table of Contents","Table of Contents","Table of Contents","Table of Contents","Table of Contents","Table of Contents","Table of Contents","Table of Contents","Table of Contents","Table of Contents","Table of Contents","Table of Contents","Table of Contents","Table of Contents","Table of Contents","Table of Contents","Table of Contents","Table of Contents","Table of Contents","Table of Contents","Table of Contents","Table of Contents","Table of Contents","Table of Contents","Table of Contents","Table of Contents","Table of Contents","Table of Contents","Table of Contents","Table of Contents","Table of Contents","Table of Contents","Table of Contents","Table of Contents","Table of Contents","Table of Contents","Table of Contents","Table of Contents","Table of Contents","Table of Contents","Table of Contents","Table of Contents","Table of Contents","Table of Contents","Table of Contents","Table of Contents","Table of Contents","Table of Contents","Table of Contents","Table of Contents","Table of Contents","Table of Contents","Table of Contents","Table of Contents","Table of Contents","Table of Contents","Table of Contents","Table of Contents","Table of Contents","Table of Contents","Table of Contents","Table of Contents","Table of Contents","Table of Contents","Table of Contents","Table of Contents","Table of Contents","Table of Contents","Table of Contents","Table of Contents","Table of Contents","Table of Contents","Table of Contents","Table of Contents","Table of Contents","Table of Contents","Table of Contents","Table of Contents","Table of Contents","Table of Contents","Table of Contents","Table of Contents","Table of Contents","Table of Contents","Table of Contents","Table of Contents","Table of Contents","Table of Contents","Table of Contents","Table of Contents","Table of Contents","Table of Contents","Table of Contents","Table of Contents","Table of Contents","Table of Contents","Table of Contents","Table of Contents","Table of Contents","Table of Contents","Table of Contents","Table of Contents","Table of Contents","Table of Contents","Table of Contents","Table of Contents","Table of Contents","Table of Contents","Table of Contents","Table of Contents","Table of Contents","Table of Contents","Table of Contents","Table of Contents","Table of Contents","Table of Contents","Table of Contents","Table of Contents","Table of Contents","Table of Contents","Table of Contents","Table of Contents","Table of Contents","Table of Contents","Table of Contents","Table of Contents","Table of Contents","Table of Contents","Table of Contents","Table of Contents","Table of Contents","Table of Contents","Table of Contents","Table of Contents","Table of Contents","Table of Contents","Table of Contents","Table of Contents","Table of Contents","Table of Contents","Table of Contents","Table of Contents","Table of Contents","Table of Contents","Table of Contents","Table of Contents","Table of Contents","Table of Contents","Table of Contents","Table of Contents","Table of Contents","Table of Contents","Table of Contents","Table of Contents","Table of Contents","Table of Contents","Table of Contents","Table of Contents","Table of Contents","Table of Contents","Table of Contents","Table of Contents","Table of Contents","Table of Contents","Table of Contents","Table of Contents","Table of Contents","Table of Contents","Table of Contents","Table of Contents","Table of Contents","Table of Contents","Table of Contents","Table of Contents","Table of Contents","Table of Contents","Table of Contents","Table of Contents","Table of Contents","Table of Contents","Table of Contents","Table of Contents","Table of Contents","Table of Contents","Table of Contents","Table of Contents","Table of Contents","Table of Contents","Table of Contents","Table of Contents","Table of Contents","Table of Contents","Table of Contents","Table of Contents","Table of Contents","Table of Contents","Table of Contents","Table of Contents","Table of Contents","Table of Contents","Table of Contents","Table of Contents","Table of Contents","Table of Contents","Table of Contents","Table of Contents","Table of Contents","Table of Contents","Table of Contents","Table of Contents","Table of Contents","Table of Contents","Table of Contents","Table of Contents","Table of Contents","Table of Contents","Table of Contents","Table of Contents","Table of Contents","Table of Contents","Table of Contents","Table of Contents","Table of Contents","Table of Contents","Table of Contents","Table of Contents","Table of Contents","Table of Contents","Table of Contents","Table of Contents","Table of Contents","Table of Contents","Table of Contents","Table of Contents","Table of Contents","Table of Contents","Table of Contents","Table of Contents","Table of Contents","Table of Contents","Table of Contents","Table of Contents","Table of Contents","Table of Contents","Table of Contents","Table of Contents","Table of Contents","Table of Contents","Table of Contents","Table of Contents","Table of Contents","Table of Contents","Table of Contents","Table of Contents","Table of Contents","Table of Contents","Table of Contents","Table of Contents","Table of Contents","Table of Contents","Table of Contents","Table of Contents","Table of Contents","Table of Contents","Table of Contents","Table of Contents","Table of Contents","Table of Contents","Table of Contents","Table of Contents","Table of Contents","Table of Contents","Table of Contents","Table of Contents","Table of Contents","Table of Contents","Table of Contents","Table of Contents","Table of Contents","Table of Contents","Table of Contents","Table of Contents","Table of Contents","Table of Contents","Table of Contents","Table of Contents","Table of Contents","Table of Contents","Table of Contents","Table of Contents","Table of Contents","Table of Contents","Table of Contents","Table of Contents","Table of Contents","Table of Contents","Table of Contents","Table of Contents","Table of Contents","Table of Contents","Table of Contents","Table of Contents","Table of Contents","Table of Contents","Table of Contents","Table of Contents","Table of Contents","Table of Contents","Table of Contents","Table of Contents","Table of Contents","Table of Contents","Table of Contents","Table of Contents","Table of Contents","Table of Contents","Table of Contents","Table of Contents","Table of Contents","Table of Contents","Table of Contents","Table of Contents","Table of Contents","Table of Contents","Table of Contents","Table of Contents","Table of Contents","Table of Contents","Table of Contents","Table of Contents","Table of Contents","Table of Contents","Table of Contents","Table of Contents","Table of Contents","Table of Contents","Table of Contents","Table of Contents","Table of Contents","Table of Contents","Table of Contents","Table of Contents","Table of Contents","Table of Contents","Table of Contents","Table of Contents","Table of Contents","Table of Contents","Table of Contents","Table of Contents","Table of Contents","Table of Contents","Table of Contents","Table of Contents","Table of Contents","Table of Contents","Table of Contents","Table of Contents","Table of Contents","Table of Contents","Table of Contents","Table of Contents","Table of Contents","Table of Contents","Table of Contents","Table of Contents","Table of Contents","Table of Contents","Table of Contents","Table of Contents","Table of Contents","Table of Contents","Table of Contents","Table of Contents","Table of Contents","Table of Contents","Table of Contents","Table of Contents","Table of Contents","Table of Contents","Table of Contents","Table of Contents","Table of Contents","Table of Contents","Table of Contents","Table of Contents","Table of Contents","Table of Contents","Table of Contents","Table of Contents","Table of Contents","Table of Contents","Table of Contents","Table of Contents","Table of Contents","Table of Contents","Table of Contents","Table of Contents","Table of Contents","Table of Contents","Table of Contents","Table of Contents","Table of Contents","Table of Contents","Table of Contents","Table of Contents","Table of Contents","Table of Contents","Table of Contents","Table of Contents","Table of Contents","Table of Contents","Table of Contents","Table of Contents","Table of Contents","Table of Contents","Table of Contents","Table of Contents","Table of Contents","Table of Contents","Table of Contents","Table of Contents","Table of Contents","Table of Contents","Table of Contents","Table of Contents","Table of Contents","Table of Contents","Table of Contents","Table of Contents","Table of Contents","Table of Contents","Table of Contents","Table of Contents","Table of Contents","Table of Contents","Table of Contents","Table of Contents","Table of Contents","Table of Contents","Table of Contents","Table of Contents","Table of Contents","Table of Contents","Table of Contents","Table of Contents","Table of Contents","Table of Contents","Table of Contents","Table of Contents","Table of Contents","Table of Contents","Table of Contents","Table of Contents","Table of Contents","Table of Contents","Table of Contents","Table of Contents","Table of Contents","Table of Contents","Table of Contents","Table of Contents","Table of Contents","Table of Contents","Table of Contents","Table of Contents","Table of Contents","Table of Contents","Table of Contents","Table of Contents","Table of Contents","Table of Contents","Table of Contents","Table of Contents","Table of Contents","Table of Contents","Table of Contents","Table of Contents","Table of Contents","Table of Contents","Table of Contents","Table of Contents","Table of Contents","Table of Contents","Table of Contents","Table of Contents","Table of Contents","Table of Contents","Table of Contents","Table of Contents","Table of Contents","Table of Contents","Table of Contents","Table of Contents","Table of Contents","Table of Contents","Table of Contents","Table of Contents","Table of Contents","Table of Contents","Table of Contents","Table of Contents","Table of Contents","Table of Contents","Table of Contents","Table of Contents","Table of Contents","Table of Contents","Table of Contents","Table of Contents","Table of Contents","Table of Contents","Table of Contents","Table of Contents","Table of Contents","Table of Contents","Table of Contents","Table of Contents","Table of Contents","Table of Contents","Table of Contents","Table of Contents","Table of Contents","Table of Contents","Table of Contents","Table of Contents","Table of Contents","Table of Contents","Table of Contents","Table of Contents","Table of Contents","Table of Contents","Table of Contents","Table of Contents","Table of Contents","Table of Contents","Table of Contents","Table of Contents","Table of Contents","Table of Contents","Table of Contents","Table of Contents","Table of Contents","Table of Contents","Table of Contents","Table of Contents","Table of Contents","Table of Contents","Table of Contents","Table of Contents","Table of Contents","Table of Contents","Table of Contents","Table of Contents","Table of Contents","Table of Contents","Table of Contents","Table of Contents","Table of Contents","Table of Contents","Table of Contents","Table of Contents","Table of Contents","Table of Contents","Table of Contents","Table of Contents","Table of Contents","Table of Contents","Table of Contents","Table of Contents","Table of Contents","Table of Contents","Table of Contents","Table of Contents","Table of Contents","Table of Contents","Table of Contents","Table of Contents","Table of Contents","Table of Contents","Table of Contents","Table of Contents","Table of Contents","Table of Contents","Table of Contents","Table of Contents","Table of Contents","Table of Contents","Table of Contents","Table of Contents","Table of Contents","Table of Contents","Table of Contents","Table of Contents","Table of Contents","Table of Contents","Table of Contents","Table of Contents","Table of Contents","Table of Contents","Table of Contents","Table of Contents","Table of Contents","Table of Contents","Table of Contents","Table of Contents","Table of Contents","Table of Contents","Table of Contents","Table of Contents","Table of Contents","Table of Contents","Table of Contents","Table of Contents","Table of Contents","Table of Contents","Table of Contents","Table of Contents","Table of Contents","Table of Contents","Table of Contents","Table of Contents","Table of Contents","Table of Contents","Table of Contents","Table of Contents","Table of Contents","Table of Contents","Table of Contents","Table of Contents","Table of Contents","Table of Contents","Table of Contents","Table of Contents","Table of Contents","Table of Contents","Table of Contents","Table of Contents","Table of Contents","Table of Contents","Table of Contents","Table of Contents","Table of Contents","Table of Contents","Table of Contents","Table of Contents","Table of Contents","Table of Contents","Table of Contents","Table of Contents","Table of Contents","Table of Contents","Table of Contents","Table of Contents","Table of Contents","Table of Contents","Table of Contents","Table of Contents","Table of Contents","Table of Contents","Table of Contents","Table of Contents","Table of Contents","Table of Contents","Table of Contents","Table of Contents","Table of Contents","Table of Contents","Table of Contents","Table of Contents","Table of Contents","Table of Contents","Table of Contents","Table of Contents","Table of Contents","Table of Contents","Table of Contents","Table of Contents","Table of Contents","Table of Contents","Table of Contents","Table of Contents","Table of Contents","Table of Contents","Table of Contents","Table of Contents","Table of Contents","Table of Contents","Table of Contents","Table of Contents","Table of Contents","Table of Contents","Table of Contents","Table of Contents","Table of Contents","Table of Contents","Table of Contents","Table of Contents","Table of Contents","Table of Contents","Table of Contents","Table of Contents","Table of Contents","Table of Contents","Table of Contents","Table of Contents","Table of Contents","Table of Contents","Table of Contents","Table of Contents","Table of Contents","Table of Contents","Table of Contents","Table of Contents","Table of Contents","Table of Contents","Table of Contents","Table of Contents","Table of Contents","Table of Contents","Table of Contents","Table of Contents","Table of Contents","Table of Contents","Table of Contents","Table of Contents","Table of Contents","Table of Contents","Table of Contents","Table of Contents","Table of Contents","Table of Contents","Table of Contents","Table of Contents","Table of Contents","Table of Contents","Table of Contents","Table of Contents","Table of Contents","Table of Contents","Table of Contents","Table of Contents","Table of Contents","Table of Contents","Table of Contents","Table of Contents","Table of Contents","Table of Contents","Table of Contents","Table of Contents","Table of Contents","Table of Contents","Table of Contents","Table of Contents","Table of Contents","Table of Contents","Table of Contents","Table of Contents","Table of Contents","Table of Contents","Table of Contents","Table of Contents","Table of Contents","Table of Contents","Table of Contents","Table of Contents","Table of Contents","Table of Contents","Table of Contents","Table of Contents","Table of Contents","Table of Contents","Table of Contents","Table of Contents","Table of Contents","Table of Contents","Table of Contents","Table of Contents","Table of Contents","Table of Contents","Table of Contents","Table of Contents","Table of Contents","Table of Contents","Table of Contents","Table of Contents","Table of Contents","Table of Contents","Table of Contents","Table of Contents","Table of Contents","Table of Contents","Table of Contents","Table of Contents","Table of Contents","Table of Contents","Table of Contents","Table of Contents","Table of Contents","Table of Contents","Table of Contents","Table of Contents","Table of Contents","Table of Contents","Table of Contents","Table of Contents","Table of Contents","Table of Contents","Table of Contents","Table of Contents","Table of Contents","Table of Contents","Table of Contents","Table of Contents","Table of Contents","Table of Contents","Table of Contents","Table of Contents","Table of Contents","Table of Contents","Table of Contents","Table of Contents","Table of Contents","Table of Contents","Table of Contents","Table of Contents","Table of Contents","Table of Contents","Table of Contents","Table of Contents","Table of Contents","Table of Contents","Table of Contents","Table of Contents","Table of Contents","Table of Contents","Table of Contents","Table of Contents","Table of Contents","Table of Contents","Table of Contents","Table of Contents","Table of Contents","Table of Contents","Table of Contents","Table of Contents","Table of Contents","Table of Contents","Table of Contents","Table of Contents","Table of Contents","Table of Contents","Table of Contents","Table of Contents","Table of Contents","Table of Contents","Table of Contents","Table of Contents","Table of Contents","Table of Contents","Table of Contents","Table of Contents","Table of Contents","Table of Contents","Table of Contents","Table of Contents","Table of Contents","Table of Contents","Table of Contents","Table of Contents","Table of Contents","Table of Contents","Table of Contents","Table of Contents","Table of Contents","Table of Contents","Table of Contents","Table of Contents","Table of Contents","Table of Contents","Table of Contents","Table of Contents","Table of Contents","Table of Contents","Table of Contents","Table of Contents","Table of Contents","Table of Contents","Table of Contents","Table of Contents","Table of Contents","Table of Contents","Table of Contents","Table of Contents","Table of Contents","Table of Contents","Table of Contents","Table of Contents","Table of Contents","Table of Contents","Table of Contents","Table of Contents","Table of Contents","Table of Contents","Table of Contents","Table of Contents","Table of Contents","Table of Contents","Table of Contents","Table of Contents","Table of Contents","Table of Contents","Table of Contents","Table of Contents","Table of Contents","Table of Contents","Table of Contents","Table of Contents","Table of Contents","Table of Contents","Table of Contents","Table of Contents","Table of Contents","Table of Contents","Table of Contents","Table of Contents","Table of Contents","Table of Contents","Table of Contents","Table of Contents","Table of Contents","Table of Contents","Table of Contents","Table of Contents","Table of Contents","Table of Contents","Table of Contents","Table of Contents","Table of Contents","Table of Contents","Table of Contents","Table of Contents","Table of Contents","Table of Contents","Table of Contents","Table of Contents","Table of Contents","Table of Contents","Table of Contents","Table of Contents","Table of Contents","Table of Contents","Table of Contents","Table of Contents","Table of Contents","Table of Contents","Table of Contents","Table of Contents","Table of Contents","Table of Contents","Table of Contents","Table of Contents","Table of Contents","Table of Contents","Table of Contents","Table of Contents","Table of Contents","Table of Contents","Table of Contents","Table of Contents","Table of Contents","Table of Contents","Table of Contents","Table of Contents","Table of Contents","Table of Contents","Table of Contents","Table of Contents","Table of Contents","Table of Contents","Table of Contents","Table of Contents","Table of Contents","Table of Contents","Table of Contents","Table of Contents","Table of Contents","Table of Contents","Table of Contents","Table of Contents","Table of Contents","Table of Contents","Table of Contents","Table of Contents","Table of Contents","Table of Contents","Table of Contents","Table of Contents","Table of Contents","Table of Contents","Table of Contents","Table of Contents","Table of Contents","Table of Contents","Table of Contents","Table of Contents","Table of Contents","Table of Contents","Table of Contents","Table of Contents","Table of Contents","Table of Contents","Table of Contents","Table of Contents","Table of Contents","Table of Contents","Table of Contents","Table of Contents","Table of Contents","Table of Contents","Table of Contents","Table of Contents","Table of Contents","Table of Contents","Table of Contents","Table of Contents","Table of Contents","Table of Contents","Table of Contents","Table of Contents","Table of Contents","Table of Contents","Table of Contents","Table of Contents","Table of Contents","Table of Contents","Table of Contents","Table of Contents","Table of Contents","Table of Contents","Table of Contents","Table of Contents","Table of Contents","Table of Contents","Table of Contents","Table of Contents","Table of Contents","Table of Contents","Table of Contents","Table of Contents","Table of Contents","Table of Contents","Table of Contents","Table of Contents","Table of Contents","Table of Contents","Table of Contents","Table of Contents","Table of Contents","Table of Contents","Table of Contents","Table of Contents","Table of Contents","Table of Contents","Table of Contents","Table of Contents","Table of Contents","Table of Contents","Table of Contents","Table of Contents","Table of Contents","Table of Contents","Table of Contents","Table of Contents","Table of Contents","Table of Contents","Table of Contents","Table of Contents","Table of Contents","Table of Contents","Table of Contents","Table of Contents","Table of Contents","Table of Contents","Table of Contents","Table of Contents","Table of Contents","Table of Contents","Table of Contents","Table of Contents","Table of Contents","Table of Contents","Table of Contents","Table of Contents","Table of Contents","Table of Contents","Table of Contents","Table of Contents","Table of Contents","Table of Contents","Table of Contents","Table of Contents","Table of Contents","Table of Contents","Table of Contents","Table of Contents","Table of Contents","Table of Contents","Table of Contents","Table of Contents","Table of Contents","Table of Contents","Table of Contents","Table of Contents","Table of Contents","Table of Contents","Table of Contents","Table of Contents","Table of Contents","Table of Contents","Table of Contents","Table of Contents","Table of Contents","Table of Contents","Table of Contents","Table of Contents","Table of Contents","Table of Contents","Table of Contents","Table of Contents","Table of Contents","Table of Contents","Table of Contents","Table of Contents","Table of Contents","Table of Contents","Table of Contents","Table of Contents","Table of Contents","Table of Contents","Table of Contents","Table of Contents","Table of Contents","Table of Contents","Table of Contents","Table of Contents","Table of Contents","Table of Contents","Table of Contents","Table of Contents","Table of Contents","Table of Contents","Table of Contents","Table of Contents","Table of Contents","Table of Contents","Table of Contents","Table of Contents","Table of Contents","Table of Contents","Table of Contents","Table of Contents","Table of Contents","Table of Contents","Table of Contents","Table of Contents","Table of Contents","Table of Contents","Table of Contents","Table of Contents","Table of Contents","Table of Contents","Table of Contents","Table of Contents","Table of Contents","Table of Contents","Table of Contents","Table of Contents","Table of Contents","Table of Contents","Table of Contents","Table of Contents","Table of Contents","Table of Contents","Table of Contents","Table of Contents","Table of Contents","Table of Contents","Table of Contents","Table of Contents","Table of Contents","Table of Contents","Table of Contents","Table of Contents","Table of Contents","Table of Contents","Table of Contents","Table of Contents","Table of Contents","Table of Contents","Table of Contents","Table of Contents","Table of Contents","Table of Contents","Table of Contents","Table of Contents","Table of Contents","Table of Contents","Table of Contents","Table of Contents","Table of Contents","Table of Contents","Table of Contents","Table of Contents","Table of Contents","Table of Contents","Table of Contents","Table of Contents","Table of Contents","Table of Contents","Table of Contents","Table of Contents","Table of Contents","Table of Contents","Table of Contents","Table of Contents","Table of Contents","Table of Contents","Table of Contents","Table of Contents","Table of Contents","Table of Contents","Table of Contents","Table of Contents","Table of Contents","Table of Contents","Table of Contents","Table of Contents","Table of Contents","Table of Contents","Table of Contents","Table of Contents","Table of Contents","Table of Contents","Table of Contents","Table of Contents","Table of Contents","Table of Contents","Table of Contents","Table of Contents","Table of Contents","Table of Contents","Table of Contents","Table of Contents","Table of Contents","Table of Contents","Table of Contents","Table of Contents","Table of Contents","Table of Contents","Table of Contents","Table of Contents","Table of Contents","Table of Contents","Table of Contents","Table of Contents","Table of Contents","Table of Contents","Table of Contents","Table of Contents","Table of Contents","Table of Contents","Table of Contents","Table of Contents","Table of Contents","Table of Contents","Table of Contents","Table of Contents","Table of Contents","Table of Contents","Table of Contents","Table of Contents","Table of Contents","Table of Contents","Table of Contents","Table of Contents","Table of Contents","Table of Contents","Table of Contents","Table of Contents","Table of Contents","Table of Contents","Table of Contents","Table of Contents","Table of Contents","Table of Contents","Table of Contents","Table of Contents","Table of Contents","Table of Contents","Table of Contents","Table of Contents","Table of Contents","Table of Contents","Table of Contents","Table of Contents","Table of Contents","Table of Contents","Table of Contents","Table of Contents","Table of Contents","Table of Contents","Table of Contents","Table of Contents","Table of Contents","Table of Contents","Table of Contents","Table of Contents","Table of Contents","Table of Contents","Table of Contents","Table of Contents","Table of Contents","Table of Contents","Table of Contents","Table of Contents","Table of Contents","Table of Contents","Table of Contents","Table of Contents","Table of Contents","Table of Contents","Table of Contents","Table of Contents","Table of Contents","Table of Contents","Table of Contents","Table of Contents","Table of Contents","Table of Contents","Table of Contents","Table of Contents","Table of Contents","Table of Contents","Table of Contents","Table of Contents","Table of Contents","Table of Contents","Table of Contents","Table of Contents","Table of Contents","Table of Contents","Table of Contents","Table of Contents","Table of Contents","Table of Contents","Table of Contents","Table of Contents","Table of Contents","Table of Contents","Table of Contents","Table of Contents","Table of Contents","Table of Contents","Table of Contents","Table of Contents","Table of Contents","Table of Contents","Table of Contents","Table of Contents","Table of Contents","Table of Contents","Table of Contents","Table of Contents","Table of Contents","Table of Contents","Table of Contents","Table of Contents","Table of Contents","Table of Contents","Table of Contents","Table of Contents","Table of Contents","Table of Contents","Table of Contents","Table of Contents","Table of Contents","Table of Contents","Table of Contents","Table of Contents","Table of Contents","Table of Contents","Table of Contents","Table of Contents","Table of Contents","Table of Contents","Table of Contents","Table of Contents","Table of Contents","Table of Contents","Table of Contents","Table of Contents","Table of Contents","Table of Contents","Table of Contents","Table of Contents","Table of Contents","Table of Contents","Table of Contents","Table of Contents","Table of Contents","Table of Contents","Table of Contents","Table of Contents","Table of Contents","Table of Contents","Table of Contents","Table of Contents","Table of Contents","Table of Contents","Table of Contents","Table of Contents","Table of Contents","Table of Contents","Table of Contents","Table of Contents","Table of Contents","Table of Contents","Table of Contents","Table of Contents","Table of Contents","Table of Contents","Table of Contents","Table of Contents","Table of Contents","Table of Contents","Table of Contents","Table of Contents","Table of Contents","Table of Contents","Table of Contents","Table of Contents","Table of Contents","Table of Contents","Table of Contents","Table of Contents","Table of Contents","Table of Contents","Table of Contents","Table of Contents","Table of Contents","Table of Contents","Table of Contents","Table of Contents","Table of Contents","Table of Contents","Table of Contents","Table of Contents","Table of Contents","Table of Contents","Table of Contents","Table of Contents","Table of Contents","Table of Contents","Table of Contents","Table of Contents","Table of Contents","Table of Contents","Table of Contents","Table of Contents","Table of Contents","Table of Contents","Table of Contents","Table of Contents","Table of Contents","Table of Contents","Table of Contents","Table of Contents","Table of Contents","Table of Contents","Table of Contents","Table of Contents","Table of Contents","Table of Contents","Table of Contents","Table of Contents","Table of Contents","Table of Contents","Table of Contents","Table of Contents","Table of Contents","Table of Contents","Table of Contents","Table of Contents","Table of Contents","Table of Contents","Table of Contents","Table of Contents","Table of Contents","Table of Contents","Table of Contents","Table of Contents","Table of Contents","Table of Contents","Table of Contents","Table of Contents","Table of Contents","Table of Contents","Table of Contents","Table of Contents","Table of Contents","Table of Contents","Table of Contents","Table of Contents","Table of Contents","Table of Contents","Table of Contents","Table of Contents","Table of Contents","Table of Contents","Table of Contents","Table of Contents","Table of Contents","Table of Contents","Table of Contents","Table of Contents","Table of Contents","Table of Contents","Table of Contents","Table of Contents","Table of Contents","Table of Contents","Table of Contents","Table of Contents","Table of Contents","Table of Contents","Table of Contents","Table of Contents","Table of Contents","Table of Contents","Table of Contents","Table of Contents","Table of Contents","Table of Contents","Table of Contents","Table of Contents","Table of Contents","Table of Contents","Table of Contents","Table of Contents","Table of Contents","Table of Contents","Table of Contents","Table of Contents","Table of Contents","Table of Contents","Table of Contents","Table of Contents","Table of Contents","Table of Contents","Table of Contents","Table of Contents","Table of Contents","Table of Contents","Table of Contents","Table of Contents","Table of Contents","Table of Contents","Table of Contents","Table of Contents","Table of Contents","Table of Contents","Table of Contents","Table of Contents","Table of Contents","Table of Contents","Table of Contents","Table of Contents","Table of Contents","Table of Contents","Table of Contents","Table of Contents","Table of Contents","Table of Contents","Table of Contents","Table of Contents","Table of Contents","Table of Contents","Table of Contents","Table of Contents","Table of Contents","Table of Contents","Table of Contents","Table of Contents","Table of Contents","Table of Contents","Table of Contents","Table of Contents","Table of Contents","Table of Contents","Table of Contents","Table of Contents","Table of Contents","Table of Contents","Table of Contents","Table of Contents","Table of Contents","Table of Contents","Table of Contents","Table of Contents","Table of Contents","Table of Contents","Table of Contents","Table of Contents","Table of Contents","Table of Contents","Table of Contents","Table of Contents","Table of Contents","Table of Contents","Table of Contents","Table of Contents","Table of Contents","Table of Contents","Table of Contents","Table of Contents","Table of Contents","Table of Contents","Table of Contents","Table of Contents","Table of Contents","Table of Contents","Table of Contents","Table of Contents","Table of Contents","Table of Contents","Table of Contents","Table of Contents","Table of Contents","Table of Contents","Table of Contents","Table of Contents","Table of Contents","Table of Contents","Table of Contents","Table of Contents","Table of Contents","Table of Contents","Table of Contents","Table of Contents","Table of Contents","Table of Contents","Table of Contents","Table of Contents","Table of Contents","Table of Contents","Table of Contents","Table of Contents","Table of Contents","Table of Contents","Table of Contents","Table of Contents","Table of Contents","Table of Contents","Table of Contents","Table of Contents","Table of Contents","Table of Contents","Table of Contents","Table of Contents","Table of Contents","Table of Contents","Table of Contents","Table of Contents","Table of Contents","Table of Contents","Table of Contents","Table of Contents","Table of Contents","Table of Contents","Table of Contents","Table of Contents","Table of Contents","Table of Contents","Table of Contents","Table of Contents","Table of Contents","Table of Contents","Table of Contents","Table of Contents","Table of Contents","Table of Contents","Table of Contents","Table of Contents","Table of Contents","Table of Contents","Table of Contents","Table of Contents","Table of Contents","Table of Contents","Table of Contents","Table of Contents","Table of Contents","Table of Contents","Table of Contents","Table of Contents","Table of Contents","Table of Contents","Table of Contents","Table of Contents","Table of Contents","Table of Contents","Table of Contents","Table of Contents","Table of Contents","Table of Contents","Table of Contents","Table of Contents","Table of Contents","Table of Contents","Table of Contents","Table of Contents","Table of Contents","Table of Contents","Table of Contents","Table of Contents","Table of Contents","Table of Contents","Table of Contents","Table of Contents","Table of Contents","Table of Contents","Table of Contents","Table of Contents","Table of Contents","Table of Contents","Table of Contents","Table of Contents","Table of Contents","Table of Contents","Table of Contents","Table of Contents","Table of Contents","Table of Contents","Table of Contents","Table of Contents","Table of Contents","Table of Contents","Table of Contents","Table of Contents","Table of Contents","Table of Contents","Table of Contents","Table of Contents","Table of Contents","Table of Contents","Table of Contents","Table of Contents","Table of Contents","Table of Contents","Table of Contents","Table of Contents","Table of Contents","Table of Contents","Table of Contents","Table of Contents","Table of Contents","Table of Contents","Table of Contents","Table of Contents","Table of Contents","Table of Contents","Table of Contents","Table of Contents","Table of Contents","Table of Contents","Table of Contents","Table of Contents","Table of Contents","Table of Contents","Table of Contents","Table of Contents","Table of Contents","Table of Contents","Table of Contents","Table of Contents","Table of Contents","Table of Contents","Table of Contents","Table of Contents","Table of Contents","Table of Contents","Table of Contents","Table of Contents","Table of Contents","Table of Contents","Table of Contents","Table of Contents","Table of Contents","Table of Contents","Table of Contents","Table of Contents","Table of Contents","Table of Contents","Table of Contents","Table of Contents","Table of Contents","Table of Contents","Table of Contents","Table of Contents","Table of Contents","Table of Contents","Table of Contents","Table of Contents","Table of Contents","Table of Contents","Table of Contents","Table of Contents","Table of Contents","Table of Contents","Table of Contents","Table of Contents","Table of Contents","Table of Contents","Table of Contents","Table of Contents","Table of Contents","Table of Contents","Table of Contents","Table of Contents","Table of Contents","Table of Contents","Table of Contents","Table of Contents","Table of Contents","Table of Contents","Table of Contents","Table of Contents","Table of Contents","Table of Contents","Table of Contents","Table of Contents","Table of Contents","Table of Contents","Table of Contents","Table of Contents","Table of Contents","Table of Contents","Table of Contents","Table of Contents","Table of Contents","Table of Contents","Table of Contents","Table of Contents","Table of Contents","Table of Contents","Table of Contents","Table of Contents","Table of Contents","Table of Contents","Table of Contents","Table of Contents","Table of Contents","Table of Contents","Table of Contents","Table of Contents","Table of Contents","Table of Contents","Table of Contents","Table of Contents","Table of Contents","Table of Contents","Table of Contents","Table of Contents","Table of Contents","Table of Contents","Table of Contents","Table of Contents","Table of Contents","Table of Contents","Table of Contents","Table of Contents","Table of Contents","Table of Contents","Table of Contents","Table of Contents","Table of Contents","Table of Contents","Table of Contents","Table of Contents","Table of Contents","Table of Contents","Table of Contents","Table of Contents","Table of Contents","Table of Contents","Table of Contents","Table of Contents","Table of Contents","Table of Contents","Table of Contents","Table of Contents","Table of Contents","Table of Contents","Table of Contents","Table of Contents","Table of Contents","Table of Contents","Table of Contents","Table of Contents","Table of Contents","Table of Contents","Table of Contents","Table of Contents","Table of Contents","Table of Contents","Table of Contents","Table of Contents","Table of Contents","Table of Contents","Table of Contents","Table of Contents","Table of Contents","Table of Contents","Table of Contents","Table of Contents","Table of Contents","Table of Contents","Table of Contents","Table of Contents","Table of Contents","Table of Contents","Table of Contents","Table of Contents","Table of Contents","Table of Contents","Table of Contents","Table of Contents","Table of Contents","Table of Contents","Table of Contents","Table of Contents","Table of Contents","Table of Contents","Table of Contents","Table of Contents","Table of Contents","Table of Contents","Table of Contents","Table of Contents","Table of Contents","Table of Contents","Table of Contents","Table of Contents","Table of Contents","Table of Contents","Table of Contents","Table of Contents","Table of Contents","Table of Contents","Table of Contents","Table of Contents","Table of Contents","Table of Contents","Table of Contents","Table of Contents","Table of Contents","Table of Contents","Table of Contents","Table of Contents","Table of Contents","Table of Contents","Table of Contents","Table of Contents","Table of Contents","Table of Contents","Table of Contents","Table of Contents","Table of Contents","Table of Contents","Table of Contents","Table of Contents","Table of Contents","Table of Contents","Table of Contents","Table of Contents","Table of Contents","Table of Contents","Table of Contents","Table of Contents","Table of Contents","Table of Contents","Table of Contents","Table of Contents","Table of Contents","Table of Contents","Table of Contents","Table of Contents","Table of Contents","Table of Contents","Table of Contents","Table of Contents","Table of Contents","Table of Contents","Table of Contents","Table of Contents","Table of Contents","Table of Contents","Table of Contents","Table of Contents","Table of Contents","Table of Contents","Table of Contents","Table of Contents","Table of Contents","Table of Contents","Table of Contents","Table of Contents","Table of Contents","Table of Contents","Table of Contents","Table of Contents","Table of Contents","Table of Contents","Table of Contents","Table of Contents","Table of Contents","Table of Contents","Table of Contents","Table of Contents","Table of Contents","Table of Contents","Table of Contents","Table of Contents","Table of Contents","Table of Contents","Table of Contents","Table of Contents","Table of Contents","Table of Contents","Table of Contents","Table of Contents","Table of Contents","Table of Contents","Table of Contents","Table of Contents","Table of Contents","Table of Contents","Table of Contents","Table of Contents","Table of Contents","Table of Contents","Table of Contents","Table of Contents","Table of Contents","Table of Contents","Table of Contents","Table of Contents","Table of Contents","Table of Contents","Table of Contents","Table of Contents","Table of Contents","Table of Contents","Table of Contents","Table of Contents","Table of Contents","Table of Contents","Table of Contents","Table of Contents","Table of Contents","Table of Contents","Table of Contents","Table of Contents","Table of Contents","Table of Contents","Table of Contents","Table of Contents","Table of Contents","Table of Contents","Table of Contents","Table of Contents","Table of Contents","Table of Contents","Table of Contents","Table of Contents","Table of Contents","Table of Contents","Table of Contents","Table of Contents","Table of Contents","Table of Contents","Table of Contents","Table of Contents","Table of Contents","Table of Contents","Table of Contents","Table of Contents","Table of Contents","Table of Contents","Table of Contents","Table of Contents","Table of Contents","Table of Contents","Table of Contents","Table of Contents","Table of Contents","Table of Contents","Table of Contents","Table of Contents","Table of Contents","Table of Contents","Table of Contents","Table of Contents","Table of Contents","Table of Contents","Table of Contents","Table of Contents","Table of Contents","Table of Contents","Table of Contents","Table of Contents","Table of Contents","Table of Contents","Table of Contents","Table of Contents","Table of Contents","Table of Contents","Table of Contents","Table of Contents","Table of Contents","Table of Contents","Table of Contents","Table of Contents","Table of Contents","Table of Contents","Table of Contents","Table of Contents","Table of Contents","Table of Contents","Table of Contents","Table of Contents","Table of Contents","Table of Contents","Table of Contents","Table of Contents","Table of Contents","Table of Contents","Table of Contents","Table of Contents","Table of Contents","Table of Contents","Table of Contents","Table of Contents","Table of Contents","Table of Contents","Table of Contents","Table of Contents","Table of Contents","Table of Contents","Table of Contents","Table of Contents","Table of Contents","Table of Contents","Table of Contents","Table of Contents","Table of Contents","Table of Contents","Table of Contents","Table of Contents","Table of Contents","Table of Contents","Table of Contents","Table of Contents","Table of Contents","Table of Contents","Table of Contents","Table of Contents","Table of Contents","Table of Contents","Table of Contents","Table of Contents","Table of Contents","Table of Contents","Table of Contents","Table of Contents","Table of Contents","Table of Contents","Table of Contents","Table of Contents","Table of Contents","Table of Contents","Table of Contents","Table of Contents","Table of Contents","Table of Contents","Table of Contents","Table of Contents","Table of Contents","Table of Contents","Table of Contents","Table of Contents","Table of Contents","Table of Contents","Table of Contents","Table of Contents","Table of Contents","Table of Contents","Table of Contents","Table of Contents","Table of Contents","Table of Contents","Table of Contents","Table of Contents","Table of Contents","Table of Contents","Table of Contents","Table of Contents","Table of Contents","Table of Contents","Table of Contents","Table of Contents","Table of Contents","Table of Contents","Table of Contents","Table of Contents","Table of Contents","Table of Contents","Table of Contents","Table of Contents","Table of Contents","Table of Contents","Table of Contents","Table of Contents","Table of Contents","Table of Contents","Table of Contents","Table of Contents","Table of Contents","Table of Contents","Table of Contents","Table of Contents","Table of Contents","Table of Contents","Table of Contents","Table of Contents","Table of Contents","Table of Contents","Table of Contents","Table of Contents","Table of Contents","Table of Contents","Table of Contents","Table of Contents","Table of Contents","Table of Contents","Table of Contents","Table of Contents","Table of Contents","Table of Contents","Table of Contents","Table of Contents","Table of Contents","Table of Contents","Table of Contents","Table of Contents","Table of Contents","Table of Contents","Table of Contents","Table of Contents","Table of Contents","Table of Contents","Table of Contents","Table of Contents","Table of Contents","Table of Contents","Table of Contents","Table of Contents","Table of Contents","Table of Contents","Table of Contents","Table of Contents","Table of Contents","Table of Contents","Table of Contents","Table of Contents","Table of Contents","Table of Contents","Table of Contents","Table of Contents","Table of Contents","Table of Contents","Table of Contents","Table of Contents","Table of Contents","Table of Contents","Table of Contents","Table of Contents","Table of Contents","Table of Contents","Table of Contents","Table of Contents","Table of Contents","Table of Contents","Table of Contents","Table of Contents","Table of Contents","Table of Contents","Table of Contents","Table of Contents","Table of Contents","Table of Contents","Table of Contents","Table of Contents","Table of Contents","Table of Contents","Table of Contents","Table of Contents","Table of Contents","Table of Contents","Table of Contents","Table of Contents","Table of Contents","Table of Contents","Table of Contents","Table of Contents","Table of Contents","Table of Contents","Table of Contents","Table of Contents","Table of Contents","Table of Contents","Table of Contents","Table of Contents","Table of Contents","Table of Contents","Table of Contents","Table of Contents","Table of Contents","Table of Contents","Table of Contents","Table of Contents","Table of Contents","Table of Contents","Table of Contents","Table of Contents","Table of Contents","Table of Contents","Table of Contents","Table of Contents","Table of Contents","Table of Contents","Table of Contents","Table of Contents","Table of Contents","Table of Contents","Table of Contents","Table of Contents","Table of Contents","Table of Contents","Table of Contents","Table of Contents","Table of Contents","Table of Contents","Table of Contents","Table of Contents","Table of Contents","Table of Contents","Table of Contents","Table of Contents","Table of Contents","Table of Contents","Table of Contents","Table of Contents","Table of Contents","Table of Contents","Table of Contents","Table of Contents","Table of Contents","Table of Contents","Table of Contents","Table of Contents","Table of Contents","Table of Contents","Table of Contents","Table of Contents","Table of Contents","Table of Contents","Table of Contents","Table of Contents","Table of Contents","Table of Contents","Table of Contents","Table of Contents","Table of Contents","Table of Contents","Table of Contents","Table of Contents","Table of Contents","Table of Contents","Table of Contents","Table of Contents","Table of Contents","Table of Contents","Table of Contents","Table of Contents","Table of Contents","Table of Contents","Table of Contents","Table of Contents","Table of Contents","Table of Contents","Table of Contents","Table of Contents","Table of Contents","Table of Contents","Table of Contents","Table of Contents","Table of Contents","Table of Contents","Table of Contents","Table of Contents","Table of Contents","Table of Contents","Table of Contents","Table of Contents","Table of Contents","Table of Contents","Table of Contents","Table of Contents","Table of Contents","Table of Contents","Table of Contents","Table of Contents","Table of Contents","Table of Contents","Table of Contents","Table of Contents","Table of Contents","Table of Contents","Table of Contents","Table of Contents","Table of Contents","Table of Contents","Table of Contents","Table of Contents","Table of Contents","Table of Contents","Table of Contents","Table of Contents","Table of Contents","Table of Contents","Table of Contents","Table of Contents","Table of Contents","Table of Contents","Table of Contents","Table of Contents","Table of Contents","Table of Contents","Table of Contents","Table of Contents","Table of Contents","Table of Contents","Table of Contents","Table of Contents","Table of Contents","Table of Contents","Table of Contents","Table of Contents","Table of Contents","Table of Contents","Table of Contents","Table of Contents","Table of Contents","Table of Contents","Table of Contents","Table of Contents","Table of Contents","Table of Contents","Table of Contents","Table of Contents","Table of Contents","Table of Contents","Table of Contents","Table of Contents","Table of Contents","Table of Contents","Table of Contents","Table of Contents","Table of Contents","Table of Contents","Table of Contents","Table of Contents","Table of Contents","Table of Contents","Table of Contents","Table of Contents","Table of Contents","Table of Contents","Table of Contents","Table of Contents","Table of Contents","Table of Contents","Table of Contents","Table of Contents","Table of Contents","Table of Contents","Table of Contents","Table of Contents","Table of Contents","Table of Contents","Table of Contents","Table of Contents","Table of Contents","Table of Contents","Table of Contents","Table of Contents","Table of Contents","Table of Contents","Table of Contents","Table of Contents","Table of Contents","Table of Contents","Table of Contents","Table of Contents","Table of Contents","Table of Contents","Table of Contents","Table of Contents","Table of Contents","Table of Contents","Table of Contents","Table of Contents","Table of Contents","Table of Contents","Table of Contents","Table of Contents","Table of Contents","Table of Contents","Table of Contents","Table of Contents","Table of Contents","Table of Contents","Table of Contents","Table of Contents","Table of Contents","Table of Contents","Table of Contents","Table of Contents","Table of Contents","Table of Contents","Table of Contents","Table of Contents","Table of Contents","Table of Contents","Table of Contents","Table of Contents","Table of Contents","Table of Contents","Table of Contents","Table of Contents","Table of Contents","Table of Contents","Table of Contents","Table of Contents","Table of Contents","Table of Contents","Table of Contents","Table of Contents","Table of Contents","Table of Contents","Table of Contents","Table of Contents","Table of Contents","Table of Contents","Table of Contents","Table of Contents","Table of Contents","Table of Contents","Table of Contents","Table of Contents","Table of Contents","Table of Contents","Table of Contents","Table of Contents","Table of Contents","Table of Contents","Table of Contents","Table of Contents","Table of Contents","Table of Contents","Table of Contents","Table of Contents","Table of Contents","Table of Contents","Table of Contents","Table of Contents","Table of Contents","Table of Contents","Table of Contents","Table of Contents","Table of Contents","Table of Contents","Table of Contents","Table of Contents","Table of Contents","Table of Contents","Table of Contents","Table of Contents","Table of Contents","Table of Contents","Table of Contents","Table of Contents","Table of Contents","Table of Contents","Table of Contents","Table of Contents","Table of Contents","Table of Contents","Table of Contents","Table of Contents","Table of Contents","Table of Contents","Table of Contents","Table of Contents","Table of Contents","Table of Contents","Table of Contents","Table of Contents","Table of Contents","Table of Contents","Table of Contents","Table of Contents","Table of Contents","Table of Contents","Table of Contents","Table of Contents","Table of Contents","Table of Contents","Table of Contents","Table of Contents","Table of Contents","Table of Contents","Table of Contents","Table of Contents","Table of Contents","Table of Contents","Table of Contents","Table of Contents","Table of Contents","Table of Contents","Table of Contents","Table of Contents","Table of Contents","Table of Contents","Table of Contents","Table of Contents","Table of Contents","Table of Contents","Table of Contents","Table of Contents","Table of Contents","Table of Contents","Table of Contents","Table of Contents","Table of Contents","Table of Contents","Table of Contents","Table of Contents","Table of Contents","Table of Contents","Table of Contents","Table of Contents","Table of Contents","Table of Contents","Table of Contents","Table of Contents","Table of Contents","Table of Contents","Table of Contents","Table of Contents","Table of Contents","Table of Contents","Table of Contents","Table of Contents","Table of Contents","Table of Contents","Table of Contents","Table of Contents","Table of Contents","Table of Contents","Table of Contents","Table of Contents","Table of Contents","Table of Contents","Table of Contents","Table of Contents","Table of Contents","Table of Contents","Table of Contents","Table of Contents","Table of Contents","Table of Contents","Table of Contents","Table of Contents","Table of Contents","Table of Contents","Table of Contents","Table of Contents","Table of Contents","Table of Contents","Table of Contents","Table of Contents","Table of Contents","Table of Contents","Table of Contents","Table of Contents","Table of Contents","Table of Contents","Table of Contents","Table of Contents","Table of Contents","Table of Contents","Table of Contents","Table of Contents","Table of Contents","Table of Contents","Table of Contents","Table of Contents","Table of Contents","Table of Contents","Table of Contents","Table of Contents","Table of Contents","Table of Contents","Table of Contents","Table of Contents","Table of Contents","Table of Contents","Table of Contents","Table of Contents","Table of Contents","Table of Contents","Table of Contents","Table of Contents","Table of Contents","Table of Contents","Table of Contents","Table of Contents","Table of Contents","Table of Contents","Table of Contents","Table of Contents","Table of Contents","Table of Contents","Table of Contents","Table of Contents","Table of Contents","Table of Contents","Table of Contents","Table of Contents","Table of Contents","Table of Contents","Table of Contents","Table of Contents","Table of Contents","Table of Contents","Table of Contents","Table of Contents","Table of Contents","Table of Contents","Table of Contents","Table of Contents","Table of Contents","Table of Contents","Table of Contents","Table of Contents","Table of Contents","Table of Contents","Table of Contents","Table of Contents","Table of Contents","Table of Contents","Table of Contents","Table of Contents","Table of Contents","Table of Contents","Table of Contents","Table of Contents","Table of Contents","Table of Contents","Table of Contents","Table of Contents","Table of Contents","Table of Contents","Table of Contents","Table of Contents","Table of Contents","Table of Contents","Table of Contents","Table of Contents","Table of Contents","Table of Contents","Table of Contents","Table of Contents","Table of Contents","Table of Contents","Table of Contents","Table of Contents","Table of Contents","Table of Contents","Table of Contents","Table of Contents","Table of Contents","Table of Contents","Table of Contents","Table of Contents","Table of Contents","Table of Contents","Table of Contents","Table of Contents","Table of Contents","Table of Contents","Table of Contents","Table of Contents","Table of Contents","Table of Contents","Table of Contents","Table of Contents","Table of Contents","Table of Contents","Table of Contents","Table of Contents","Table of Contents","Table of Contents","Table of Contents","Table of Contents","Table of Contents","Table of Contents","Table of Contents","Table of Contents","Table of Contents","Table of Contents","Table of Contents","Table of Contents","Table of Contents","Table of Contents","Table of Contents","Table of Contents","Table of Contents","Table of Contents","Table of Contents","Table of Contents","Table of Contents","Table of Contents","Table of Contents","Table of Contents","Table of Contents","Table of Contents","Table of Contents","Table of Contents","Table of Contents","Table of Contents","Table of Contents","Table of Contents","Table of Contents","Table of Contents","Table of Contents","Table of Contents","Table of Contents","Table of Contents","Table of Contents","Table of Contents","Table of Contents","Table of Contents","Table of Contents","Table of Contents","Table of Contents","Table of Contents","Table of Contents","Table of Contents","Table of Contents","Table of Contents","Table of Contents","Table of Contents","Table of Contents","Table of Contents","Table of Contents","Table of Contents","Table of Contents","Table of Contents","Table of Contents","Table of Contents","Table of Contents","Table of Contents","Table of Contents","Table of Contents","Table of Contents","Table of Contents","Table of Contents","Table of Contents","Table of Contents","Table of Contents","Table of Contents","Table of Contents","Table of Contents","Table of Contents","Table of Contents","Table of Contents","Table of Contents","Table of Contents","Table of Contents","Table of Contents","Table of Contents","Table of Contents","Table of Contents","Table of Contents","Table of Contents","Table of Contents","Table of Contents","Table of Contents","Table of Contents","Table of Contents","Table of Contents","Table of Contents","Table of Contents","Table of Contents","Table of Contents","Table of Contents","Table of Contents","Table of Contents","Table of Contents","Table of Contents","Table of Contents","Table of Contents","Table of Contents","Table of Contents","Table of Contents","Table of Contents","Table of Contents","Table of Contents","Table of Contents","Table of Contents","Table of Contents","Table of Contents","Table of Contents","Table of Contents","Table of Contents","Table of Contents","Table of Contents","Table of Contents","Table of Contents","Table of Contents","Table of Contents","Table of Contents","Table of Contents","Table of Contents","Table of Contents","Table of Contents","Table of Contents","Table of Contents","Table of Contents","Table of Contents","Table of Contents","Table of Contents","Table of Contents","Table of Contents","Table of Contents","Table of Contents","Table of Contents","Table of Contents","Table of Contents","Table of Contents","Table of Contents","Table of Contents","Table of Contents","Table of Contents","Table of Contents","Table of Contents","Table of Contents","Table of Contents","Table of Contents","Table of Contents","Table of Contents","Table of Contents","Table of Contents","Table of Contents","Table of Contents","Table of Contents","Table of Contents","Table of Contents","Table of Contents","Table of Contents","Table of Contents","Table of Contents","Table of Contents","Table of Contents","Table of Contents","Table of Contents","Table of Contents","Table of Contents","Table of Contents","Table of Contents","Table of Contents","Table of Contents","Table of Contents","Table of Contents","Table of Contents","Table of Contents","Table of Contents","Table of Contents","Table of Contents","Table of Contents","Table of Contents","Table of Contents","Table of Contents","Table of Contents","Table of Contents","Table of Contents","Table of Contents","Table of Contents","Table of Contents","Table of Contents","Table of Contents","Table of Contents","Table of Contents","Table of Contents","Table of Contents","Table of Contents","Table of Contents","Table of Contents","Table of Contents","Table of Contents","Table of Contents","Table of Contents","Table of Contents","Table of Contents","Table of Contents","Table of Contents","Table of Contents","Table of Contents","Table of Contents","Table of Contents","Table of Contents","Table of Contents","Table of Contents","Table of Contents","Table of Contents","Table of Contents","Table of Contents","Table of Contents","Table of Contents","Table of Contents","Table of Contents","Table of Contents","Table of Contents","Table of Contents","Table of Contents","Table of Contents","Table of Contents","Table of Contents","Table of Contents","Table of Contents","Table of Contents","Table of Contents","Table of Contents","Table of Contents","Table of Contents","Table of Contents","Table of Contents","Table of Contents","Table of Contents","Table of Contents","Table of Contents","Table of Contents","Table of Contents","Table of Contents","Table of Contents","Table of Contents","Table of Contents","Table of Contents","Table of Contents","Table of Contents","Table of Contents","Table of Contents","Table of Contents","Table of Contents","Table of Contents","Table of Contents","Table of Contents","Table of Contents","Table of Contents","Table of Contents","Table of Contents","Table of Contents","Table of Contents","Table of Contents","Table of Contents","Table of Contents","Table of Contents","Table of Contents","Table of Contents","Table of Contents","Table of Contents","Table of Contents","Table of Contents","Table of Contents","Table of Contents","Table of Contents","Table of Contents","Table of Contents","Table of Contents","Table of Contents","Table of Contents","Table of Contents","Table of Contents","Table of Contents","Table of Contents","Table of Contents","Table of Contents","Table of Contents","Table of Contents","Table of Contents","Table of Contents","Table of Contents","Table of Contents","Table of Contents","Table of Contents","Table of Contents","Table of Contents","Table of Contents","Table of Contents","Table of Contents","Table of Contents","Table of Contents","Table of Contents","Table of Contents","Table of Contents","Table of Contents","Table of Contents","Table of Contents","Table of Contents","Table of Contents","Table of Contents","Table of Contents","Table of Contents","Table of Contents","Table of Contents","Table of Contents","Table of Contents","Table of Contents","Table of Contents","Table of Contents","Table of Contents","Table of Contents","Table of Contents","Table of Contents","Table of Contents","Table of Contents","Table of Contents","Table of Contents","Table of Contents","Table of Contents","Table of Contents","Table of Contents","Table of Contents","Table of Contents","Table of Contents","Table of Contents","Table of Contents","Table of Contents","Table of Contents","Table of Contents","Table of Contents","Table of Contents","Table of Contents","Table of Contents","Table of Contents","Table of Contents","Table of Contents","Table of Contents","Table of Contents","Table of Contents","Table of Contents","Table of Contents","Table of Contents","Table of Contents","Table of Contents","Table of Contents","Table of Contents","Table of Contents","Table of Contents","Table of Contents","Table of Contents","Table of Contents","Table of Contents","Table of Contents","Table of Contents","Table of Contents","Table of Contents","Table of Contents","Table of Contents","Table of Contents","Table of Contents","Table of Contents","Table of Contents","Table of Contents","Table of Contents","Table of Contents","Table of Contents","Table of Contents","Table of Contents","Table of Contents","Table of Contents","Table of Contents","Table of Contents","Table of Contents","Table of Contents","Table of Contents","Table of Contents","Table of Contents","Table of Contents","Table of Contents","Table of Contents","Table of Contents","Table of Contents","Table of Contents","Table of Contents","Table of Contents","Table of Contents","Table of Contents","Table of Contents","Table of Contents","Table of Contents","Table of Contents","Table of Contents","Table of Contents","Table of Contents","Table of Contents","Table of Contents","Table of Contents","Table of Contents","Table of Contents","Table of Contents","Table of Contents","Table of Contents","Table of Contents","Table of Contents","Table of Contents","Table of Contents","Table of Contents","Table of Contents","Table of Contents","Table of Contents","Table of Contents","Table of Contents","Table of Contents","Table of Contents","Table of Contents","Table of Contents","Table of Contents","Table of Contents","Table of Contents","Table of Contents","Table of Contents","Table of Contents","Table of Contents","Table of Contents","Table of Contents","Table of Contents","Table of Contents","Table of Contents","Table of Contents","Table of Contents","Table of Contents","Table of Contents","Table of Contents","Table of Contents","Table of Contents","Table of Contents","Table of Contents","Table of Contents","Table of Contents","Table of Contents","Table of Contents","Table of Contents","Table of Contents","Table of Contents","Table of Contents","Table of Contents","Table of Contents","Table of Contents","Table of Contents","Table of Contents","Table of Contents","Table of Contents","Table of Contents","Table of Contents","Table of Contents","Table of Contents","Table of Contents","Table of Contents","Table of Contents","Table of Contents","Table of Contents","Table of Contents","Table of Contents","Table of Contents","Table of Contents","Table of Contents","Table of Contents","Table of Contents","Table of Contents","Table of Contents","Table of Contents","Table of Contents","Table of Contents","Table of Contents","Table of Contents","Table of Contents","Table of Contents","Table of Contents","Table of Contents","Table of Contents","Table of Contents","Table of Contents","Table of Contents","Table of Contents","Table of Contents","Table of Contents","Table of Contents","Table of Contents","Table of Contents","Table of Contents","Table of Contents","Table of Contents","Table of Contents","Table of Contents","Table of Contents","Table of Contents","Table of Contents","Table of Contents","Table of Contents","Table of Contents","Table of Contents","Table of Contents","Table of Contents","Table of Contents","Table of Contents","Table of Contents","Table of Contents","Table of Contents","Table of Contents","Table of Contents","Table of Contents","Table of Contents","Table of Contents","Table of Contents","Table of Contents","Table of Contents","Table of Contents","Table of Contents","Table of Contents","Table of Contents","Table of Contents","Table of Contents","Table of Contents","Table of Contents","Table of Contents","Table of Contents","Table of Contents","Table of Contents","Table of Contents","Table of Contents","Table of Contents","Table of Contents","Table of Contents","Table of Contents","Table of Contents","Table of Contents","Table of Contents","Table of Contents","Table of Contents","Table of Contents","Table of Contents","Table of Contents","Table of Contents","Table of Contents","Table of Contents","Table of Contents","Table of Contents","Table of Contents","Table of Contents","Table of Contents","Table of Contents","Table of Contents","Table of Contents","Table of Contents","Table of Contents","Table of Contents","Table of Contents","Table of Contents","Table of Contents","Table of Contents","Table of Contents","Table of Contents","Table of Contents","Table of Contents","Table of Contents","Table of Contents","Table of Contents","Table of Contents","Table of Contents","Table of Contents","Table of Contents","Table of Contents","Table of Contents","Table of Contents","Table of Contents","Table of Contents","Table of Contents","Table of Contents","Table of Contents","Table of Contents","Table of Contents","Table of Contents","Table of Contents","Table of Contents","Table of Contents","Table of Contents","Table of Contents","Table of Contents","Table of Contents","Table of Contents","Table of Contents","Table of Contents","Table of Contents","Table of Contents","Table of Contents","Table of Contents","Table of Contents","Table of Contents","Table of Contents","Table of Contents","Table of Contents","Table of Contents","Table of Contents","Table of Contents","Table of Contents","Table of Contents","Table of Contents","Table of Contents","Table of Contents","Table of Contents","Table of Contents","Table of Contents","Table of Contents","Table of Contents","Table of Contents","Table of Contents","Table of Contents","Table of Contents","Table of Contents","Table of Contents","Table of Contents","Table of Contents","Table of Contents","Table of Contents","Table of Contents","Table of Contents","Table of Contents","Table of Contents","Table of Contents","Table of Contents","Table of Contents","Table of Contents","Table of Contents","Table of Contents","Table of Contents","Table of Contents","Table of Contents","Table of Contents","Table of Contents","Table of Contents","Table of Contents","Table of Contents","Table of Contents","Table of Contents","Table of Contents","Table of Contents","Table of Contents","Table of Contents","Table of Contents","Table of Contents","Table of Contents","Table of Contents","Table of Contents","Table of Contents","Table of Contents","Table of Contents","Table of Contents","Table of Contents","Table of Contents","Table of Contents","Table of Contents","Table of Contents","Table of Contents","Table of Contents","Table of Contents","Table of Contents","Table of Contents","Table of Contents","Table of Contents","Table of Contents","Table of Contents","Table of Contents","Table of Contents","Table of Contents","Table of Contents","Table of Contents","Table of Contents","Table of Contents","Table of Contents","Table of Contents","Table of Contents","Table of Contents","Table of Contents","Table of Contents","Table of Contents","Table of Contents","Table of Contents","Table of Contents","Table of Contents","Table of Contents","Table of Contents","Table of Contents","Table of Contents","Table of Contents","Table of Contents","Table of Contents","Table of Contents","Table of Contents","Table of Contents","Table of Contents","Table of Contents","Table of Contents","Table of Contents","Table of Contents","Table of Contents","Table of Contents","Table of Contents","Table of Contents","Table of Contents","Table of Contents","Table of Contents","Table of Contents","Table of Contents","Table of Contents","Table of Contents","Table of Contents","Table of Contents","Table of Contents","Table of Contents","Table of Contents","Table of Contents","Table of Contents","Table of Contents","Table of Contents","Table of Contents","Table of Contents","Table of Contents","Table of Contents","Table of Contents","Table of Contents","Table of Contents","Table of Contents","Table of Contents","Table of Contents","Table of Contents","Table of Contents","Table of Contents","Table of Contents","Table of Contents","Table of Contents","Table of Contents","Table of Contents","Table of Contents","Table of Contents","Table of Contents","Table of Contents","Table of Contents","Table of Contents","Table of Contents","Table of Contents","Table of Contents","Table of Contents","Table of Contents","Table of Contents","Table of Contents","Table of Contents","Table of Contents","Table of Contents","Table of Contents","Table of Contents","Table of Contents","Table of Contents","Table of Contents","Table of Contents","Table of Contents","Table of Contents","Table of Contents","Table of Contents","Table of Contents","Table of Contents","Table of Contents","Table of Contents","Table of Contents","Table of Contents","Table of Contents","Table of Contents","Table of Contents","Table of Contents","Table of Contents","Table of Contents","Table of Contents","Table of Contents","Table of Contents","Table of Contents","Table of Contents","Table of Contents","Table of Contents","Table of Contents","Table of Contents","Table of Contents","Table of Contents","Table of Contents","Table of Contents","Table of Contents","Table of Contents","Table of Contents","Table of Contents","Table of Contents","Table of Contents","Table of Contents","Table of Contents","Table of Contents","Table of Contents","Table of Contents","Table of Contents","Table of Contents","Table of Contents","Table of Contents","Table of Contents","Table of Contents","Table of Contents","Table of Contents","Table of Contents","Table of Contents","Table of Contents","Table of Contents","Table of Contents","Table of Contents","Table of Contents","Table of Contents","Table of Contents","Table of Contents","Table of Contents","Table of Contents","Table of Contents","Table of Contents","Table of Contents","Table of Contents","Table of Contents","Table of Contents","Table of Contents","Table of Contents","Table of Contents","Table of Contents","Table of Contents","Table of Contents","Table of Contents","Table of Contents","Table of Contents","Table of Contents","Table of Contents","Table of Contents","Table of Contents","Table of Contents","Table of Contents","Table of Contents","Table of Contents","Table of Contents","Table of Contents","Table of Contents","Table of Contents","Table of Contents","Table of Contents","Table of Contents","Table of Contents","Table of Contents","Table of Contents","Table of Contents","Table of Contents","Table of Contents","Table of Contents","Table of Contents","Table of Contents","Table of Contents","Table of Contents","Table of Contents","Table of Contents","Table of Contents","Table of Contents","Table of Contents","Table of Contents","Table of Contents","Table of Contents","Table of Contents","Table of Contents","Table of Contents","Table of Contents","Table of Contents","Table of Contents","Table of Contents","Table of Contents","Table of Contents","Table of Contents","Table of Contents","Table of Contents","Table of Contents","Table of Contents","Table of Contents","Table of Contents","Table of Contents","Table of Contents","Table of Contents","Table of Contents","Table of Contents","Table of Contents","Table of Contents","Table of Contents","Table of Contents","Table of Contents","Table of Contents","Table of Contents","Table of Contents","Table of Contents","Table of Contents","Table of Contents","Table of Contents","Table of Contents","Table of Contents","Table of Contents","Table of Contents","Table of Contents","Table of Contents","Table of Contents","Table of Contents","Table of Contents","Table of Contents","Table of Contents","Table of Contents","Table of Contents","Table of Contents","Table of Contents","Table of Contents","Table of Contents","Table of Contents","Table of Contents","Table of Contents","Table of Contents","Table of Contents","Table of Contents","Table of Contents","Table of Contents","Table of Contents","Table of Contents","Table of Contents","Table of Contents","Table of Contents","Table of Contents","Table of Contents","Table of Contents","Table of Contents","Table of Contents","Table of Contents","Table of Contents","Table of Contents","Table of Contents","Table of Contents","Table of Contents","Table of Contents","Table of Contents","Table of Contents","Table of Contents","Table of Contents","Table of Contents","Table of Contents","Table of Contents","Table of Contents","Table of Contents","Table of Contents","Table of Contents","Table of Contents","Table of Contents","Table of Contents","Table of Contents","Table of Contents","Table of Contents","Table of Contents","Table of Contents","Table of Contents","Table of Contents","Table of Contents","Table of Contents","Table of Contents","Table of Contents","Table of Contents","Table of Contents","Table of Contents","Table of Contents","Table of Contents","Table of Contents","Table of Contents","Table of Contents","Table of Contents","Table of Contents","Table of Contents","Table of Contents","Table of Contents","Table of Contents","Table of Contents","Table of Contents","Table of Contents","Table of Contents","Table of Contents","Table of Contents","Table of Contents","Table of Contents","Table of Contents","Table of Contents","Table of Contents","Table of Contents","Table of Contents","Table of Contents","Table of Contents","Table of Contents","Table of Contents","Table of Contents","Table of Contents","Table of Contents","Table of Contents","Table of Contents","Table of Contents","Table of Contents","Table of Contents","Table of Contents","Table of Contents","Table of Contents","Table of Contents","Table of Contents","Table of Contents","Table of Contents","Table of Contents","Table of Contents","Table of Contents","Table of Contents","Table of Contents","Table of Contents","Table of Contents","Table of Contents","Table of Contents","Table of Contents","Table of Contents","Table of Contents","Table of Contents","Table of Contents","Table of Contents","Table of Contents","Table of Contents","Table of Contents","Table of Contents","Table of Contents","Table of Contents","Table of Contents","Table of Contents","Table of Contents","Table of Contents","Table of Contents","Table of Contents","Table of Contents","Table of Contents","Table of Contents","Table of Contents","Table of Contents","Table of Contents","Table of Contents","Table of Contents","Table of Contents","Table of Contents","Table of Contents","Table of Contents","Table of Contents","Table of Contents","Table of Contents","Table of Contents","Table of Contents","Table of Contents","Table of Contents","Table of Contents","Table of Contents","Table of Contents","Table of Contents","Table of Contents","Table of Contents","Table of Contents","Table of Contents","Table of Contents","Table of Contents","Table of Contents","Table of Contents","Table of Contents","Table of Contents","Table of Contents","Table of Contents","Table of Contents","Table of Contents","Table of Contents","Table of Contents","Table of Contents","Table of Contents","Table of Contents","Table of Contents","Table of Contents","Table of Contents","Table of Contents","Table of Contents","Table of Contents","Table of Contents","Table of Contents","Table of Contents","Table of Contents","Table of Contents","Table of Contents","Table of Contents","Table of Contents","Table of Contents","Table of Contents","Table of Contents","Table of Contents","Table of Contents","Table of Contents","Table of Contents","Table of Contents","Table of Contents","Table of Contents","Table of Contents","Table of Contents","Table of Contents","Table of Contents","Table of Contents","Table of Contents","Table of Contents","Table of Contents","Table of Contents","Table of Contents","Table of Contents","Table of Contents","Table of Contents","Table of Contents","Table of Contents","Table of Contents","Table of Contents","Table of Contents","Table of Contents","Table of Contents","Table of Contents","Table of Contents","Table of Contents","Table of Contents","Table of Contents","Table of Contents","Table of Contents","Table of Contents","Table of Contents","Table of Contents","Table of Contents","Table of Contents","Table of Contents","Table of Contents","Table of Contents","Table of Contents","Table of Contents","Table of Contents","Table of Contents","Table of Contents","Table of Contents","Table of Contents","Table of Contents","Table of Contents","Table of Contents","Table of Contents","Table of Contents","Table of Contents","Table of Contents","Table of Contents","Table of Contents","Table of Contents","Table of Contents","Table of Contents","Table of Contents","Table of Contents","Table of Contents","Table of Contents","Table of Contents","Table of Contents","Table of Contents","Table of Contents","Table of Contents","Table of Contents","Table of Contents","Table of Contents","Table of Contents","Table of Contents","Table of Contents","Table of Contents","Table of Contents","Table of Contents","Table of Contents","Table of Contents","Table of Contents","Table of Contents","Table of Contents","Table of Contents","Table of Contents","Table of Contents","Table of Contents","Table of Contents","Table of Contents","Table of Contents","Table of Contents","Table of Contents","Table of Contents","Table of Contents","Table of Contents","Table of Contents","Table of Contents","Table of Contents","Table of Contents","Table of Contents","Table of Contents","Table of Contents","Table of Contents","Table of Contents","Table of Contents","Table of Contents","Table of Contents","Table of Contents","Table of Contents","Table of Contents","Table of Contents","Table of Contents","Table of Contents","Table of Contents","Table of Contents","Table of Contents","Table of Contents","Table of Contents","Table of Contents","Table of Contents","Table of Contents","Table of Contents","Table of Contents","Table of Contents","Table of Contents","Table of Contents","Table of Contents","Table of Contents","Table of Contents","Table of Contents","Table of Contents","Table of Contents","Table of Contents","Table of Contents","Table of Contents","Table of Contents","Table of Contents","Table of Contents","Table of Contents","Table of Contents","Table of Contents","Table of Contents","Table of Contents","Table of Contents","Table of Contents","Table of Contents","Table of Contents","Table of Contents","Table of Contents","Table of Contents","Table of Contents","Table of Contents","Table of Contents","Table of Contents","Table of Contents","Table of Contents","Table of Contents","Table of Contents","Table of Contents","Table of Contents","Table of Contents","Table of Contents","Table of Contents","Table of Contents","Table of Contents","Table of Contents","Table of Contents","Table of Contents","Table of Contents","Table of Contents","Table of Contents","Table of Contents","Table of Contents","Table of Contents","Table of Contents","Table of Contents","Table of Contents","Table of Contents","Table of Contents","Table of Contents","Table of Contents","Table of Contents","Table of Contents","Table of Contents","Table of Contents","Table of Contents","Table of Contents","Table of Contents","Table of Contents","Table of Contents","Table of Contents","Table of Contents","Table of Contents","Table of Contents","Table of Contents","Table of Contents","Table of Contents","Table of Contents","Table of Contents","Table of Contents","Table of Contents","Table of Contents","Table of Contents","Table of Contents","Table of Contents","Table of Contents","Table of Contents","Table of Contents","Table of Contents","Table of Contents","Table of Contents","Table of Contents","Table of Contents","Table of Contents","Table of Contents","Table of Contents","Table of Contents","Table of Contents","Table of Contents","Table of Contents","Table of Contents","Table of Contents","Table of Contents","Table of Contents","Table of Contents","Table of Contents","Table of Contents","Table of Contents","Table of Contents","Table of Contents","Table of Contents","Table of Contents","Table of Contents","Table of Contents","Table of Contents","Table of Contents","Table of Contents","Table of Contents","Table of Contents","Table of Contents","Table of Contents","Table of Contents","Table of Contents","Table of Contents","Table of Contents","Table of Contents","Table of Contents","Table of Contents","Table of Contents","Table of Contents","Table of Contents","Table of Contents","Table of Contents","Table of Contents","Table of Contents","Table of Contents","Table of Contents","Table of Contents","Table of Contents","Table of Contents","Table of Contents","Table of Contents","Table of Contents","Table of Contents","Table of Contents","Table of Contents","Table of Contents","Table of Contents","Table of Contents","Table of Contents","Table of Contents","Table of Contents","Table of Contents","Table of Contents","Table of Contents","Table of Contents","Table of Contents","Table of Contents","Table of Contents","Table of Contents","Table of Contents","Table of Contents","Table of Contents","Table of Contents","Table of Contents","Table of Contents","Table of Contents","Table of Contents","Table of Contents","Table of Contents","Table of Contents","Table of Contents","Table of Contents","Table of Contents","Table of Contents","Table of Contents","Table of Contents","Table of Contents","Table of Contents","Table of Contents","Table of Contents","Table of Contents","Table of Contents","Table of Contents","Table of Contents","Table of Contents","Table of Contents","Table of Contents","Table of Contents","Table of Contents","Table of Contents","Table of Contents","Table of Contents","Table of Contents","Table of Contents","Table of Contents","Table of Contents","Table of Contents","Table of Contents","Table of Contents","Table of Contents","Table of Contents","Table of Contents","Table of Contents","Table of Contents","Table of Contents","Table of Contents","Table of Contents","Table of Contents","Table of Contents","Table of Contents","Table of Contents","Table of Contents","Table of Contents","Table of Contents","Table of Contents","Table of Contents","Table of Contents","Table of Contents","Table of Contents","Table of Contents","Table of Contents","Table of Contents","Table of Contents","Table of Contents","Table of Contents","Table of Contents","Table of Contents","Table of Contents","Table of Contents","Table of Contents","Table of Contents","Table of Contents","Table of Contents","Table of Contents","Table of Contents","Table of Contents","Table of Contents","Table of Contents","Table of Contents","Table of Contents","Table of Contents","Table of Contents","Table of Contents","Table of Contents","Table of Contents","Table of Contents","Table of Contents","Table of Contents","Table of Contents","Table of Contents","Table of Contents","Table of Contents","Table of Contents","Table of Contents","Table of Contents","Table of Contents","Table of Contents","Table of Contents","Table of Contents","Table of Contents","Table of Contents","Table of Contents","Table of Contents","Table of Contents","Table of Contents","Table of Contents","Table of Contents","Table of Contents","Table of Contents","Table of Contents","Table of Contents","Table of Contents","Table of Contents","Table of Contents","Table of Contents","Table of Contents","Table of Contents","Table of Contents","Table of Contents","Table of Contents","Table of Contents","Table of Contents","Table of Contents","Table of Contents","Table of Contents","Table of Contents","Table of Contents","Table of Contents","Table of Contents","Table of Contents","Table of Contents","Table of Contents","Table of Contents","Table of Contents","Table of Contents","Table of Contents","Table of Contents","Table of Contents","Table of Contents","Table of Contents","Table of Contents","Table of Contents","Table of Contents","Table of Contents","Table of Contents","Table of Contents","Table of Contents","Table of Contents","Table of Contents","Table of Contents","Table of Contents","Table of Contents","Table of Contents","Table of Contents","Table of Contents","Table of Contents","Table of Contents","Table of Contents","Table of Contents","Table of Contents","Table of Contents","Table of Contents","Table of Contents","Table of Contents","Table of Contents","Table of Contents","Table of Contents","Table of Contents","Table of Contents","Table of Contents","Table of Contents","Table of Contents","Table of Contents","Table of Contents","Table of Contents","Table of Contents","Table of Contents","Table of Contents","Table of Contents","Table of Contents","Table of Contents","Table of Contents","Table of Contents","Table of Contents","Table of Contents","Table of Contents","Table of Contents","Table of Contents","Table of Contents","Table of Contents","Table of Contents","Table of Contents","Table of Contents","Table of Contents","Table of Contents","Table of Contents","Table of Contents","Table of Contents","Table of Contents","Table of Contents","Table of Contents","Table of Contents","Table of Contents","Table of Contents","Table of Contents","Table of Contents","Table of Contents","Table of Contents","Table of Contents","Table of Contents","Table of Contents","Table of Contents","Table of Contents","Table of Contents","Table of Contents","Table of Contents","Table of Contents","Table of Contents","Table of Contents","Table of Contents","Table of Contents","Table of Contents","Table of Contents","Table of Contents","Table of Contents","Table of Contents","Table of Contents","Table of Contents","Table of Contents","Table of Contents","Table of Contents","Table of Contents","Table of Contents","Table of Contents","Table of Contents","Table of Contents","Table of Contents","Table of Contents","Table of Contents","Table of Contents","Table of Contents","Table of Contents","Table of Contents","Table of Contents","Table of Contents","Table of Contents","Table of Contents","Table of Contents","Table of Contents","Table of Contents","Table of Contents","Table of Contents","Table of Contents","Table of Contents","Table of Contents","Table of Contents","Table of Contents","Table of Contents","Table of Contents","Table of Contents","Table of Contents","Table of Contents","Table of Contents","Table of Contents","Table of Contents","Table of Contents","Table of Contents","Table of Contents","Table of Contents","Table of Contents","Table of Contents","Table of Contents","Table of Contents","Table of Contents","Table of Contents","Table of Contents","Table of Contents","Table of Contents","Table of Contents","Table of Contents","Table of Contents","Table of Contents","Table of Contents","Table of Contents","Table of Contents","Table of Contents","Table of Contents","Table of Contents","Table of Contents","Table of Contents","Table of Contents","Table of Contents","Table of Contents","Table of Contents","Table of Contents","Table of Contents","Table of Contents","Table of Contents","Table of Contents","Table of Contents","Table of Contents","Table of Contents","Table of Contents","Table of Contents","Table of Contents","Table of Contents","Table of Contents","Table of Contents","Table of Contents","Table of Contents","Table of Contents","Table of Contents","Table of Contents","Table of Contents","Table of Contents","Table of Contents","Table of Contents","Table of Contents","Table of Contents","Table of Contents","Table of Contents","Table of Contents","Table of Contents","Table of Contents","Table of Contents","Table of Contents","Table of Contents","Table of Contents","Table of Contents","Table of Contents","Table of Contents","Table of Contents","Table of Contents","Table of Contents","Table of Contents","Table of Contents","Table of Contents","Table of Contents","Table of Contents","Table of Contents","Table of Contents","Table of Contents","Table of Contents","Table of Contents","Table of Contents","Table of Contents","Table of Contents","Table of Contents","Table of Contents","Table of Contents","Table of Contents","Table of Contents","Table of Contents","Table of Contents","Table of Contents","Table of Contents","Table of Contents","Table of Contents","Table of Contents","Table of Contents","Table of Contents","Table of Contents","Table of Contents","Table of Contents","Table of Contents","Table of Contents","Table of Contents","Table of Contents","Table of Contents","Table of Contents","Table of Contents","Table of Contents","Table of Contents","Table of Contents","Table of Contents","Table of Contents","Table of Contents","Table of Contents","Table of Contents","Table of Contents","Table of Contents","Table of Contents","Table of Contents","Table of Contents","Table of Contents","Table of Contents","Table of Contents","Table of Contents","Table of Contents","Table of Contents","Table of Contents","Table of Contents","Table of Contents","Table of Contents","Table of Contents","Table of Contents","Table of Contents","Table of Contents","Table of Contents","Table of Contents","Table of Contents","Table of Contents","Table of Contents","Table of Contents","Table of Contents","Table of Contents","Table of Contents","Table of Contents","Table of Contents","Table of Contents","Table of Contents","Table of Contents","Table of Contents","Table of Contents","Table of Contents","Table of Contents","Table of Contents","Table of Contents","Table of Contents","Table of Contents","Table of Contents","Table of Contents","Table of Contents","Table of Contents","Table of Contents","Table of Contents","Table of Contents","Table of Contents","Table of Contents","Table of Contents","Table of Contents","Table of Contents","Table of Contents","Table of Contents","Table of Contents","Table of Contents","Table of Contents","Table of Contents","Table of Contents","Table of Contents","Table of Contents","Table of Contents","Table of Contents","Table of Contents","Table of Contents","Table of Contents","Table of Contents","Table of Contents","Table of Contents","Table of Contents","Table of Contents","Table of Contents","Table of Contents","Table of Contents","Table of Contents","Table of Contents","Table of Contents","Table of Contents","Table of Contents","Table of Contents","Table of Contents","Table of Contents","Table of Contents","Table of Contents","Table of Contents","Table of Contents","Table of Contents","Table of Contents","Table of Contents","Table of Contents","Table of Contents","Table of Contents","Table of Contents","Table of Contents","Table of Contents","Table of Contents","Table of Contents","Table of Contents","Table of Contents","Table of Contents","Table of Contents","Table of Contents","Table of Contents","Table of Contents","Table of Contents","Table of Contents","Table of Contents","Table of Contents","Table of Contents","Table of Contents","Table of Contents","Table of Contents","Table of Contents","Table of Contents","Table of Contents","Table of Contents","Table of Contents","Table of Contents","Table of Contents","Table of Contents","Table of Contents","Table of Contents","Table of Contents","Table of Contents","Table of Contents","Table of Contents","Table of Contents","Table of Contents","Table of Contents","Table of Contents","Table of Contents","Table of Contents","Table of Contents","Table of Contents","Table of Contents","Table of Contents","Table of Contents","Table of Contents","Table of Contents","Table of Contents","Table of Contents","Table of Contents","Table of Contents","Table of Contents","Table of Contents","Table of Contents","Table of Contents","Table of Contents","Table of Contents","Table of Contents","Table of Contents","Table of Contents","Table of Contents","Table of Contents","Table of Contents","Table of Contents","Table of Contents","Table of Contents","Table of Contents","Table of Contents","Table of Contents","Table of Contents","Table of Contents","Table of Contents","Table of Contents","Table of Contents","Table of Contents","Table of Contents","Table of Contents","Table of Contents","Table of Contents","Table of Contents","Table of Contents","Table of Contents","Table of Contents","Table of Contents","Table of Contents","Table of Contents","Table of Contents","Table of Contents","Table of Contents","Table of Contents","Table of Contents","Table of Contents","Table of Contents","Table of Contents","Table of Contents","Table of Contents","Table of Contents","Table of Contents","Table of Contents","Table of Contents","Table of Contents","Table of Contents","Table of Contents","Table of Contents","Table of Contents","Table of Contents","Table of Contents","Table of Contents","Table of Contents","Table of Contents","Table of Contents","Table of Contents","Table of Contents","Table of Contents","Table of Contents","Table of Contents","Table of Contents","Table of Contents","Table of Contents","Table of Contents","Table of Contents","Table of Contents","Table of Contents","Table of Contents","Table of Contents","Table of Contents","Table of Contents","Table of Contents","Table of Contents","Table of Contents","Table of Contents","Table of Contents","Table of Contents","Table of Contents","Table of Contents","Table of Contents","Table of Contents","Table of Contents","Table of Contents","Table of Contents","Table of Contents","Table of Contents","Table of Contents","Table of Contents","Table of Contents","Table of Contents","Table of Contents","Table of Contents","Table of Contents","Table of Contents","Table of Contents","Table of Contents","Table of Contents","Table of Contents","Table of Contents","Table of Contents","Table of Contents","Table of Contents","Table of Contents","Table of Contents","Table of Contents","Table of Contents","Table of Contents","Table of Contents","Table of Contents","Table of Contents","Table of Contents","Table of Contents","Table of Contents","Table of Contents","Table of Contents","Table of Contents","Table of Contents","Table of Contents","Table of Contents","Table of Contents","Table of Contents","Table of Contents","Table of Contents","Table of Contents","Table of Contents","Table of Contents","Table of Contents","Table of Contents","Table of Contents","Table of Contents","Table of Contents","Table of Contents","Table of Contents","Table of Contents","Table of Contents","Table of Contents","Table of Contents","Table of Contents","Table of Contents","Table of Contents","Table of Contents","Table of Contents","Table of Contents","Table of Contents","Table of Contents","Table of Contents","Table of Contents","Table of Contents","Table of Contents","Table of Contents","Table of Contents","Table of Contents","Table of Contents","Table of Contents","Table of Contents","Table of Contents","Table of Contents","Table of Contents","Table of Contents","Table of Contents","Table of Contents","Table of Contents","Table of Contents","Table of Contents","Table of Contents","Table of Contents","Table of Contents","Table of Contents","Table of Contents","Table of Contents","Table of Contents","Table of Contents","Table of Contents","Table of Contents","Table of Contents","Table of Contents","Table of Contents","Table of Contents","Table of Contents","Table of Contents","Table of Contents","Table of Contents","Table of Contents","Table of Contents","Table of Contents","Table of Contents","Table of Contents","Table of Contents","Table of Contents","Table of Contents","Table of Contents","Table of Contents","Table of Contents","Table of Contents","Table of Contents","Table of Contents","Table of Contents","Table of Contents","Table of Contents","Table of Contents","Table of Contents","Table of Contents","Table of Contents","Table of Contents","Table of Contents","Table of Contents","Table of Contents","Table of Contents","Table of Contents","Table of Contents","Table of Contents","Table of Contents","Table of Contents","Table of Contents","Table of Contents","Table of Contents","Table of Contents","Table of Contents","Table of Contents","Table of Contents","Table of Contents","Table of Contents","Table of Contents","Table of Contents","Table of Contents","Table of Contents","Table of Contents","Table of Contents","Table of Contents","Table of Contents","Table of Contents","Table of Contents","Table of Contents","Table of Contents","Table of Contents","Table of Contents","Table of Contents","Table of Contents","Table of Contents","Table of Contents","Table of Contents","Table of Contents","Table of Contents","Table of Contents","Table of Contents","Table of Contents","Table of Contents","Table of Contents","Table of Contents","Table of Contents","Table of Contents","Table of Contents","Table of Contents","Table of Contents","Table of Contents","Table of Contents","Table of Contents","Table of Contents","Table of Contents","Table of Contents","Table of Contents","Table of Contents","Table of Contents","Table of Contents","Table of Contents","Table of Contents","Table of Contents","Table of Contents","Table of Contents","Table of Contents","Table of Contents","Table of Contents","Table of Contents","Table of Contents","Table of Contents","Table of Contents","Table of Contents","Table of Contents","Table of Contents","Table of Contents","Table of Contents","Table of Contents","Table of Contents","Table of Contents","Table of Contents","Table of Contents","Table of Contents","Table of Contents","Table of Contents","Table of Contents","Table of Contents","Table of Contents","Table of Contents","Table of Contents","Table of Contents","Table of Contents","Table of Contents","Table of Contents","Table of Contents","Table of Contents","Table of Contents","Table of Contents","Table of Contents","Table of Contents","Table of Contents","Table of Contents","Table of Contents","Table of Contents","Table of Contents","Table of Contents","Table of Contents","Table of Contents","Table of Contents","Table of Contents","Table of Contents","Table of Contents","Table of Contents","Table of Contents","Table of Contents","Table of Contents","Table of Contents","Table of Contents","Table of Contents","Table of Contents","Table of Contents","Table of Contents","Table of Contents","Table of Contents","Table of Contents","Table of Contents","Table of Contents","Table of Contents","Table of Contents","Table of Contents","Table of Contents","Table of Contents","Table of Contents","Table of Contents","Table of Contents","Table of Contents","Table of Contents","Table of Contents","Table of Contents","Table of Contents","Table of Contents","Table of Contents","Table of Contents","Table of Contents","Table of Contents","Table of Contents","Table of Contents","Table of Contents","Table of Contents","Table of Contents","Table of Contents","Table of Contents","Table of Contents","Table of Contents","Table of Contents","Table of Contents","Table of Contents","Table of Contents","Table of Contents","Table of Contents","Table of Contents","Table of Contents","Table of Contents","Table of Contents","Table of Contents","Table of Contents","Table of Contents","Table of Contents","Table of Contents","Table of Contents","Table of Contents","Table of Contents","Table of Contents","Table of Contents","Table of Contents","Table of Contents","Table of Contents","Table of Contents","Table of Contents","Table of Contents","Table of Contents","Table of Contents","Table of Contents","Table of Contents","Table of Contents","Table of Contents","Table of Contents","Table of Contents","Table of Contents","Table of Contents","Table of Contents","Table of Contents","Table of Contents","Table of Contents","Table of Contents","Table of Contents","Table of Contents","Table of Contents","Table of Contents","Table of Contents","Table of Contents","Table of Contents","Table of Contents","Table of Contents","Table of Contents","Table of Contents","Table of Contents","Table of Contents","Table of Contents","Table of Contents","Table of Contents","Table of Contents","Table of Contents","Table of Contents","Table of Contents","Table of Contents","Table of Contents","Table of Contents","Table of Contents","Table of Contents","Table of Contents","Table of Contents","Table of Contents","Table of Contents","Table of Contents","Table of Contents","Table of Contents","Table of Contents","Table of Contents","Table of Contents","Table of Contents","Table of Contents","Table of Contents","Table of Contents","Table of Contents","Table of Contents","Table of Contents","Table of Contents","Table of Contents","Table of Contents","Table of Contents","Table of Contents","Table of Contents","Table of Contents","Table of Contents","Table of Contents","Table of Contents","Table of Contents","Table of Contents","Table of Contents","Table of Contents","Table of Contents","Table of Contents","Table of Contents","Table of Contents","Table of Contents","Table of Contents","Table of Contents","Table of Contents","Table of Contents","Table of Contents","Table of Contents","Table of Contents","Table of Contents","Table of Contents","Table of Contents","Table of Contents","Table of Contents","Table of Contents","Table of Contents","Table of Contents","Table of Contents","Table of Contents","Table of Contents","Table of Contents","Table of Contents","Table of Contents","Table of Contents","Table of Contents","Table of Contents","Table of Contents","Table of Contents","Table of Contents","Table of Contents","Table of Contents","Table of Contents","Table of Contents","Table of Contents","Table of Contents","Table of Contents","Table of Contents","Table of Contents","Table of Contents","Table of Contents","Table of Contents","Table of Contents","Table of Contents","Table of Contents","Table of Contents","Table of Contents","Table of Contents","Table of Contents","Table of Contents","Table of Contents","Table of Contents","Table of Contents","Table of Contents","Table of Contents","Table of Contents","Table of Contents","Table of Contents","Table of Contents","Table of Contents","Table of Contents","Table of Contents","Table of Contents","Table of Contents","Table of Contents","Table of Contents","Table of Contents","Table of Contents","Table of Contents","Table of Contents","Table of Contents","Table of Contents","Table of Contents","Table of Contents","Table of Contents","Table of Contents","Table of Contents","Table of Contents","Table of Contents","Table of Contents","Table of Contents","Table of Contents","Table of Contents","Table of Contents","Table of Contents","Table of Contents","Table of Contents","Table of Contents","Table of Contents","Table of Contents","Table of Contents","Table of Contents","Table of Contents","Table of Contents","Table of Contents","Table of Contents","Table of Contents","Table of Contents","Table of Contents","Table of Contents","Table of Contents","Table of Contents","Table of Contents","Table of Contents","Table of Contents","Table of Contents","Table of Contents","Table of Contents","Table of Contents","Table of Contents","Table of Contents","Table of Contents","Table of Contents","Table of Contents","Table of Contents","Table of Contents","Table of Contents","Table of Contents","Table of Contents","Table of Contents","Table of Contents","Table of Contents","Table of Contents","Table of Contents","Table of Contents","Table of Contents","Table of Contents","Table of Contents","Table of Contents","Table of Contents","Table of Contents","Table of Contents","Table of Contents","Table of Contents","Table of Contents","Table of Contents","Table of Contents","Table of Contents","Table of Contents","Table of Contents","Table of Contents","Table of Contents","Table of Contents","Table of Contents","Table of Contents","Table of Contents","Table of Contents","Table of Contents","Table of Contents","Table of Contents","Table of Contents","Table of Contents","Table of Contents","Table of Contents","Table of Contents","Table of Contents","Table of Contents","Table of Contents","Table of Contents","Table of Contents","Table of Contents","Table of Contents","Table of Contents","Table of Contents","Table of Contents","Table of Contents","Table of Contents","Table of Contents","Table of Contents","Table of Contents","Table of Contents","Table of Contents","Table of Contents","Table of Contents","Table of Contents","Table of Contents","Table of Contents","Table of Contents","Table of Contents","Table of Contents","Table of Contents","Table of Contents","Table of Contents","Table of Contents","Table of Contents","Table of Contents","Table of Contents","Table of Contents","Table of Contents","Table of Contents","Table of Contents","Table of Contents","Table of Contents","Table of Contents","Table of Contents","Table of Contents","Table of Contents","Table of Contents","Table of Contents","Table of Contents","Table of Contents","Table of Contents","Table of Contents","Table of Contents","Table of Contents","Table of Contents","Table of Contents","Table of Contents","Table of Contents","Table of Contents","Table of Contents","Table of Contents","Table of Contents","Table of Contents","Table of Contents","Table of Contents","Table of Contents","Table of Contents","Table of Contents","Table of Contents","Table of Contents","Table of Contents","Table of Contents","Table of Contents","Table of Contents","Table of Contents","Table of Contents","Table of Contents","Table of Contents","Table of Contents","Table of Contents","Table of Contents","Table of Contents","Table of Contents","Table of Contents","Table of Contents","Table of Contents","Table of Contents","Table of Contents","Table of Contents","Table of Contents","Table of Contents","Table of Contents","Table of Contents","Table of Contents","Table of Contents","Table of Contents","Table of Contents","Table of Contents","Table of Contents","Table of Contents","Table of Contents","Table of Contents","Table of Contents","Table of Contents","Table of Contents","Table of Contents","Table of Contents","Table of Contents","Table of Contents","Table of Contents","Table of Contents","Table of Contents","Table of Contents","Table of Contents","Table of Contents","Table of Contents","Table of Contents","Table of Contents","Table of Contents","Table of Contents","Table of Contents","Table of Contents","Table of Contents","Table of Contents","Table of Contents","Table of Contents","Table of Contents","Table of Contents","Table of Contents","Table of Contents","Table of Contents","Table of Contents","Table of Contents","Table of Contents","Table of Contents","Table of Contents","Table of Contents","Table of Contents","Table of Contents","Table of Contents","Table of Contents","Table of Contents","Table of Contents","Table of Contents","Table of Contents","Table of Contents","Table of Contents","Table of Contents","Table of Contents","Table of Contents","Table of Contents","Table of Contents","Table of Contents","Table of Contents","Table of Contents","Table of Contents","Table of Contents","Table of Contents","Table of Contents","Table of Contents","Table of Contents","Table of Contents","Table of Contents","Table of Contents","Table of Contents","Table of Contents","Table of Contents","Table of Contents","Table of Contents","Table of Contents","Table of Contents","Table of Contents","Table of Contents","Table of Contents","Table of Contents","Table of Contents","Table of Contents","Table of Contents","Table of Contents","Table of Contents","Table of Contents","Table of Contents","Table of Contents","Table of Contents","Table of Contents","Table of Contents","Table of Contents","Table of Contents","Table of Contents","Table of Contents","Table of Contents","Table of Contents","Table of Contents","Table of Contents","Table of Contents","Table of Contents","Table of Contents","Table of Contents","Table of Contents","Table of Contents","Table of Contents","Table of Contents","Table of Contents","Table of Contents","Table of Contents","Table of Contents","Table of Contents","Table of Contents","Table of Contents","Table of Contents","Table of Contents","Table of Contents","Table of Contents","Table of Contents","Table of Contents","Table of Contents","Table of Contents","Table of Contents","Table of Contents","Table of Contents","Table of Contents","Table of Contents","Table of Contents","Table of Contents","Table of Contents","Table of Contents","Table of Contents","Table of Contents","Table of Contents","Table of Contents","Table of Contents","Table of Contents","Table of Contents","Table of Contents","Table of Contents","Table of Contents","Table of Contents","Table of Contents","Table of Contents","Table of Contents","Table of Contents","Table of Contents","Table of Contents","Table of Contents","Table of Contents","Table of Contents","Table of Contents","Table of Contents","Table of Contents","Table of Contents","Table of Contents","Table of Contents","Table of Contents","Table of Contents","Table of Contents","Table of Contents","Table of Contents","Table of Contents","Table of Contents","Table of Contents","Table of Contents","Table of Contents","Table of Contents","Table of Contents","Table of Contents","Table of Contents","Table of Contents","Table of Contents","Table of Contents","Table of Contents","Table of Contents","Table of Contents","Table of Contents","Table of Contents","Table of Contents","Table of Contents","Table of Contents","Table of Contents","Table of Contents","Table of Contents","Table of Contents","Table of Contents","Table of Contents","Table of Contents","Table of Contents","Table of Contents","Table of Contents","Table of Contents","Table of Contents","Table of Contents","Table of Contents","Table of Contents","Table of Contents","Table of Contents","Table of Contents","Table of Contents","Table of Contents","Table of Contents","Table of Contents","Table of Contents","Table of Contents","Table of Contents","Table of Contents","Table of Contents","Table of Contents","Table of Contents","Table of Contents","Table of Contents","Table of Contents","Table of Contents","Table of Contents","Table of Contents","Table of Contents","Table of Contents","Table of Contents","Table of Contents","Table of Contents","Table of Contents","Table of Contents","Table of Contents","Table of Contents","Table of Contents","Table of Contents","Table of Contents","Table of Contents","Table of Contents","Table of Contents","Table of Contents","Table of Contents","Table of Contents","Table of Contents","Table of Contents","Table of Contents","Table of Contents","Table of Contents","Table of Contents","Table of Contents","Table of Contents","Table of Contents","Table of Contents","Table of Contents","Table of Contents","Table of Contents","Table of Contents","Table of Contents","Table of Contents","Table of Contents","Table of Contents","Table of Contents","Table of Contents","Table of Contents","Table of Contents","Table of Contents","Table of Contents","Table of Contents","Table of Contents","Table of Contents","Table of Contents","Table of Contents","Table of Contents","Table of Contents","Table of Contents","Table of Contents","Table of Contents","Table of Contents","Table of Contents","Table of Contents","Table of Contents","Table of Contents","Table of Contents","Table of Contents","Table of Contents","Table of Contents","Table of Contents","Table of Contents","Table of Contents","Table of Contents","Table of Contents","Table of Contents","Table of Contents","Table of Contents","Table of Contents","Table of Contents","Table of Contents","Table of Contents","Table of Contents","Table of Contents","Table of Contents","Table of Contents","Table of Contents","Table of Contents","Table of Contents","Table of Contents","Table of Contents","Table of Contents","Table of Contents","Table of Contents","Table of Contents","Table of Contents","Table of Contents","Table of Contents","Table of Contents","Table of Contents","Table of Contents","Table of Contents","Table of Contents","Table of Contents","Table of Contents","Table of Contents","Table of Contents","Table of Contents","Table of Contents","Table of Contents","Table of Contents","Table of Contents","Table of Contents","Table of Contents","Table of Contents","Table of Contents","Table of Contents","Table of Contents","Table of Contents","Table of Contents","Table of Contents","Table of Contents","Table of Contents","Table of Contents","Table of Contents","Table of Contents","Table of Contents","Table of Contents","Table of Contents","Table of Contents","Table of Contents","Table of Contents","Table of Contents","Table of Contents","Table of Contents","Table of Contents","Table of Contents","Table of Contents","Table of Contents","Table of Contents","Table of Contents","Table of Contents","Table of Contents","Table of Contents","Table of Contents","Table of Contents","Table of Contents","Table of Contents","Table of Contents","Table of Contents","Table of Contents","Table of Contents","Table of Contents","Table of Contents","Table of Contents","Table of Contents","Table of Contents","Table of Contents","Table of Contents","Table of Contents","Table of Contents","Table of Contents","Table of Contents","Table of Contents","Table of Contents","Table of Contents","Table of Contents","Table of Contents","Table of Contents","Table of Contents","Table of Contents","Table of Contents","Table of Contents","Table of Contents","Table of Contents","Table of Contents","Table of Contents","Table of Contents","Table of Contents","Table of Contents","Table of Contents","Table of Contents","Table of Contents","Table of Contents","Table of Contents","Table of Contents","Table of Contents","Table of Contents","Table of Contents","Table of Contents","Table of Contents","Table of Contents","Table of Contents","Table of Contents","Table of Contents","Table of Contents","Table of Contents","Table of Contents","Table of Contents","Table of Contents","Table of Contents","Table of Contents","Table of Contents","Table of Contents","Table of Contents","Table of Contents","Table of Contents","Table of Contents","Table of Contents","Table of Contents","Table of Contents","Table of Contents","Table of Contents","Table of Contents","Table of Contents","Table of Contents","Table of Contents","Table of Contents","Table of Contents","Table of Contents","Table of Contents","Table of Contents","Table of Contents","Table of Contents","Table of Contents","Table of Contents","Table of Contents","Table of Contents","Table of Contents","Table of Contents","Table of Contents","Table of Contents","Table of Contents","Table of Contents","Table of Contents","Table of Contents","Table of Contents","Table of Contents","Table of Contents","Table of Contents","Table of Contents","Table of Contents","Table of Contents","Table of Contents","Table of Contents","Table of Contents","Table of Contents","Table of Contents","Table of Contents","Table of Contents","Table of Contents","Table of Contents","Table of Contents","Table of Contents","Table of Contents","Table of Contents","Table of Contents","Table of Contents","Table of Contents","Table of Contents","Table of Contents","Table of Contents","Table of Contents","Table of Contents","Table of Contents","Table of Contents","Table of Contents","Table of Contents","Table of Contents","Table of Contents","Table of Contents","Table of Contents","Table of Contents","Table of Contents","Table of Contents","Table of Contents","Table of Contents","Table of Contents","Table of Contents","Table of Contents","Table of Contents","Table of Contents","Table of Contents","Table of Contents","Table of Contents","Table of Contents","Table of Contents","Table of Contents","Table of Contents","Table of Contents","Table of Contents","Table of Contents","Table of Contents","Table of Contents","Table of Contents","Table of Contents","Table of Contents","Table of Contents","Table of Contents","Table of Contents","Table of Contents","Table of Contents","Table of Contents","Table of Contents","Table of Contents","Table of Contents","Table of Contents","Table of Contents","Table of Contents","Table of Contents","Table of Contents","Table of Contents","Table of Contents","Table of Contents","Table of Contents","Table of Contents","Table of Contents","Table of Contents","Table of Contents","Table of Contents","Table of Contents","Table of Contents","Table of Contents","Table of Contents","Table of Contents","Table of Contents","Table of Contents","Table of Contents","Table of Contents","Table of Contents","Table of Contents","Table of Contents","Table of Contents","Table of Contents","Table of Contents","Table of Contents","Table of Contents","Table of Contents","Table of Contents","Table of Contents","Table of Contents","Table of Contents","Table of Contents","Table of Contents","Table of Contents","Table of Contents","Table of Contents","Table of Contents","Table of Contents","Table of Contents","Table of Contents","Table of Contents","Table of Contents","Table of Contents","Table of Contents","Table of Contents","Table of Contents","Table of Contents","Table of Contents","Table of Contents","Table of Contents","Table of Contents","Table of Contents","Table of Contents","Table of Contents","Table of Contents","Table of Contents","Table of Contents","Table of Contents","Table of Contents","Table of Contents","Table of Contents","Table of Contents","Table of Contents","Table of Contents","Table of Contents","Table of Contents","Table of Contents","Table of Contents","Table of Contents","Table of Contents","Table of Contents","Table of Contents","Table of Contents","Table of Contents","Table of Contents","Table of Contents","Table of Contents","Table of Contents","Table of Contents","Table of Contents","Table of Contents","Table of Contents","Table of Contents","Table of Contents","Table of Contents","Table of Contents","Table of Contents","Table of Contents","Table of Contents","Table of Contents","Table of Contents","Table of Contents","Table of Contents","Table of Contents","Table of Contents","Table of Contents","Table of Contents","Table of Contents","Table of Contents","Table of Contents","Table of Contents","Table of Contents","Table of Contents","Table of Contents","Table of Contents","Table of Contents","Table of Contents","Table of Contents","Table of Contents","Table of Contents","Table of Contents","Table of Contents","Table of Contents","Table of Contents","Table of Contents","Table of Contents","Table of Contents","Table of Contents","Table of Contents","Table of Contents","Table of Contents","Table of Contents","Table of Contents","Table of Contents","Table of Contents","Table of Contents","Table of Contents","Table of Contents","Table of Contents","Table of Contents","Table of Contents","Table of Contents","Table of Contents","Table of Contents","Table of Contents","Table of Contents","Table of Contents","Table of Contents","Table of Contents","Table of Contents","Table of Contents","Table of Contents","Table of Contents","Table of Contents","Table of Contents","Table of Contents","Table of Contents","Table of Contents","Table of Contents","Table of Contents","Table of Contents","Table of Contents","Table of Contents","Table of Contents","Table of Contents","Table of Contents","Table of Contents","Table of Contents","Table of Contents","Table of Contents","Table of Contents","Table of Contents","Table of Contents","Table of Contents","Table of Contents","Table of Contents","Table of Contents","Table of Contents","Table of Contents","Table of Contents","Table of Contents","Table of Contents","Table of Contents","Table of Contents","Table of Contents","Table of Contents","Table of Contents","Table of Contents","Table of Contents","Table of Contents","Table of Contents","Table of Contents","Table of Contents","Table of Contents","Table of Contents","Table of Contents","Table of Contents","Table of Contents","Table of Contents","Table of Contents","Table of Contents","Table of Contents","Table of Contents","Table of Contents","Table of Contents","Table of Contents","Table of Contents","Table of Contents","Table of Contents","Table of Contents","Table of Contents","Table of Contents","Table of Contents","Table of Contents","Table of Contents","Table of Contents","Table of Contents","Table of Contents","Table of Contents","Table of Contents","Table of Contents","Table of Contents","Table of Contents","Table of Contents","Table of Contents","Table of Contents","Table of Contents","Table of Contents","Table of Contents","Table of Contents","Table of Contents","Table of Contents","Table of Contents","Table of Contents","Table of Contents","Table of Contents","Table of Contents","Table of Contents","Table of Contents","Table of Contents","Table of Contents","Table of Contents","Table of Contents","Table of Contents","Table of Contents","Table of Contents","Table of Contents","Table of Contents","Table of Contents","Table of Contents","Table of Contents","Table of Contents","Table of Contents","Table of Contents","Table of Contents","Table of Contents","Table of Contents","Table of Contents","Table of Contents","Table of Contents","Table of Contents","Table of Contents","Table of Contents","Table of Contents","Table of Contents","Table of Contents","Table of Contents","Table of Contents","Table of Contents","Table of Contents","Table of Contents","Table of Contents","Table of Contents","Table of Contents","Table of Contents","Table of Contents","Table of Contents","Table of Contents","Table of Contents","Table of Contents","Table of Contents","Table of Contents","Table of Contents","Table of Contents","Table of Contents","Table of Contents","Table of Contents","Table of Contents","Table of Contents","Table of Contents","Table of Contents","Table of Contents","Table of Contents","Table of Contents","Table of Contents","Table of Contents","Table of Contents","Table of Contents","Table of Contents","Table of Contents","Table of Contents","Table of Contents","Table of Contents","Table of Contents","Table of Contents","Table of Contents","Table of Contents","Table of Contents","Table of Contents","Table of Contents","Table of Contents","Table of Contents","Table of Contents","Table of Contents","Table of Contents","Table of Contents","Table of Contents","Table of Contents","Table of Contents","Table of Contents","Table of Contents","Table of Contents","Table of Contents","Table of Contents","Table of Contents","Table of Contents","Table of Contents","Table of Contents","Table of Contents","Table of Contents","Table of Contents","Table of Contents","Table of Contents","Table of Contents","Table of Contents","Table of Contents","Table of Contents","Table of Contents","Table of Contents","Table of Contents","Table of Contents","Table of Contents","Table of Contents","Table of Contents","Table of Contents","Table of Contents","Table of Contents","Table of Contents","Table of Contents","Table of Contents","Table of Contents","Table of Contents","Table of Contents","Table of Contents","Table of Contents","Table of Contents","Table of Contents","Table of Contents","Table of Contents","Table of Contents","Table of Contents","Table of Contents","Table of Contents","Table of Contents","Table of Contents","Table of Contents","Table of Contents","Table of Contents","Table of Contents","Table of Contents","Table of Contents","Table of Contents","Table of Contents","Table of Contents","Table of Contents","Table of Contents","Table of Contents","Table of Contents","Table of Contents","Table of Contents","Table of Contents","Table of Contents","Table of Contents","Table of Contents","Table of Contents","Table of Contents","Table of Contents","Table of Contents","Table of Contents","Table of Contents","Table of Contents","Table of Contents","Table of Contents","Table of Contents","Table of Contents","Table of Contents","Table of Contents","Table of Contents","Table of Contents","Table of Contents","Table of Contents","Table of Contents","Table of Contents","Table of Contents","Table of Contents","Table of Contents","Table of Contents","Table of Contents","Table of Contents","Table of Contents","Table of Contents","Table of Contents","Table of Contents","Table of Contents","Table of Contents","Table of Contents","Table of Contents","Table of Contents","Table of Contents","Table of Contents","Table of Contents","Table of Contents","Table of Contents","Table of Contents","Table of Contents","Table of Contents","Table of Contents","Table of Contents","Table of Contents","Table of Contents","Table of Contents","Table of Contents","Table of Contents","Table of Contents","Table of Contents","Table of Contents","Table of Contents","Table of Contents","Table of Contents","Table of Contents","Table of Contents","Table of Contents","Table of Contents","Table of Contents","Table of Contents","Table of Contents","Table of Contents","Table of Contents","Table of Contents","Table of Contents","Table of Contents","Table of Contents","Table of Contents","Table of Contents","Table of Contents","Table of Contents","Table of Contents","Table of Contents","Table of Contents","Table of Contents","Table of Contents","Table of Contents","Table of Contents","Table of Contents","Table of Contents","Table of Contents","Table of Contents","Table of Contents","Table of Contents","Table of Contents","Table of Contents","Table of Contents","Table of Contents","Table of Contents","Table of Contents","Table of Contents","Table of Contents","Table of Contents","Table of Contents","Table of Contents","Table of Contents","Table of Contents","Table of Contents","Table of Contents","Table of Contents","Table of Contents","Table of Contents","Table of Contents","Table of Contents","Table of Contents","Table of Contents","Table of Contents","Table of Contents","Table of Contents","Table of Contents","Table of Contents","Table of Contents","Table of Contents","Table of Contents","Table of Contents","Table of Contents","Table of Contents","Table of Contents","Table of Contents","Table of Contents","Table of Contents","Table of Contents","Table of Contents","Table of Contents","Table of Contents","Table of Contents","Table of Contents","Table of Contents","Table of Contents","Table of Contents","Table of Contents","Table of Contents","Table of Contents","Table of Contents","Table of Contents","Table of Contents","Table of Contents","Table of Contents","Table of Contents","Table of Contents","Table of Contents","Table of Contents","Table of Contents","Table of Contents","Table of Contents","Table of Contents","Table of Contents","Table of Contents","Table of Contents","Table of Contents","Table of Contents","Table of Contents","Table of Contents","Table of Contents","Table of Contents","Table of Contents","Table of Contents","Table of Contents","Table of Contents","Table of Contents","Table of Contents","Table of Contents","Table of Contents","Table of Contents","Table of Contents","Table of Contents","Table of Contents","Table of Contents","Table of Contents","Table of Contents","Table of Contents","Table of Contents","Table of Contents","Table of Contents","Table of Contents","Table of Contents","Table of Contents","Table of Contents","Table of Contents","Table of Contents","Table of Contents","Table of Contents","Table of Contents","Table of Contents","Table of Contents","Table of Contents","Table of Contents","Table of Contents","Table of Contents","Table of Contents","Table of Contents","Table of Contents","Table of Contents","Table of Contents","Table of Contents","Table of Contents","Table of Contents","Table of Contents","Table of Contents","Table of Contents","Table of Contents","Table of Contents","Table of Contents","Table of Contents","Table of Contents","Table of Contents","Table of Contents","Table of Contents","Table of Contents","Table of Contents","Table of Contents","Table of Contents","Table of Contents","Table of Contents","Table of Contents","Table of Contents","Table of Contents","Table of Contents","Table of Contents","Table of Contents","Table of Contents","Table of Contents","Table of Contents","Table of Contents","Table of Contents","Table of Contents","Table of Contents","Table of Contents","Table of Contents","Table of Contents","Table of Contents","Table of Contents","Table of Contents","Table of Contents","Table of Contents","Table of Contents","Table of Contents","Table of Contents","Table of Contents","Table of Contents","Table of Contents","Table of Contents","Table of Contents","Table of Contents","Table of Contents","Table of Contents","Table of Contents","Table of Contents","Table of Contents","Table of Contents","Table of Contents","Table of Contents","Table of Contents","Table of Contents","Table of Contents","Table of Contents","Table of Contents","Table of Contents","Table of Contents","Table of Contents","Table of Contents","Table of Contents","Table of Contents","Table of Contents","Table of Contents","Table of Contents","Table of Contents","Table of Contents","Table of Contents","Table of Contents","Table of Contents","Table of Contents","Table of Contents","Table of Contents","Table of Contents","Table of Contents","Table of Contents","Table of Contents","Table of Contents","Table of Contents","Table of Contents","Table of Contents","Table of Contents","Table of Contents","Table of Contents","Table of Contents","Table of Contents","Table of Contents","Table of Contents","Table of Contents","Table of Contents","Table of Contents","Table of Contents","Table of Contents","Table of Contents","Table of Contents","Table of Contents","Table of Contents","Table of Contents","Table of Contents","Table of Contents","Table of Contents","Table of Contents","Table of Contents","Table of Contents","Table of Contents","Table of Contents","Table of Contents","Table of Contents","Table of Contents","Table of Contents","Table of Contents","Table of Contents","Table of Contents","Table of Contents","Table of Contents","Table of Contents","Table of Contents","Table of Contents","Table of Contents","Table of Contents","Table of Contents","Table of Contents","Table of Contents","Table of Contents","Table of Contents","Table of Contents","Table of Contents","Table of Contents","Table of Contents","Table of Contents","Table of Contents","Table of Contents","Table of Contents","Table of Contents","Table of Contents","Table of Contents","Table of Contents","Table of Contents","Table of Contents","Table of Contents","Table of Contents","Table of Contents","Table of Contents","Table of Contents","Table of Contents","Table of Contents","Table of Contents","Table of Contents","Table of Contents","Table of Contents","Table of Contents","Table of Contents","Table of Contents","Table of Contents","Table of Contents","Table of Contents","Table of Contents","Table of Contents","Table of Contents","Table of Contents","Table of Contents","Table of Contents","Table of Contents","Table of Contents","Table of Contents","Table of Contents","Table of Contents","Table of Contents","Table of Contents","Table of Contents","Table of Contents","Table of Contents","Table of Contents","Table of Contents","Table of Contents","Table of Contents","Table of Contents","Table of Contents","Table of Contents","Table of Contents","Table of Contents","Table of Contents","Table of Contents","Table of Contents","Table of Contents","Table of Contents","Table of Contents","Table of Contents","Table of Contents","Table of Contents","Table of Contents","Table of Contents","Table of Contents","Table of Contents","Table of Contents","Table of Contents","Table of Contents","Table of Contents","Table of Contents","Table of Contents","Table of Contents","Table of Contents","Table of Contents","Table of Contents","Table of Contents","Table of Contents","Table of Contents","Table of Contents","Table of Contents","Table of Contents","Table of Contents","Table of Contents","Table of Contents","Table of Contents","Table of Contents","Table of Contents","Table of Contents","Table of Contents","Table of Contents","Table of Contents","Table of Contents","Table of Contents","Table of Contents","Table of Contents","Table of Contents","Table of Contents","Table of Contents","Table of Contents","Table of Contents","Table of Contents","Table of Contents","Table of Contents","Table of Contents","Table of Contents","Table of Contents","Table of Contents","Table of Contents","Table of Contents","Table of Contents","Table of Contents","Table of Contents","Table of Contents","Table of Contents","Table of Contents","Table of Contents","Table of Contents","Table of Contents","Table of Contents","Table of Contents","Table of Contents","Table of Contents","Table of Contents","Table of Contents","Table of Contents","Table of Contents","Table of Contents","Table of Contents","Table of Contents","Table of Contents","Table of Contents","Table of Contents","Table of Contents","Table of Contents","Table of Contents","Table of Contents","Table of Contents","Table of Contents","Table of Contents","Table of Contents","Table of Contents","Table of Contents","Table of Contents","Table of Contents","Table of Contents","Table of Contents","Table of Contents","Table of Contents","Table of Contents","Table of Contents","Table of Contents","Table of Contents","Table of Contents","Table of Contents","Table of Contents","Table of Contents","Table of Contents","Table of Contents","Table of Contents","Table of Contents","Table of Contents","Table of Contents","Table of Contents","Table of Contents","Table of Contents","Table of Contents","Table of Contents","Table of Contents","Table of Contents","Table of Contents","Table of Contents","Table of Contents","Table of Contents","Table of Contents","Table of Contents","Table of Contents","Table of Contents","Table of Contents","Table of Contents","Table of Contents","Table of Contents","Table of Contents","Table of Contents","Table of Contents","Table of Contents","Table of Contents","Table of Contents","Table of Contents","Table of Contents","Table of Contents","Table of Contents","Table of Contents","Table of Contents","Table of Contents","Table of Contents","Table of Contents","Table of Contents","Table of Contents","Table of Contents","Table of Contents","Table of Contents","Table of Contents","Table of Contents","Table of Contents","Table of Contents","Table of Contents","Table of Contents","Table of Contents","Table of Contents","Table of Contents","Table of Contents","Table of Contents","Table of Contents","Table of Contents","Table of Contents","Table of Contents","Table of Contents","Table of Contents","Table of Contents","Table of Contents","Table of Contents","Table of Contents","Table of Contents","Table of Contents","Table of Contents","Table of Contents","Table of Contents","Table of Contents","Table of Contents","Table of Contents","Table of Contents","Table of Contents","Table of Contents","Table of Contents","Table of Contents","Table of Contents","Table of Contents","Table of Contents","Table of Contents","Table of Contents","Table of Contents","Table of Contents","Table of Contents","Table of Contents","Table of Contents","Table of Contents","Table of Contents","Table of Contents","Table of Contents","Table of Contents","Table of Contents","Table of Contents","Table of Contents","Table of Contents","Table of Contents","Table of Contents","Table of Contents","Table of Contents","Table of Contents","Table of Contents","Table of Contents","Table of Contents","Table of Contents","Table of Contents","Table of Contents","Table of Contents","Table of Contents","Table of Contents","Table of Contents","Table of Contents","Table of Contents","Table of Contents","Table of Contents","Table of Contents","Table of Contents","Table of Contents","Table of Contents","Table of Contents","Table of Contents","Table of Contents","Table of Contents","Table of Contents","Table of Contents","Table of Contents","Table of Contents","Table of Contents","Table of Contents","Table of Contents","Table of Contents","Table of Contents","Table of Contents","Table of Contents","Table of Contents","Table of Contents","Table of Contents","Table of Contents","Table of Contents","Table of Contents","Table of Contents","Table of Contents","Table of Contents","Table of Contents","Table of Contents","Table of Contents","Table of Contents","Table of Contents","Table of Contents","Table of Contents","Table of Contents","Table of Contents","Table of Contents","Table of Contents","Table of Contents","Table of Contents","Table of Contents","Table of Contents","Table of Contents","Table of Contents","Table of Contents","Table of Contents","Table of Contents","Table of Contents","Table of Contents","Table of Contents","Table of Contents","Table of Contents","Table of Contents","Table of Contents","Table of Contents","Table of Contents","Table of Contents","Table of Contents","Table of Contents","Table of Contents","Table of Contents","Table of Contents","Table of Contents","Table of Contents","Table of Contents","Table of Contents","Table of Contents","Table of Contents","Table of Contents","Table of Contents","Table of Contents","Table of Contents","Table of Contents","Table of Contents","Table of Contents","Table of Contents","Table of Contents","Table of Contents","Table of Contents","Table of Contents","Table of Contents","Table of Contents","Table of Contents","Table of Contents","Table of Contents","Table of Contents","Table of Contents","Table of Contents","Table of Contents","Table of Contents","Table of Contents","Table of Contents","Table of Contents","Table of Contents","Table of Contents","Table of Contents","Table of Contents","Table of Contents","Table of Contents","Table of Contents","Table of Contents","Table of Contents","Table of Contents","Table of Contents","Table of Contents","Table of Contents","Table of Contents","Table of Contents","Table of Contents","Table of Contents","Table of Contents","Table of Contents","Table of Contents","Table of Contents","Table of Contents","Table of Contents","Table of Contents","Table of Contents","Table of Contents","Table of Contents","Table of Contents","Table of Contents","Table of Contents","Table of Contents","Table of Contents","Table of Contents","Table of Contents","Table of Contents","Table of Contents","Table of Contents","Table of Contents","Table of Contents","Table of Contents","Table of Contents","Table of Contents","Table of Contents","Table of Contents","Table of Contents","Table of Contents","Table of Contents","Table of Contents","Table of Contents","Table of Contents","Table of Contents","Table of Contents","Table of Contents","Table of Contents","Table of Contents","Table of Contents","Table of Contents","Table of Contents","Table of Contents","Table of Contents","Table of Contents","Table of Contents","Table of Contents","Table of Contents","Table of Contents","Table of Contents","Table of Contents","Table of Contents","Table of Contents","Table of Contents","Table of Contents","Table of Contents","Table of Contents","Table of Contents","Table of Contents","Table of Contents","Table of Contents","Table of Contents","Table of Contents","Table of Contents","Table of Contents","Table of Contents","Table of Contents","Table of Contents","Table of Contents","Table of Contents","Table of Contents","Table of Contents","Table of Contents","Table of Contents","Table of Contents","Table of Contents","Table of Contents","Table of Contents","Table of Contents","Table of Contents","Table of Contents","Table of Contents","Table of Contents","Table of Contents","Table of Contents","Table of Contents","Table of Contents","Table of Contents","Table of Contents","Table of Contents","Table of Contents","Table of Contents","Table of Contents","Table of Contents","Table of Contents","Table of Contents","Table of Contents","Table of Contents","Table of Contents","Table of Contents","Table of Contents","Table of Contents","Table of Contents","Table of Contents","Table of Contents","Table of Contents","Table of Contents","Table of Contents","Table of Contents","Table of Contents","Table of Contents","Table of Contents","Table of Contents","Table of Contents","Table of Contents","Table of Contents","Table of Contents","Table of Contents","Table of Contents","Table of Contents","Table of Contents","Table of Contents","Table of Contents","Table of Contents","Table of Contents","Table of Contents","Table of Contents","Table of Contents","Table of Contents","Table of Contents","Table of Contents","Table of Contents","Table of Contents","Table of Contents","Table of Contents","Table of Contents","Table of Contents","Table of Contents","Table of Contents","Table of Contents","Table of Contents","Table of Contents","Table of Contents","Table of Contents","Table of Contents","Table of Contents","Table of Contents","Table of Contents","Table of Contents","Table of Contents","Table of Contents","Table of Contents","Table of Contents","Table of Contents","Table of Contents","Table of Contents","Table of Contents","Table of Contents","Table of Contents","Table of Contents","Table of Contents","Table of Contents","Table of Contents","Table of Contents","Table of Contents","Table of Contents","Table of Contents","Table of Contents","Table of Contents","Table of Contents","Table of Contents","Table of Contents","Table of Contents","Table of Contents","Table of Contents","Table of Contents","Table of Contents","Table of Contents","Table of Contents","Table of Contents","Table of Contents","Table of Contents","Table of Contents","Table of Contents","Table of Contents","Table of Contents","Table of Contents","Table of Contents","Table of Contents","Table of Contents","Table of Contents","Table of Contents","Table of Contents","Table of Contents","Table of Contents","Table of Contents","Table of Contents","Table of Contents","Table of Contents","Table of Contents","Table of Contents","Table of Contents","Table of Contents","Table of Contents","Table of Contents","Table of Contents","Table of Contents","Table of Contents","Table of Contents","Table of Contents","Table of Contents","Table of Contents","Table of Contents","Table of Contents","Table of Contents","Table of Contents","Table of Contents","Table of Contents","Table of Contents","Table of Contents","Table of Contents","Table of Contents","Table of Contents","Table of Contents","Table of Contents","Table of Contents","Table of Contents","Table of Contents","Table of Contents","Table of Contents","Table of Contents","Table of Contents","Table of Contents","Table of Contents","Table of Contents","Table of Contents","Table of Contents","Table of Contents","Table of Contents","Table of Contents","Table of Contents","Table of Contents","Table of Contents","Table of Contents","Table of Contents","Table of Contents","Table of Contents","Table of Contents","Table of Contents","Table of Contents","Table of Contents","Table of Contents","Table of Contents","Table of Contents","Table of Contents","Table of Contents","Table of Contents","Table of Contents","Table of Contents","Table of Contents","Table of Contents","Table of Contents","Table of Contents","Table of Contents","Table of Contents","Table of Contents","Table of Contents","Table of Contents","Table of Contents","Table of Contents","Table of Contents","Table of Contents","Table of Contents","Table of Contents","Table of Contents","Table of Contents","Table of Contents","Table of Contents","Table of Contents","Table of Contents","Table of Contents","Table of Contents","Table of Contents","Table of Contents","Table of Contents","Table of Contents","Table of Contents","Table of Contents","Table of Contents","Table of Contents","Table of Contents","Table of Contents","Table of Contents","Table of Contents","Table of Contents","Table of Contents","Table of Contents","Table of Contents","Table of Contents","Table of Contents","Table of Contents","Table of Contents","Table of Contents","Table of Contents","Table of Contents","Table of Contents","Table of Contents","Table of Contents","Table of Contents","Table of Contents","Table of Contents","Table of Contents","Table of Contents","Table of Contents","Table of Contents","Table of Contents","Table of Contents","Table of Contents","Table of Contents","Table of Contents","Table of Contents","Table of Contents","Table of Contents","Table of Contents","Table of Contents","Table of Contents","Table of Contents","Table of Contents","Table of Contents","Table of Contents","Table of Contents","Table of Contents","Table of Contents","Table of Contents","Table of Contents","Table of Contents","Table of Contents","Table of Contents","Table of Contents","Table of Contents","Table of Contents","Table of Contents","Table of Contents","Table of Contents","Table of Contents","Table of Contents","Table of Contents","Table of Contents","Table of Contents","Table of Contents","Table of Contents","Table of Contents","Table of Contents","Table of Contents","Table of Contents","Table of Contents","Table of Contents","Table of Contents","Table of Contents","Table of Contents","Table of Contents","Table of Contents","Table of Contents","Table of Contents","Table of Contents","Table of Contents","Table of Contents","Table of Contents","Table of Contents","Table of Contents","Table of Contents","Table of Contents","Table of Contents","Table of Contents","Table of Contents","Table of Contents","Table of Contents","Table of Contents","Table of Contents","Table of Contents","Table of Contents","Table of Contents","Table of Contents","Table of Contents","Table of Contents","Table of Contents","Table of Contents","Table of Contents","Table of Contents","Table of Contents","Table of Contents","Table of Contents","Table of Contents","Table of Contents","Table of Contents","Table of Contents","Table of Contents","Table of Contents","Table of Contents","Table of Contents","Table of Contents","Table of Contents","Table of Contents","Table of Contents","Table of Contents","Table of Contents","Table of Contents","Table of Contents","Table of Contents","Table of Contents","Table of Contents","Table of Contents","Table of Contents","Table of Contents","Table of Contents","Table of Contents","Table of Contents","Table of Contents","Table of Contents","Table of Contents","Table of Contents","Table of Contents","Table of Contents","Table of Contents","Table of Contents","Table of Contents","Table of Contents","Table of Contents","Table of Contents","Table of Contents","Table of Contents","Table of Contents","Table of Contents","Table of Contents","Table of Contents","Table of Contents","Table of Contents","Table of Contents","Table of Contents","Table of Contents","Table of Contents","Table of Contents","Table of Contents","Table of Contents","Table of Contents","Table of Contents","Table of Contents","Table of Contents","Table of Contents","Table of Contents","Table of Contents","Table of Contents","Table of Contents","Table of Contents","Table of Contents","Table of Contents","Table of Contents","Table of Contents","Table of Contents","Table of Contents","Table of Contents","Table of Contents","Table of Contents","Table of Contents","Table of Contents","Table of Contents","Table of Contents","Table of Contents","Table of Contents","Table of Contents","Table of Contents","Table of Contents","Table of Contents","Table of Contents","Table of Contents","Table of Contents","Table of Contents","Table of Contents","Table of Contents","Table of Contents","Table of Contents","Table of Contents","Table of Contents","Table of Contents","Table of Contents","Table of Contents","Table of Contents","Table of Contents","Table of Contents","Table of Contents","Table of Contents","Table of Contents","Table of Contents","Table of Contents","Table of Contents","Table of Contents","Table of Contents","Table of Contents","Table of Contents","Table of Contents","Table of Contents","Table of Contents","Table of Contents","Table of Contents","Table of Contents","Table of Contents","Table of Contents","Table of Contents","Table of Contents","Table of Contents","Table of Contents","Table of Contents","Table of Contents","Table of Contents","Table of Contents","Table of Contents","Table of Contents","Table of Contents","Table of Contents","Table of Contents","Table of Contents","Table of Contents","Table of Contents","Table of Contents","Table of Contents","Table of Contents","Table of Contents","Table of Contents","Table of Contents","Table of Contents","Table of Contents","Table of Contents","Table of Contents","Table of Contents","Table of Contents","Table of Contents","Table of Contents","Table of Contents","Table of Contents","Table of Contents","Table of Contents","Table of Contents","Table of Contents","Table of Contents","Table of Contents","Table of Contents","Table of Contents","Table of Contents","Table of Contents","Table of Contents","Table of Contents","Table of Contents","Table of Contents","Table of Contents","Table of Contents","Table of Contents","Table of Contents","Table of Contents","Table of Contents","Table of Contents","Table of Contents","Table of Contents","Table of Contents","Table of Contents","Table of Contents","Table of Contents","Table of Contents","Table of Contents","Table of Contents","Table of Contents","Table of Contents","Table of Contents","Table of Contents","Table of Contents","Table of Contents","Table of Contents","Table of Contents","Table of Contents","Table of Contents","Table of Contents","Table of Contents","Table of Contents","Table of Contents","Table of Contents","Table of Contents","Table of Contents","Table of Contents","Table of Contents","Table of Contents","Table of Contents","Table of Contents","Table of Contents","Table of Contents","Table of Contents","Table of Contents","Table of Contents","Table of Contents","Table of Contents","Table of Contents","Table of Contents","Table of Contents","Table of Contents","Table of Contents","Table of Contents","Table of Contents","Table of Contents","Table of Contents","Table of Contents","Table of Contents","Table of Contents","Table of Contents","Table of Contents","Table of Contents","Table of Contents","Table of Contents","Table of Contents","Table of Contents","Table of Contents","Table of Contents","Table of Contents","Table of Contents","Table of Contents","Table of Contents","Table of Contents","Table of Contents","Table of Contents","Table of Contents","Table of Contents","Table of Contents","Table of Contents","Table of Contents","Table of Contents","Table of Contents","Table of Contents","Table of Contents","Table of Contents","Table of Contents","Table of Contents","Table of Contents","Table of Contents","Table of Contents","Table of Contents","Table of Contents","Table of Contents","Table of Contents","Table of Contents","Table of Contents","Table of Contents","Table of Contents","Table of Contents","Table of Contents","Table of Contents","Table of Contents","Table of Contents","Table of Contents","Table of Contents","Table of Contents","Table of Contents","Table of Contents","Table of Contents","Table of Contents","Table of Contents","Table of Contents","Table of Contents","Table of Contents","Table of Contents","Table of Contents","Table of Contents","Table of Contents","Table of Contents","Table of Contents","Table of Contents","Table of Contents","Table of Contents","Table of Contents","Table of Contents","Table of Contents","Table of Contents","Table of Contents","Table of Contents","Table of Contents","Table of Contents","Table of Contents","Table of Contents","Table of Contents","Table of Contents","Table of Contents","Table of Contents","Table of Contents","Table of Contents","Table of Contents","Table of Contents","Table of Contents","Table of Contents","Table of Contents","Table of Contents","Table of Contents","Table of Contents","Table of Contents","Table of Contents","Table of Contents","Table of Contents","Table of Contents","Table of Contents","Table of Contents","Table of Contents","Table of Contents","Table of Contents","Table of Contents","Table of Contents","Table of Contents","Table of Contents","Table of Contents","Table of Contents","Table of Contents","Table of Contents","Table of Contents","Table of Contents","Table of Contents","Table of Contents","Table of Contents","Table of Contents","Table of Contents","Table of Contents","Table of Contents","Table of Contents","Table of Contents","Table of Contents","Table of Contents","Table of Contents","Table of Contents","Table of Contents","Table of Contents","Table of Contents","Table of Contents","Table of Contents","Table of Contents","Table of Contents","Table of Contents","Table of Contents","Table of Contents","Table of Contents","Table of Contents","Table of Contents","Table of Contents","Table of Contents","Table of Contents","Table of Contents","Table of Contents","Table of Contents","Table of Contents","Table of Contents","Table of Contents","Table of Contents","Table of Contents","Table of Contents","Table of Contents","Table of Contents","Table of Contents","Table of Contents","Table of Contents","Table of Contents","Table of Contents","Table of Contents","Table of Contents","Table of Contents","Table of Contents","Table of Contents","Table of Contents","Table of Contents","Table of Contents","Table of Contents","Table of Contents","Table of Contents","Table of Contents","Table of Contents","Table of Contents","Table of Contents","Table of Contents","Table of Contents","Table of Contents","Table of Contents","Table of Contents","Table of Contents","Table of Contents","Table of Contents","Table of Contents","Table of Contents","Table of Contents","Table of Contents","Table of Contents","Table of Contents","Table of Contents","Table of Contents","Table of Contents","Table of Contents","Table of Contents","Table of Contents","Table of Contents","Table of Contents","Table of Contents","Table of Contents","Table of Contents","Table of Contents","Table of Contents","Table of Contents","Table of Contents","Table of Contents","Table of Contents","Table of Contents","Table of Contents","Table of Contents","Table of Contents","Table of Contents","Table of Contents","Table of Contents","Table of Contents","Table of Contents","Table of Contents","Table of Contents","Table of Contents","Table of Contents","Table of Contents","Table of Contents","Table of Contents","Table of Contents","Table of Contents","Table of Contents","Table of Contents","Table of Contents","Table of Contents","Table of Contents","Table of Contents","Table of Contents","Table of Contents","Table of Contents","Table of Contents","Table of Contents","Table of Contents","Table of Contents","Table of Contents","Table of Contents","Table of Contents","Table of Contents","Table of Contents","Table of Contents","Table of Contents","Table of Contents","Table of Contents","Table of Contents","Table of Contents","Table of Contents","Table of Contents","Table of Contents","Table of Contents","Table of Contents","Table of Contents","Table of Contents","Table of Contents","Table of Contents","Table of Contents","Table of Contents","Table of Contents","Table of Contents","Table of Contents","Table of Contents","Table of Contents","Table of Contents","Table of Contents","Table of Contents","Table of Contents","Table of Contents","Table of Contents","Table of Contents","Table of Contents","Table of Contents","Table of Contents","Table of Contents","Table of Contents","Table of Contents","Table of Contents","Table of Contents","Table of Contents","Table of Contents","Table of Contents","Table of Contents","Table of Contents","Table of Contents","Table of Contents","Table of Contents","Table of Contents","Table of Contents","Table of Contents","Table of Contents","Table of Contents","Table of Contents","Table of Contents","Table of Contents","Table of Contents","Table of Contents","Table of Contents","Table of Contents","Table of Contents","Table of Contents","Table of Contents","Table of Contents","Table of Contents","Table of Contents","Table of Contents","Table of Contents","Table of Contents","Table of Contents","Table of Contents","Table of Contents","Table of Contents","Table of Contents","Table of Contents","Table of Contents","Table of Contents","Table of Contents","Table of Contents","Table of Contents","Table of Contents","Table of Contents","Table of Contents","Table of Contents","Table of Contents","Table of Contents","Table of Contents","Table of Contents","Table of Contents","Table of Contents","Table of Contents","Table of Contents","Table of Contents","Table of Contents","Table of Contents","Table of Contents","Table of Contents","Table of Contents","Table of Contents","Table of Contents","Table of Contents","Table of Contents","Table of Contents","Table of Contents","Table of Contents","Table of Contents","Table of Contents","Table of Contents","Table of Contents","Table of Contents","Table of Contents","Table of Contents","Table of Contents","Table of Contents","Table of Contents","Table of Contents","Table of Contents","Table of Contents","Table of Contents","Table of Contents","Table of Contents","Table of Contents","Table of Contents","Table of Contents","Table of Contents","Table of Contents","Table of Contents","Table of Contents","Table of Contents","Table of Contents","Table of Contents","Table of Contents","Table of Contents","Table of Contents","Table of Contents","Table of Contents","Table of Contents","Table of Contents","Table of Contents","Table of Contents","Table of Contents","Table of Contents","Table of Contents","Table of Contents","Table of Contents","Table of Contents","Table of Contents","Table of Contents","Table of Contents","Table of Contents","Table of Contents","Table of Contents","Table of Contents","Table of Contents","Table of Contents","Table of Contents","Table of Contents","Table of Contents","Table of Contents","Table of Contents","Table of Contents","Table of Contents","Table of Contents","Table of Contents","Table of Contents","Table of Contents","Table of Contents","Table of Contents","Table of Contents","Table of Contents","Table of Contents","Table of Contents","Table of Contents","Table of Contents","Table of Contents","Table of Contents","Table of Contents","Table of Contents","Table of Contents","Table of Contents","Table of Contents","Table of Contents","Table of Contents","Table of Contents","Table of Contents","Table of Contents","Table of Contents","Table of Contents","Table of Contents","Table of Contents","Table of Contents","Table of Contents","Table of Contents","Table of Contents","Table of Contents","Table of Contents","Table of Contents","Table of Contents","Table of Contents","Table of Contents","Table of Contents","Table of Contents","Table of Contents","Table of Contents","Table of Contents","Table of Contents","Table of Contents","Table of Contents","Table of Contents","Table of Contents","Table of Contents","Table of Contents","Table of Contents","Table of Contents","Table of Contents","Table of Contents","Table of Contents","Table of Contents","Table of Contents","Table of Contents","Table of Contents","Table of Contents","Table of Contents","Table of Contents","Table of Contents","Table of Contents","Table of Contents","Table of Contents","Table of Contents","Table of Contents","Table of Contents","Table of Contents","Table of Contents","Table of Contents","Table of Contents","Table of Contents","Table of Contents","Table of Contents","Table of Contents","Table of Contents","Table of Contents","Table of Contents","Table of Contents","Table of Contents","Table of Contents","Table of Contents","Table of Contents","Table of Contents","Table of Contents","Table of Contents","Table of Contents","Table of Contents","Table of Contents","Table of Contents","Table of Contents","Table of Contents","Table of Contents","Table of Contents","Table of Contents","Table of Contents","Table of Contents","Table of Contents","Table of Contents","Table of Contents","Table of Contents","Table of Contents","Table of Contents","Table of Contents","Table of Contents","Table of Contents","Table of Contents","Table of Contents","Table of Contents","Table of Contents","Table of Contents","Table of Contents","Table of Contents","Table of Contents","Table of Contents","Table of Contents","Table of Contents","Table of Contents","Table of Contents","Table of Contents","Table of Contents","Table of Contents","Table of Contents","Table of Contents","Table of Contents","Table of Contents","Table of Contents","Table of Contents","Table of Contents","Table of Contents","Table of Contents","Table of Contents","Table of Contents","Table of Contents","Table of Contents","Table of Contents","Table of Contents","Table of Contents","Table of Contents","Table of Contents","Table of Contents","Table of Contents","Table of Contents","Table of Contents","Table of Contents","Table of Contents","Table of Contents","Table of Contents","Table of Contents","Table of Contents","Table of Contents","Table of Contents","Table of Contents","Table of Contents","Table of Contents","Table of Contents","Table of Contents","Table of Contents","Table of Contents","Table of Contents","Table of Contents","Table of Contents","Table of Contents","Table of Contents","Table of Contents","Table of Contents","Table of Contents","Table of Contents","Table of Contents","Table of Contents","Table of Contents","Table of Contents","Table of Contents","Table of Contents","Table of Contents","Table of Contents","Table of Contents","Table of Contents","Table of Contents","Table of Contents","Table of Contents","Table of Contents","Table of Contents","Table of Contents","Table of Contents","Table of Contents","Table of Contents","Table of Contents","Table of Contents","Table of Contents","Table of Contents","Table of Contents","Table of Contents","Table of Contents","Table of Contents","Table of Contents","Table of Contents","Table of Contents","Table of Contents","Table of Contents","Table of Contents","Table of Contents","Table of Contents","Table of Contents","Table of Contents","Table of Contents","Table of Contents","Table of Contents","Table of Contents","Table of Contents","Table of Contents","Table of Contents","Table of Contents","Table of Contents","Table of Contents","Table of Contents","Table of Contents","Table of Contents","Table of Contents","Table of Contents","Table of Contents","Table of Contents","Table of Contents","Table of Contents","Table of Contents","Table of Contents","Table of Contents","Table of Contents","Table of Contents","Table of Contents","Table of Contents","Table of Contents","Table of Contents","Table of Contents","Table of Contents","Table of Contents","Table of Contents","Table of Contents","Table of Contents","Table of Contents","Table of Contents","Table of Contents","Table of Contents","Table of Contents","Table of Contents","Table of Contents","Table of Contents","Table of Contents","Table of Contents","Table of Contents","Table of Contents","Table of Contents","Table of Contents","Table of Contents","Table of Contents","Table of Contents","Table of Contents","Table of Contents","Table of Contents","Table of Contents","Table of Contents","Table of Contents","Table of Contents","Table of Contents","Table of Contents","Table of Contents","Table of Contents","Table of Contents","Table of Contents","Table of Contents","Table of Contents","Table of Contents","Table of Contents","Table of Contents","Table of Contents","Table of Contents","Table of Contents","Table of Contents","Table of Contents","Table of Contents","Table of Contents","Table of Contents","Table of Contents","Table of Contents","Table of Contents","Table of Contents","Table of Contents","Table of Contents","Table of Contents","Table of Contents","Table of Contents","Table of Contents","Table of Contents","Table of Contents","Table of Contents","Table of Contents","Table of Contents","Table of Contents","Table of Contents","Table of Contents","Table of Contents","Table of Contents","Table of Contents","Table of Contents","Table of Contents","Table of Contents","Table of Contents","Table of Contents","Table of Contents","Table of Contents","Table of Contents","Table of Contents","Table of Contents","Table of Contents","Table of Contents","Table of Contents","Table of Contents","Table of Contents","Table of Contents","Table of Contents","Table of Contents","Table of Contents","Table of Contents","Table of Contents","Table of Contents","Table of Contents","Table of Contents","Table of Contents","Table of Contents","Table of Contents","Table of Contents","Table of Contents","Table of Contents","Table of Contents","Table of Contents","Table of Contents","Table of Contents","Table of Contents","Table of Contents","Table of Contents","Table of Contents","Table of Contents","Table of Contents","Table of Contents","Table of Contents","Table of Contents","Table of Contents","Table of Contents","Table of Contents","Table of Contents","Table of Contents","Table of Contents","Table of Contents","Table of Contents","Table of Contents","Table of Contents","Table of Contents","Table of Contents","Table of Contents","Table of Contents","Table of Contents","Table of Contents","Table of Contents","Table of Contents","Table of Contents","Table of Contents","Table of Contents","Table of Contents","Table of Contents","Table of Contents","Table of Contents","Table of Contents","Table of Contents","Table of Contents","Table of Contents","Table of Contents","Table of Contents","Table of Contents","Table of Contents","Table of Contents","Table of Contents","Table of Contents","Table of Contents","Table of Contents","Table of Contents","Table of Contents","Table of Contents","Table of Contents","Table of Contents","Table of Contents","Table of Contents","Table of Contents","Table of Contents","Table of Contents","Table of Contents","Table of Contents","Table of Contents","Table of Contents","Table of Contents","Table of Contents","Table of Contents","Table of Contents","Table of Contents","Table of Contents","Table of Contents","Table of Contents","Table of Contents","Table of Contents","Table of Contents","Table of Contents","Table of Contents","Table of Contents","Table of Contents","Table of Contents","Table of Contents","Table of Contents","Table of Contents","Table of Contents","Table of Contents","Table of Contents","Table of Contents","Table of Contents","Table of Contents","Table of Contents","Table of Contents","Table of Contents","Table of Contents","Table of Contents","Table of Contents","Table of Contents","Table of Contents","Table of Contents","Table of Contents","Table of Contents","Table of Contents","Table of Contents","Table of Contents","Table of Contents","Table of Contents","Table of Contents","Table of Contents","Table of Contents","Table of Contents","Table of Contents","Table of Contents","Table of Contents","Table of Contents","Table of Contents","Table of Contents","Table of Contents","Table of Contents","Table of Contents","Table of Contents","Table of Contents","Table of Contents","Table of Contents","Table of Contents","Table of Contents","Table of Contents","Table of Contents","Table of Contents","Table of Contents","Table of Contents","Table of Contents","Table of Contents","Table of Contents","Table of Contents","Table of Contents","Table of Contents","Table of Contents","Table of Contents","Table of Contents","Table of Contents","Table of Contents","Table of Contents","Table of Contents","Table of Contents","Table of Contents","Table of Contents","Table of Contents","Table of Contents","Table of Contents","Table of Contents","Table of Contents","Table of Contents","Table of Contents","Table of Contents","Table of Contents","Table of Contents","Table of Contents","Table of Contents","Table of Contents","Table of Contents","Table of Contents","Table of Contents","Table of Contents","Table of Contents","Table of Contents","Table of Contents","Table of Contents","Table of Contents","Table of Contents","Table of Contents","Table of Contents","Table of Contents","Table of Contents","Table of Contents","Table of Contents","Table of Contents","Table of Contents","Table of Contents","Table of Contents","Table of Contents","Table of Contents","Table of Contents","Table of Contents","Table of Contents","Table of Contents","Table of Contents","Table of Contents","Table of Contents","Table of Contents","Table of Contents","Table of Contents","Table of Contents","Table of Contents","Table of Contents","Table of Contents","Table of Contents","Table of Contents","Table of Contents","Table of Contents","Table of Contents","Table of Contents","Table of Contents","Table of Contents","Table of Contents","Table of Contents","Table of Contents","Table of Contents","Table of Contents","Table of Contents","Table of Contents","Table of Contents","Table of Contents","Table of Contents","Table of Contents","Table of Contents","Table of Contents","Table of Contents","Table of Contents","Table of Contents","Table of Contents","Table of Contents","Table of Contents","Table of Contents","Table of Contents","Table of Contents","Table of Contents","Table of Contents","Table of Contents","Table of Contents","Table of Contents","Table of Contents","Table of Contents","Table of Contents","Table of Contents","Table of Contents","Table of Contents","Table of Contents","Table of Contents","Table of Contents","Table of Contents","Table of Contents","Table of Contents","Table of Contents","Table of Contents","Table of Contents","Table of Contents","Table of Contents","Table of Contents","Table of Contents","Table of Contents","Table of Contents","Table of Contents","Table of Contents","Table of Contents","Table of Contents","Table of Contents","Table of Contents","Table of Contents","Table of Contents","Table of Contents","Table of Contents","Table of Contents","Table of Contents","Table of Contents","Table of Contents","Table of Contents","Table of Contents","Table of Contents","Table of Contents","Table of Contents","Table of Contents","Table of Contents","Table of Contents","Table of Contents","Table of Contents","Table of Contents","Table of Contents","Table of Contents","Table of Contents","Table of Contents","Table of Contents","Table of Contents","Table of Contents","Table of Contents","Table of Contents","Table of Contents","Table of Contents","Table of Contents","Table of Contents","Table of Contents","Table of Contents","Table of Contents","Table of Contents","Table of Contents","Table of Contents","Table of Contents","Table of Contents","Table of Contents","Table of Contents","Table of Contents","Table of Contents","Table of Contents","Table of Contents","Table of Contents","Table of Contents","Table of Contents","Table of Contents","Table of Contents","Table of Contents","Table of Contents","Table of Contents","Table of Contents","Table of Contents","Table of Contents","Table of Contents","Table of Contents","Table of Contents","Table of Contents","Table of Contents","Table of Contents","Table of Contents","Table of Contents","Table of Contents","Table of Contents","Table of Contents","Table of Contents","Table of Contents","Table of Contents","Table of Contents","Table of Contents","Table of Contents","Table of Contents","Table of Contents","Table of Contents","Table of Contents","Table of Contents","Table of Contents","Table of Contents","Table of Contents","Table of Contents","Table of Contents","Table of Contents","Table of Contents","Table of Contents","Table of Contents","Table of Contents","Table of Contents","Table of Contents","Table of Contents","Table of Contents","Table of Contents","Table of Contents","Table of Contents","Table of Contents","Table of Contents","Table of Contents","Table of Contents","Table of Contents","Table of Contents","Table of Contents","Table of Contents","Table of Contents","Table of Contents","Table of Contents","Table of Contents","Table of Contents","Table of Contents","Table of Contents","Table of Contents","Table of Contents","Table of Contents","Table of Contents","Table of Contents","Table of Contents","Table of Contents","Table of Contents","Table of Contents","Table of Contents","Table of Contents","Table of Contents","Table of Contents","Table of Contents","Table of Contents","Table of Contents","Table of Contents","Table of Contents","Table of Contents","Table of Contents","Table of Contents","Table of Contents","Table of Contents","Table of Contents","Table of Contents","Table of Contents","Table of Contents","Table of Contents","Table of Contents","Table of Contents","Table of Contents","Table of Contents","Table of Contents","Table of Contents","Table of Contents","Table of Contents","Table of Contents","Table of Contents","Table of Contents","Table of Contents","Table of Contents","Table of Contents","Table of Contents","Table of Contents","Table of Contents","Table of Contents","Table of Contents","Table of Contents","Table of Contents","Table of Contents","Table of Contents","Table of Contents","Table of Contents","Table of Contents","Table of Contents","Table of Contents","Table of Contents","Table of Contents","Table of Contents","Table of Contents","Table of Contents","Table of Contents","Table of Contents","Table of Contents","Table of Contents","Table of Contents","Table of Contents","Table of Contents","Table of Contents","Table of Contents","Table of Contents","Table of Contents","Table of Contents","Table of Contents","Table of Contents","Table of Contents","Table of Contents","Table of Contents","Table of Contents","Table of Contents","Table of Contents","Table of Contents","Table of Contents","Table of Contents","Table of Contents","Table of Contents","Table of Contents","Table of Contents","Table of Contents","Table of Contents","Table of Contents","Table of Contents","Table of Contents","Table of Contents","Table of Contents","Table of Contents","Table of Contents","Table of Contents","Table of Contents","Table of Contents","Table of Contents","Table of Contents","Table of Contents","Table of Contents","Table of Contents","Table of Contents","Table of Contents","Table of Contents","Table of Contents","Table of Contents","Table of Contents","Table of Contents","Table of Contents","Table of Contents","Table of Contents","Table of Contents","Table of Contents","Table of Contents","Table of Contents","Table of Contents","Table of Contents","Table of Contents","Table of Contents","Table of Contents","Table of Contents","Table of Contents","Table of Contents","Table of Contents","Table of Contents","Table of Contents","Table of Contents","Table of Contents","Table of Contents","Table of Contents","Table of Contents","Table of Contents","Table of Contents","Table of Contents","Table of Contents","Table of Contents","Table of Contents","Table of Contents","Table of Contents","Table of Contents","Table of Contents","Table of Contents","Table of Contents","Table of Contents","Table of Contents","Table of Contents","Table of Contents","Table of Contents","Table of Contents","Table of Contents","Table of Contents","Table of Contents","Table of Contents","Table of Contents","Table of Contents","Table of Contents","Table of Contents","Table of Contents","Table of Contents","Table of Contents","Table of Contents","Table of Contents","Table of Contents","Table of Contents","Table of Contents","Table of Contents","Table of Contents","Table of Contents","Table of Contents","Table of Contents","Table of Contents","Table of Contents","Table of Contents","Table of Contents","Table of Contents","Table of Contents","Table of Contents","Table of Contents","Table of Contents","Table of Contents","Table of Contents","Table of Contents","Table of Contents","Table of Contents","Table of Contents","Table of Contents","Table of Contents","Table of Contents","Table of Contents","Table of Contents","Table of Contents","Table of Contents","Table of Contents","Table of Contents","Table of Contents","Table of Contents","Table of Contents","Table of Contents","Table of Contents","Table of Contents","Table of Contents","Table of Contents","Table of Contents","Table of Contents","Table of Contents","Table of Contents","Table of Contents","Table of Contents","Table of Contents","Table of Contents","Table of Contents","Table of Contents","Table of Contents","Table of Contents","Table of Contents","Table of Contents","Table of Contents","Table of Contents","Table of Contents","Table of Contents","Table of Contents","Table of Contents","Table of Contents","Table of Contents","Table of Contents","Table of Contents","Table of Contents","Table of Contents","Table of Contents","Table of Contents","Table of Contents","Table of Contents","Table of Contents","Table of Contents","Table of Contents","Table of Contents","Table of Contents","Table of Contents","Table of Contents","Table of Contents","Table of Contents","Table of Contents","Table of Contents","Table of Contents","Table of Contents","Table of Contents","Table of Contents","Table of Contents","Table of Contents","Table of Contents","Table of Contents","Table of Contents","Table of Contents","Table of Contents","Table of Contents","Table of Contents","Table of Contents","Table of Contents","Table of Contents","Table of Contents","Table of Contents","Table of Contents","Table of Contents","Table of Contents","Table of Contents","Table of Contents","Table of Contents","Table of Contents","Table of Contents","Table of Contents","Table of Contents","Table of Contents","Table of Contents","Table of Contents","Table of Contents","Table of Contents","Table of Contents","Table of Contents","Table of Contents","Table of Contents","Table of Contents","Table of Contents","Table of Contents","Table of Contents","Table of Contents","Table of Contents","Table of Contents","Table of Contents","Table of Contents","Table of Contents","Table of Contents","Table of Contents","Table of Contents","Table of Contents","Table of Contents","Table of Contents","Table of Contents","Table of Contents","Table of Contents","Table of Contents","Table of Contents","Table of Contents","Table of Contents","Table of Contents","Table of Contents","Table of Contents","Table of Contents","Table of Contents","Table of Contents","Table of Contents","Table of Contents","Table of Contents","Table of Contents","Table of Contents","Table of Contents","Table of Contents","Table of Contents","Table of Contents","Table of Contents","Table of Contents","Table of Contents","Table of Contents","Table of Contents","Table of Contents","Table of Contents","Table of Contents","Table of Contents","Table of Contents","Table of Contents","Table of Contents","Table of Contents","Table of Contents","Table of Contents","Table of Contents","Table of Contents","Table of Contents","Table of Contents","Table of Contents","Table of Contents","Table of Contents","Table of Contents","Table of Contents","Table of Contents","Table of Contents","Table of Contents","Table of Contents","Table of Contents","Table of Contents","Table of Contents","Table of Contents","Table of Contents","Table of Contents","Table of Contents","Table of Contents","Table of Contents","Table of Contents","Table of Contents","Table of Contents","Table of Contents","Table of Contents","Table of Contents","Table of Contents","Table of Contents","Table of Contents","Table of Contents","Table of Contents","Table of Contents","Table of Contents","Table of Contents","Table of Contents","Table of Contents","Table of Contents","Table of Contents","Table of Contents","Table of Contents","Table of Contents","Table of Contents","Table of Contents","Table of Contents","Table of Contents","Table of Contents","Table of Contents","Table of Contents","Table of Contents","Table of Contents","Table of Contents","Table of Contents","Table of Contents","Table of Contents","Table of Contents","Table of Contents","Table of Contents","Table of Contents","Table of Contents","Table of Contents","Table of Contents","Table of Contents","Table of Contents","Table of Contents","Table of Contents","Table of Contents","Table of Contents","Table of Contents","Table of Contents","Table of Contents","Table of Contents","Table of Contents","Table of Contents","Table of Contents","Table of Contents","Table of Contents","Table of Contents","Table of Contents","Table of Contents","Table of Contents","Table of Contents","Table of Contents","Table of Contents","Table of Contents","Table of Contents","Table of Contents","Table of Contents","Table of Contents","Table of Contents","Table of Contents","Table of Contents","Table of Contents","Table of Contents","Table of Contents","Table of Contents","Table of Contents","Table of Contents","Table of Contents","Table of Contents","Table of Contents","Table of Contents","Table of Contents","Table of Contents","Table of Contents","Table of Contents","Table of Contents","Table of Contents","Table of Contents","Table of Contents","Table of Contents","Table of Contents","Table of Contents","Table of Contents","Table of Contents","Table of Contents","Table of Contents","Table of Contents","Table of Contents","Table of Contents","Table of Contents","Table of Contents","Table of Contents","Table of Contents","Table of Contents","Table of Contents","Table of Contents","Table of Contents","Table of Contents","Table of Contents","Table of Contents","Table of Contents","Table of Contents","Table of Contents","Table of Contents","Table of Contents","Table of Contents","Table of Contents","Table of Contents","Table of Contents","Table of Contents","Table of Contents","Table of Contents","Table of Contents","Table of Contents","Table of Contents","Table of Contents","Table of Contents","Table of Contents","Table of Contents","Table of Contents","Table of Contents","Table of Contents","Table of Contents","Table of Contents","Table of Contents","Table of Contents","Table of Contents","Table of Contents","Table of Contents","Table of Contents","Table of Contents","Table of Contents","Table of Contents","Table of Contents","Table of Contents","Table of Contents","Table of Contents","Table of Contents","Table of Contents","Table of Contents","Table of Contents","Table of Contents","Table of Contents","Table of Contents","Table of Contents","Table of Contents","Table of Contents","Table of Contents","Table of Contents","Table of Contents","Table of Contents","Table of Contents","Table of Contents","Table of Contents","Table of Contents","Table of Contents","Table of Contents","Table of Contents","Table of Contents","Table of Contents","Table of Contents","Table of Contents","Table of Contents","Table of Contents","Table of Contents","Table of Contents","Table of Contents","Table of Contents","Table of Contents","Table of Contents","Table of Contents","Table of Contents","Table of Contents","Table of Contents","Table of Contents","Table of Contents","Table of Contents","Table of Contents","Table of Contents","Table of Contents","Table of Contents","Table of Contents","Table of Contents","Table of Contents","Table of Contents","Table of Contents","Table of Contents","Table of Contents","Table of Contents","Table of Contents","Table of Contents","Table of Contents","Table of Contents","Table of Contents","Table of Contents","Table of Contents","Table of Contents","Table of Contents","Table of Contents","Table of Contents","Table of Contents","Table of Contents","Table of Contents","Table of Contents","Table of Contents","Table of Contents","Table of Contents","Table of Contents","Table of Contents","Table of Contents","Table of Contents","Table of Contents","Table of Contents","Table of Contents","Table of Contents","Table of Contents","Table of Contents","Table of Contents","Table of Contents","Table of Contents","Table of Contents","Table of Contents","Table of Contents","Table of Contents","Table of Contents","Table of Contents","Table of Contents","Table of Contents","Table of Contents","Table of Contents","Table of Contents","Table of Contents","Table of Contents","Table of Contents","Table of Contents","Table of Contents","Table of Contents","Table of Contents","Table of Contents","Table of Contents","Table of Contents","Table of Contents","Table of Contents","Table of Contents","Table of Contents","Table of Contents","Table of Contents","Table of Contents","Table of Contents","Table of Contents","Table of Contents","Table of Contents","Table of Contents","Table of Contents","Table of Contents","Table of Contents","Table of Contents","Table of Contents","Table of Contents","Table of Contents","Table of Contents","Table of Contents","Table of Contents","Table of Contents","Table of Contents","Table of Contents","Table of Contents","Table of Contents","Table of Contents","Table of Contents","Table of Contents","Table of Contents","Table of Contents","Table of Contents","Table of Contents","Table of Contents","Table of Contents","Table of Contents","Table of Contents","Table of Contents","Table of Contents","Table of Contents","Table of Contents","Table of Contents","Table of Contents","Table of Contents","Table of Contents","Table of Contents","Table of Contents","Table of Contents","Table of Contents","Table of Contents","Table of Contents","Table of Contents","Table of Contents","Table of Contents","Table of Contents","Table of Contents","Table of Contents","Table of Contents","Table of Contents","Table of Contents","Table of Contents","Table of Contents","Table of Contents","Table of Contents","Table of Contents","Table of Contents","Table of Contents","Table of Contents","Table of Contents","Table of Contents","Table of Contents","Table of Contents","Table of Contents","Table of Contents","Table of Contents","Table of Contents","Table of Contents","Table of Contents","Table of Contents","Table of Contents","Table of Contents","Table of Contents","Table of Contents","Table of Contents","Table of Contents","Table of Contents","Table of Contents","Table of Contents","Table of Contents","Table of Contents","Table of Contents","Table of Contents","Table of Contents","Table of Contents","Table of Contents","Table of Contents","Table of Contents","Table of Contents","Table of Contents","Table of Contents","Table of Contents","Table of Contents","Table of Contents","Table of Contents","Table of Contents","Table of Contents","Table of Contents","Table of Contents","Table of Contents","Table of Contents","Table of Contents","Table of Contents","Table of Contents","Table of Contents","Table of Contents","Table of Contents","Table of Contents","Table of Contents","Table of Contents","Table of Contents","Table of Contents","Table of Contents","Table of Contents","Table of Contents","Table of Contents","Table of Contents","Table of Contents","Table of Contents","Table of Contents","Table of Contents","Table of Contents","Table of Contents","Table of Contents","Table of Contents","Table of Contents","Table of Contents","Table of Contents","Table of Contents","Table of Contents","Table of Contents","Table of Contents","Table of Contents","Table of Contents","Table of Contents","Table of Contents","Table of Contents","Table of Contents","Table of Contents","Table of Contents","Table of Contents","Table of Contents","Table of Contents","Table of Contents","Table of Contents","Table of Contents","Table of Contents","Table of Contents","Table of Contents","Table of Contents","Table of Contents","Table of Contents","Table of Contents","Table of Contents","Table of Contents","Table of Contents","Table of Contents","Table of Contents","Table of Contents","Table of Contents","Table of Contents","Table of Contents","Table of Contents","Table of Contents","Table of Contents","Table of Contents","Table of Contents","Table of Contents","Table of Contents","Table of Contents","Table of Contents","Table of Contents","Table of Contents","Table of Contents","Table of Contents","Table of Contents","Table of Contents","Table of Contents","Table of Contents","Table of Contents","Table of Contents","Table of Contents","Table of Contents","Table of Contents","Table of Contents","Table of Contents","Table of Contents","Table of Contents","Table of Contents","Table of Contents","Table of Contents","Table of Contents","Table of Contents","Table of Contents","Table of Contents","Table of Contents","Table of Contents","Table of Contents","Table of Contents","Table of Contents","Table of Contents","Table of Contents","Table of Contents","Table of Contents","Table of Contents","Table of Contents","Table of Contents","Table of Contents","Table of Contents","Table of Contents","Table of Contents","Table of Contents","Table of Contents","Table of Contents","Table of Contents","Table of Contents","Table of Contents","Table of Contents","Table of Contents","Table of Contents","Table of Contents","Table of Contents","Table of Contents","Table of Contents","Table of Contents","Table of Contents","Table of Contents","Table of Contents","Table of Contents","Table of Contents","Table of Contents","Table of Contents","Table of Contents","Table of Contents","Table of Contents","Table of Contents","Table of Contents","Table of Contents","Table of Contents","Table of Contents","Table of Contents","Table of Contents","Table of Contents","Table of Contents","Table of Contents","Table of Contents","Table of Contents","Table of Contents","Table of Contents","Table of Contents","Table of Contents","Table of Contents","Table of Contents","Table of Contents","Table of Contents","Table of Contents","Table of Contents","Table of Contents","Table of Contents","Table of Contents","Table of Contents","Table of Contents","Table of Contents","Table of Contents","Table of Contents","Table of Contents","Table of Contents","Table of Contents","Table of Contents","Table of Contents","Table of Contents","Table of Contents","Table of Contents","Table of Contents","Table of Contents","Table of Contents","Table of Contents","Table of Contents","Table of Contents","Table of Contents","Table of Contents","Table of Contents","Table of Contents","Table of Contents","Table of Contents","Table of Contents","Table of Contents","Table of Contents","Table of Contents","Table of Contents","Table of Contents","Table of Contents","Table of Contents","Table of Contents","Table of Contents","Table of Contents","Table of Contents","Table of Contents","Table of Contents","Table of Contents","Table of Contents","Table of Contents","Table of Contents","Table of Contents","Table of Contents","Table of Contents","Table of Contents","Table of Contents","Table of Contents","Table of Contents","Table of Contents","Table of Contents","Table of Contents","Table of Contents","Table of Contents","Table of Contents","Table of Contents","Table of Contents","Table of Contents","Table of Contents","Table of Contents","Table of Contents","Table of Contents","Table of Contents","Table of Contents","Table of Contents","Table of Contents","Table of Contents","Table of Contents","Table of Contents","Table of Contents","Table of Contents","Table of Contents","Table of Contents","Table of Contents","Table of Contents","Table of Contents","Table of Contents","Table of Contents","Table of Contents","Table of Contents","Table of Contents","Table of Contents","Table of Contents","Table of Contents","Table of Contents","Table of Contents","Table of Contents","Table of Contents","Table of Contents","Table of Contents","Table of Contents","Table of Contents","Table of Contents","Table of Contents","Table of Contents","Table of Contents","Table of Contents","Table of Contents","Table of Contents","Table of Contents","Table of Contents","Table of Contents","Table of Contents","Table of Contents","Table of Contents","Table of Contents","Table of Contents","Table of Contents","Table of Contents","Table of Contents","Table of Contents","Table of Contents","Table of Contents","Table of Contents","Table of Contents","Table of Contents","Table of Contents","Table of Contents","Table of Contents","Table of Contents","Table of Contents","Table of Contents","Table of Contents","Table of Contents","Table of Contents","Table of Contents","Table of Contents","Table of Contents","Table of Contents","Table of Contents","Table of Contents","Table of Contents","Table of Contents","Table of Contents","Table of Contents","Table of Contents","Table of Contents","Table of Contents","Table of Contents","Table of Contents","Table of Contents","Table of Contents","Table of Contents","Table of Contents","Table of Contents","Table of Contents","Table of Contents","Table of Contents","Table of Contents","Table of Contents","Table of Contents","Table of Contents","Table of Contents","Table of Contents","Table of Contents","Table of Contents","Table of Contents","Table of Contents","Table of Contents","Table of Contents","Table of Contents","Table of Contents","Table of Contents","Table of Contents","Table of Contents","Table of Contents","Table of Contents","Table of Contents","Table of Contents","Table of Contents","Table of Contents","Table of Contents","Table of Contents","Table of Contents","Table of Contents","Table of Contents","Table of Contents","Table of Contents","Table of Contents","Table of Contents","Table of Contents","Table of Contents","Table of Contents","Table of Contents","Table of Contents","Table of Contents","Table of Contents","Table of Contents","Table of Contents","Table of Contents","Table of Contents","Table of Contents","Table of Contents","Table of Contents","Table of Contents","Table of Contents","Table of Contents","Table of Contents","Table of Contents","Table of Contents","Table of Contents","Table of Contents","Table of Contents","Table of Contents","Table of Contents","Table of Contents","Table of Contents","Table of Contents","Table of Contents","Table of Contents","Table of Contents","Table of Contents","Table of Contents","Table of Contents","Table of Contents","Table of Contents","Table of Contents","Table of Contents","Table of Contents","Table of Contents","Table of Contents","Table of Contents","Table of Contents","Table of Contents","Table of Contents","Table of Contents","Table of Contents","Table of Contents","Table of Contents","Table of Contents","Table of Contents","Table of Contents","Table of Contents","Table of Contents","Table of Contents","Table of Contents","Table of Contents","Table of Contents","Table of Contents","Table of Contents","Table of Contents","Table of Contents","Table of Contents","Table of Contents","Table of Contents","Table of Contents","Table of Contents","Table of Contents","Table of Contents","Table of Contents","Table of Contents","Table of Contents","Table of Contents","Table of Contents","Table of Contents","Table of Contents","Table of Contents","Table of Contents","Table of Contents","Table of Contents","Table of Contents","Table of Contents","Table of Contents","Table of Contents","Table of Contents","Table of Contents","Table of Contents","Table of Contents","Table of Contents","Table of Contents","Table of Contents","Table of Contents","Table of Contents","Table of Contents","Table of Contents","Table of Contents","Table of Contents","Table of Contents","Table of Contents","Table of Contents","Table of Contents","Table of Contents","Table of Contents","Table of Contents","Table of Contents","Table of Contents","Table of Contents","Table of Contents","Table of Contents","Table of Contents","Table of Contents","Table of Contents","Table of Contents","Table of Contents","Table of Contents","Table of Contents","Table of Contents","Table of Contents","Table of Contents","Table of Contents","Table of Contents","Table of Contents","Table of Contents","Table of Contents","Table of Contents","Table of Contents","Table of Contents","Table of Contents","Table of Contents","Table of Contents","Table of Contents","Table of Contents","Table of Contents","Table of Contents","Table of Contents","Table of Contents","Table of Contents","Table of Contents","Table of Contents","Table of Contents","Table of Contents","Table of Contents","Table of Contents","Table of Contents","Table of Contents","Table of Contents","Table of Contents","Table of Contents","Table of Contents","Table of Contents","Table of Contents","Table of Contents","Table of Contents","Table of Contents","Table of Contents","Table of Contents","Table of Contents","Table of Contents","Table of Contents","Table of Contents","Table of Contents","Table of Contents","Table of Contents","Table of Contents","Table of Contents","Table of Contents","Table of Contents","Table of Contents","Table of Contents","Table of Contents","Table of Contents","Table of Contents","Table of Contents","Table of Contents","Table of Contents","Table of Contents","Table of Contents","Table of Contents","Table of Contents","Table of Contents","Table of Contents","Table of Contents","Table of Contents","Table of Contents","Table of Contents","Table of Contents","Table of Contents","Table of Contents","Table of Contents","Table of Contents","Table of Contents","Table of Contents","Table of Contents","Table of Contents","Table of Contents","Table of Contents","Table of Contents","Table of Contents","Table of Contents","Table of Contents","Table of Contents","Table of Contents","Table of Contents","Table of Contents","Table of Contents","Table of Contents","Table of Contents","Table of Contents","Table of Contents","Table of Contents","Table of Contents","Table of Contents","Table of Contents","Table of Contents","Table of Contents","Table of Contents","Table of Contents","Table of Contents","Table of Contents","Table of Contents","Table of Contents","Table of Contents","Table of Contents","Table of Contents","Table of Contents","Table of Contents","Table of Contents","Table of Contents","Table of Contents","Table of Contents","Table of Contents","Table of Contents","Table of Contents","Table of Contents","Table of Contents","Table of Contents","Table of Contents","Table of Contents","Table of Contents","Table of Contents","Table of Contents","Table of Contents","Table of Contents","Table of Contents","Table of Contents","Table of Contents","Table of Contents","Table of Contents","Table of Contents","Table of Contents","Table of Contents","Table of Contents","Table of Contents","Table of Contents","Table of Contents","Table of Contents","Table of Contents","Table of Contents","Table of Contents","Table of Contents","Table of Contents","Table of Contents","Table of Contents","Table of Contents","Table of Contents","Table of Contents","Table of Contents","Table of Contents","Table of Contents","Table of Contents","Table of Contents","Table of Contents","Table of Contents","Table of Contents","Table of Contents","Table of Contents","Table of Contents","Table of Contents","Table of Contents","Table of Contents","Table of Contents","Table of Contents","Table of Contents","Table of Contents","Table of Contents","Table of Contents","Table of Contents","Table of Contents","Table of Contents","Table of Contents","Table of Contents","Table of Contents","Table of Contents","Table of Contents","Table of Contents","Table of Contents","Table of Contents","Table of Contents","Table of Contents","Table of Contents","Table of Contents","Table of Contents","Table of Contents","Table of Contents","Table of Contents","Table of Contents","Table of Contents","Table of Contents","Table of Contents","Table of Contents","Table of Contents","Table of Contents","Table of Contents","Table of Contents","Table of Contents","Table of Contents","Table of Contents","Table of Contents","Table of Contents","Table of Contents","Table of Contents","Table of Contents","Table of Contents","Table of Contents","Table of Contents","Table of Contents","Table of Contents","Table of Contents","Table of Contents","Table of Contents","Table of Contents","Table of Contents","Table of Contents","Table of Contents","Table of Contents","Table of Contents","Table of Contents","Table of Contents","Table of Contents","Table of Contents","Table of Contents","Table of Contents","Table of Contents","Table of Contents","Table of Contents","Table of Contents","Table of Contents","Table of Contents","Table of Contents","Table of Contents","Table of Contents","Table of Contents","Table of Contents","Table of Contents","Table of Contents","Table of Contents","Table of Contents","Table of Contents","Table of Contents","Table of Contents","Table of Contents","Table of Contents","Table of Contents","Table of Contents","Table of Contents","Table of Contents","Table of Contents","Table of Contents","Table of Contents","Table of Contents","Table of Contents","Table of Contents","Table of Contents","Table of Contents","Table of Contents","Table of Contents","Table of Contents","Table of Contents","Table of Contents","Table of Contents","Table of Contents","Table of Contents","Table of Contents","Table of Contents","Table of Contents","Table of Contents","Table of Contents","Table of Contents","Table of Contents","Table of Contents","Table of Contents","Table of Contents","Table of Contents","Table of Contents","Table of Contents","Table of Contents","Table of Contents","Table of Contents","Table of Contents","Table of Contents","Table of Contents","Table of Contents","Table of Contents","Table of Contents","Table of Contents","Table of Contents","Table of Contents","Table of Contents","Table of Contents","Table of Contents","Table of Contents","Table of Contents","Table of Contents","Table of Contents","Table of Contents","Table of Contents","Table of Contents","Table of Contents","Table of Contents","Table of Contents","Table of Contents","Table of Contents","Table of Contents","Table of Contents","Table of Contents","Table of Contents","Table of Contents","Table of Contents","Table of Contents","Table of Contents","Table of Contents","Table of Contents","Table of Contents","Table of Contents","Table of Contents","Table of Contents","Table of Contents","Table of Contents","Table of Contents","Table of Contents","Table of Contents","Table of Contents","Table of Contents","Table of Contents","Table of Contents","Table of Contents","Table of Contents","Table of Contents","Table of Contents","Table of Contents","Table of Contents","Table of Contents","Table of Contents","Table of Contents","Table of Contents","Table of Contents","Table of Contents","Table of Contents","Table of Contents","Table of Contents","Table of Contents","Table of Contents","Table of Contents","Table of Contents","Table of Contents","Table of Contents","Table of Contents","Table of Contents","Table of Contents","Table of Contents","Table of Contents","Table of Contents","Table of Contents","Table of Contents","Table of Contents","Table of Contents","Table of Contents","Table of Contents","Table of Contents","Table of Contents","Table of Contents","Table of Contents","Table of Contents","Table of Contents","Table of Contents","Table of Contents","Table of Contents","Table of Contents","Table of Contents","Table of Contents","Table of Contents","Table of Contents","Table of Contents","Table of Contents","Table of Contents","Table of Contents","Table of Contents","Table of Contents","Table of Contents","Table of Contents","Table of Contents","Table of Contents","Table of Contents","Table of Contents","Table of Contents","Table of Contents","Table of Contents","Table of Contents","Table of Contents","Table of Contents","Table of Contents","Table of Contents","Table of Contents","Table of Contents","Table of Contents","Table of Contents","Table of Contents","Table of Contents","Table of Contents","Table of Contents","Table of Contents","Table of Contents","Table of Contents","Table of Contents","Table of Contents","Table of Contents","Table of Contents","Table of Contents","Table of Contents","Table of Contents","Table of Contents","Table of Contents","Table of Contents","Table of Contents","Table of Contents","Table of Contents","Table of Contents","Table of Contents","Table of Contents","Table of Contents","Table of Contents","Table of Contents","Table of Contents","Table of Contents","Table of Contents","Table of Contents","Table of Contents","Table of Contents","Table of Contents","Table of Contents","Table of Contents","Table of Contents","Table of Contents","Table of Contents","Table of Contents","Table of Contents","Table of Contents","Table of Contents","Table of Contents","Table of Contents","Table of Contents","Table of Contents","Table of Contents","Table of Contents","Table of Contents","Table of Contents","Table of Contents","Table of Contents","Table of Contents","Table of Contents","Table of Contents","Table of Contents","Table of Contents","Table of Contents","Table of Contents","Table of Contents","Table of Contents","Table of Contents","Table of Contents","Table of Contents","Table of Contents","Table of Contents","Table of Contents","Table of Contents","Table of Contents","Table of Contents","Table of Contents","Table of Contents","Table of Contents","Table of Contents","Table of Contents","Table of Contents","Table of Contents","Table of Contents","Table of Contents","Table of Contents","Table of Contents","Table of Contents","Table of Contents","Table of Contents","Table of Contents","Table of Contents","Table of Contents","Table of Contents","Table of Contents","Table of Contents","Table of Contents","Table of Contents","Table of Contents","Table of Contents","Table of Contents","Table of Contents","Table of Contents","Table of Contents","Table of Contents","Table of Contents","Table of Contents","Table of Contents","Table of Contents","Table of Contents","Table of Contents","Table of Contents","Table of Contents","Table of Contents","Table of Contents","Table of Contents","Table of Contents","Table of Contents","Table of Contents","Table of Contents","Table of Contents","Table of Contents","Table of Contents","Table of Contents","Table of Contents","Table of Contents","Table of Contents","Table of Contents","Table of Contents","Table of Contents","Table of Contents","Table of Contents","Table of Contents","Table of Contents","Table of Contents","Table of Contents","Table of Contents","Table of Contents","Table of Contents","Table of Contents","Table of Contents","Table of Contents","Table of Contents","Table of Contents","Table of Contents","Table of Contents","Table of Contents","Table of Contents","Table of Contents","Table of Contents","Table of Contents","Table of Contents","Table of Contents","Table of Contents","Table of Contents","Table of Contents","Table of Contents","Table of Contents","Table of Contents","Table of Contents","Table of Contents","Table of Contents","Table of Contents","Table of Contents","Table of Contents","Table of Contents","Table of Contents","Table of Contents","Table of Contents","Table of Contents","Table of Contents","Table of Contents","Table of Contents","Table of Contents","Table of Contents","Table of Contents","Table of Contents","Table of Contents","Table of Contents","Table of Contents","Table of Contents","Table of Contents","Table of Contents","Table of Contents","Table of Contents","Table of Contents","Table of Contents","Table of Contents","Table of Contents","Table of Contents","Table of Contents","Table of Contents","Table of Contents","Table of Contents","Table of Contents","Table of Contents","Table of Contents","Table of Contents","Table of Contents","Table of Contents","Table of Contents","Table of Contents","Table of Contents","Table of Contents","Table of Contents","Table of Contents","Table of Contents","Table of Contents","Table of Contents","Table of Contents","Table of Contents","Table of Contents","Table of Contents","Table of Contents","Table of Contents","Table of Contents","Table of Contents","Table of Contents","Table of Contents","Table of Contents","Table of Contents","Table of Contents","Table of Contents","Table of Contents","Table of Contents","Table of Contents","Table of Contents","Table of Contents","Table of Contents","Table of Contents","Table of Contents","Table of Contents","Table of Contents","Table of Contents","Table of Contents","Table of Contents","Table of Contents","Table of Contents","Table of Contents","Table of Contents","Table of Contents","Table of Contents","Table of Contents","Table of Contents","Table of Contents","Table of Contents","Table of Contents","Table of Contents","Table of Contents","Table of Contents","Table of Contents","Table of Contents","Table of Contents","Table of Contents","Table of Contents","Table of Contents","Table of Contents","Table of Contents","Table of Contents","Table of Contents","Table of Contents","Table of Contents","Table of Contents","Table of Contents","Table of Contents","Table of Contents","Table of Contents","Table of Contents","Table of Contents","Table of Contents","Table of Contents","Table of Contents","Table of Contents","Table of Contents","Table of Contents","Table of Contents","Table of Contents","Table of Contents","Table of Contents","Table of Contents","Table of Contents","Table of Contents","Table of Contents","Table of Contents","Table of Contents","Table of Contents","Table of Contents","Table of Contents","Table of Contents","Table of Contents","Table of Contents","Table of Contents","Table of Contents","Table of Contents","Table of Contents","Table of Contents","Table of Contents","Table of Contents","Table of Contents","Table of Contents","Table of Contents","Table of Contents","Table of Contents","Table of Contents","Table of Contents","Table of Contents","Table of Contents","Table of Contents","Table of Contents","Table of Contents","Table of Contents","Table of Contents","Table of Contents","Table of Contents","Table of Contents","Table of Contents","Table of Contents","Table of Contents","Table of Contents","Table of Contents","Table of Contents","Table of Contents","Table of Contents","Table of Contents","Table of Contents","Table of Contents","Table of Contents","Table of Contents","Table of Contents","Table of Contents","Table of Contents","Table of Contents","Table of Contents","Table of Contents","Table of Contents","Table of Contents","Table of Contents","Table of Contents","Table of Contents","Table of Contents","Table of Contents","Table of Contents","Table of Contents","Table of Contents","Table of Contents","Table of Contents","Table of Contents","Table of Contents","Table of Contents","Table of Contents","Table of Contents","Table of Contents","Table of Contents","Table of Contents","Table of Contents","Table of Contents","Table of Contents","Table of Contents","Table of Contents","Table of Contents","Table of Contents","Table of Contents","Table of Contents","Table of Contents","Table of Contents","Table of Contents","Table of Contents","Table of Contents","Table of Contents","Table of Contents","Table of Contents","Table of Contents","Table of Contents","Table of Contents","Table of Contents","Table of Contents","Table of Contents","Table of Contents","Table of Contents","Table of Contents","Table of Contents","Table of Contents","Table of Contents","Table of Contents","Table of Contents","Table of Contents","Table of Contents","Table of Contents","Table of Contents","Table of Contents","Table of Contents","Table of Contents","Table of Contents","Table of Contents","Table of Contents","Table of Contents","Table of Contents","Table of Contents","Table of Contents","Table of Contents","Table of Contents","Table of Contents","Table of Contents","Table of Contents","Table of Contents","Table of Contents","Table of Contents","Table of Contents","Table of Contents","Table of Contents","Table of Contents","Table of Contents","Table of Contents","Table of Contents","Table of Contents","Table of Contents","Table of Contents","Table of Contents","Table of Contents","Table of Contents","Table of Contents","Table of Contents","Table of Contents","Table of Contents","Table of Contents","Table of Contents","Table of Contents","Table of Contents","Table of Contents","Table of Contents","Table of Contents","Table of Contents","Table of Contents","Table of Contents","Table of Contents","Table of Contents","Table of Contents","Table of Contents","Table of Contents","Table of Contents","Table of Contents","Table of Contents","Table of Contents","Table of Contents","Table of Contents","Table of Contents","Table of Contents","Table of Contents","Table of Contents","Table of Contents","Table of Contents","Table of Contents","Table of Contents","Table of Contents","Table of Contents","Table of Contents","Table of Contents","Table of Contents","Table of Contents","Table of Contents","Table of Contents","Table of Contents","Table of Contents","Table of Contents","Table of Contents","Table of Contents","Table of Contents","Table of Contents","Table of Contents","Table of Contents","Table of Contents","Table of Contents","Table of Contents","Table of Contents","Table of Contents","Table of Contents","Table of Contents","Table of Contents","Table of Contents","Table of Contents","Table of Contents","Table of Contents","Table of Contents","Table of Contents","Table of Contents","Table of Contents","Table of Contents","Table of Contents","Table of Contents","Table of Contents","Table of Contents","Table of Contents","Table of Contents","Table of Contents","Table of Contents","Table of Contents","Table of Contents","Table of Contents","Table of Contents","Table of Contents","Table of Contents","Table of Contents","Table of Contents","Table of Contents","Table of Contents","Table of Contents","Table of Contents","Table of Contents","Table of Contents","Table of Contents","Table of Contents","Table of Contents","Table of Contents","Table of Contents","Table of Contents","Table of Contents","Table of Contents","Table of Contents","Table of Contents","Table of Contents","Table of Contents","Table of Contents","Table of Contents","Table of Contents","Table of Contents","Table of Contents","Table of Contents","Table of Contents","Table of Contents","Table of Contents","Table of Contents","Table of Contents","Table of Contents","Table of Contents","Table of Contents","Table of Contents","Table of Contents","Table of Contents","Table of Contents","Table of Contents","Table of Contents","Table of Contents","Table of Contents","Table of Contents","Table of Contents","Table of Contents","Table of Contents","Table of Contents","Table of Contents","Table of Contents","Table of Contents","Table of Contents","Table of Contents","Table of Contents","Table of Contents","Table of Contents","Table of Contents","Table of Contents","Table of Contents","Table of Contents","Table of Contents","Table of Contents","Table of Contents","Table of Contents","Table of Contents","Table of Contents","Table of Contents","Table of Contents","Table of Contents","Table of Contents","Table of Contents","Table of Contents","Table of Contents","Table of Contents","Table of Contents","Table of Contents","Table of Contents","Table of Contents","Table of Contents","Table of Contents","Table of Contents","Table of Contents","Table of Contents","Table of Contents","Table of Contents","Table of Contents","Table of Contents","Table of Contents","Table of Contents","Table of Contents","Table of Contents","Table of Contents","Table of Contents","Table of Contents","Table of Contents","Table of Contents","Table of Contents","Table of Contents","Table of Contents","Table of Contents","Table of Contents","Table of Contents","Table of Contents","Table of Contents","Table of Contents","Table of Contents","Table of Contents","Table of Contents","Table of Contents","Table of Contents","Table of Contents","Table of Contents","Table of Contents","Table of Contents","Table of Contents","Table of Contents","Table of Contents","Table of Contents","Table of Contents","Table of Contents","Table of Contents","Table of Contents","Table of Contents","Table of Contents","Table of Contents","Table of Contents","Table of Contents","Table of Contents","Table of Contents","Table of Contents","Table of Contents","Table of Contents","Table of Contents","Table of Contents","Table of Contents","Table of Contents","Table of Contents","Table of Contents","Table of Contents","Table of Contents","Table of Contents","Table of Contents","Table of Contents","Table of Contents","Table of Contents","Table of Contents","Table of Contents","Table of Contents","Table of Contents","Table of Contents","Table of Contents","Table of Contents","Table of Contents","Table of Contents","Table of Contents","Table of Contents","Table of Contents","Table of Contents","Table of Contents","Table of Contents","Table of Contents","Table of Contents","Table of Contents","Table of Contents","Table of Contents","Table of Contents","Table of Contents","Table of Contents","Table of Contents","Table of Contents","Table of Contents","Table of Contents","Table of Contents","Table of Contents","Table of Contents","Table of Contents","Table of Contents","Table of Contents","Table of Contents","Table of Contents","Table of Contents","Table of Contents","Table of Contents","Table of Contents","Table of Contents","Table of Contents","Table of Contents","Table of Contents","Table of Contents","Table of Contents","Table of Contents","Table of Contents","Table of Contents","Table of Contents","Table of Contents","Table of Contents","Table of Contents","Table of Contents","Table of Contents","Table of Contents","Table of Contents","Table of Contents","Table of Contents","Table of Contents","Table of Contents","Table of Contents","Table of Contents","Table of Contents","Table of Contents","Table of Contents","Table of Contents","Table of Contents","Table of Contents","Table of Contents","Table of Contents","Table of Contents","Table of Contents","Table of Contents","Table of Contents","Table of Contents","Table of Contents","Table of Contents","Table of Contents","Table of Contents","Table of Contents","Table of Contents","Table of Contents","Table of Contents","Table of Contents","Table of Contents","Table of Contents","Table of Contents","Table of Contents","Table of Contents","Table of Contents","Table of Contents","Table of Contents","Table of Contents","Table of Contents","Table of Contents","Table of Contents","Table of Contents","Table of Contents","Table of Contents","Table of Contents","Table of Contents","Table of Contents","Table of Contents","Table of Contents","Table of Contents","Table of Contents","Table of Contents","Table of Contents","Table of Contents","Table of Contents","Table of Contents","Table of Contents","Table of Contents","Table of Contents","Table of Contents","Table of Contents","Table of Contents","Table of Contents","Table of Contents","Table of Contents","Table of Contents","Table of Contents","Table of Contents","Table of Contents","Table of Contents","Table of Contents","Table of Contents","Table of Contents","Table of Contents","Table of Contents","Table of Contents","Table of Contents","Table of Contents","Table of Contents","Table of Contents","Table of Contents","Table of Contents","Table of Contents","Table of Contents","Table of Contents","Table of Contents","Table of Contents","Table of Contents","Table of Contents","Table of Contents","Table of Contents","Table of Contents","Table of Contents","Table of Contents","Table of Contents","Table of Contents","Table of Contents","Table of Contents","Table of Contents","Table of Contents","Table of Contents","Table of Contents","Table of Contents","Table of Contents","Table of Contents","Table of Contents","Table of Contents","Table of Contents","Table of Contents","Table of Contents","Table of Contents","Table of Contents","Table of Contents","Table of Contents","Table of Contents","Table of Contents","Table of Contents","Table of Contents","Table of Contents","Table of Contents","Table of Contents","Table of Contents","Table of Contents","Table of Contents","Table of Contents","Table of Contents","Table of Contents","Table of Contents","Table of Contents","Table of Contents","Table of Contents","Table of Contents","Table of Contents","Table of Contents","Table of Contents","Table of Contents","Table of Contents","Table of Contents","Table of Contents","Table of Contents","Table of Contents","Table of Contents","Table of Contents","Table of Contents","Table of Contents","Table of Contents","Table of Contents","Table of Contents","Table of Contents","Table of Contents","Table of Contents","Table of Contents","Table of Contents","Table of Contents","Table of Contents","Table of Contents","Table of Contents","Table of Contents","Table of Contents","Table of Contents","Table of Contents","Table of Contents","Table of Contents","Table of Contents","Table of Contents","Table of Contents","Table of Contents","Table of Contents","Table of Contents","Table of Contents","Table of Contents","Table of Contents","Table of Contents","Table of Contents","Table of Contents","Table of Contents","Table of Contents","Table of Contents","Table of Contents","Table of Contents","Table of Contents","Table of Contents","Table of Contents","Table of Contents","Table of Contents","Table of Contents","Table of Contents","Table of Contents","Table of Contents","Table of Contents","Table of Contents","Table of Contents","Table of Contents","Table of Contents","Table of Contents","Table of Contents","Table of Contents","Table of Contents","Table of Contents","Table of Contents","Table of Contents","Table of Contents","Table of Contents","Table of Contents","Table of Contents","Table of Contents","Table of Contents","Table of Contents","Table of Contents","Table of Contents","Table of Contents","Table of Contents","Table of Contents","Table of Contents","Table of Contents","Table of Contents","Table of Contents","Table of Contents","Table of Contents","Table of Contents","Table of Contents","Table of Contents","Table of Contents","Table of Contents","Table of Contents","Table of Contents","Table of Contents","Table of Contents","Table of Contents","Table of Contents","Table of Contents","Table of Contents","Table of Contents","Table of Contents","Table of Contents","Table of Contents","Table of Contents","Table of Contents","Table of Contents","Table of Contents","Table of Contents","Table of Contents","Table of Contents","Table of Contents","Table of Contents","Table of Contents","Table of Contents","Table of Contents","Table of Contents","Table of Contents","Table of Contents","Table of Contents","Table of Contents","Table of Contents","Table of Contents","Table of Contents","Table of Contents","Table of Contents","Table of Contents","Table of Contents","Table of Contents","Table of Contents","Table of Contents","Table of Contents","Table of Contents","Table of Contents","Table of Contents","Table of Contents","Table of Contents","Table of Contents","Table of Contents","Table of Contents","Table of Contents","Table of Contents","Table of Contents","Table of Contents","Table of Contents","Table of Contents","Table of Contents","Table of Contents","Table of Contents","Table of Contents","Table of Contents","Table of Contents","Table of Contents","Table of Contents","Table of Contents","Table of Contents","Table of Contents","Table of Contents","Table of Contents","Table of Contents","Table of Contents","Table of Contents","Table of Contents","Table of Contents","Table of Contents","Table of Contents","Table of Contents","Table of Contents","Table of Contents","Table of Contents","Table of Contents","Table of Contents","Table of Contents","Table of Contents","Table of Contents","Table of Contents","Table of Contents","Table of Contents","Table of Contents","Table of Contents","Table of Contents","Table of Contents","Table of Contents","Table of Contents","Table of Contents","Table of Contents","Table of Contents","Table of Contents","Table of Contents","Table of Contents","Table of Contents","Table of Contents","Table of Contents","Table of Contents","Table of Contents","Table of Contents","Table of Contents","Table of Contents","Table of Contents","Table of Contents","Table of Contents","Table of Contents","Table of Contents","Table of Contents","Table of Contents","Table of Contents","Table of Contents","Table of Contents","Table of Contents","Table of Contents","Table of Contents","Table of Contents","Table of Contents","Table of Contents","Table of Contents","Table of Contents","Table of Contents","Table of Contents","Table of Contents","Table of Contents","Table of Contents","Table of Contents","Table of Contents","Table of Contents","Table of Contents","Table of Contents","Table of Contents","Table of Contents","Table of Contents","Table of Contents","Table of Contents","Table of Contents","Table of Contents","Table of Contents","Table of Contents","Table of Contents","Table of Contents","Table of Contents","Table of Contents","Table of Contents","Table of Contents","Table of Contents","Table of Contents","Table of Contents","Table of Contents","Table of Contents","Table of Contents","Table of Contents","Table of Contents","Table of Contents","Table of Contents","Table of Contents","Table of Contents","Table of Contents","Table of Contents","Table of Contents","Table of Contents","Table of Contents","Table of Contents","Table of Contents","Table of Contents","Table of Contents","Table of Contents","Table of Contents","Table of Contents","Table of Contents","Table of Contents","Table of Contents","Table of Contents","Table of Contents","Table of Contents","Table of Contents","Table of Contents","Table of Contents","Table of Contents","Table of Contents","Table of Contents","Table of Contents","Table of Contents","Table of Contents","Table of Contents","Table of Contents","Table of Contents","Table of Contents","Table of Contents","Table of Contents","Table of Contents","Table of Contents","Table of Contents","Table of Contents","Table of Contents","Table of Contents","Table of Contents","Table of Contents","Table of Contents","Table of Contents","Table of Contents","Table of Contents","Table of Contents","Table of Contents","Table of Contents","Table of Contents","Table of Contents","Table of Contents","Table of Contents","Table of Contents","Table of Contents","Table of Contents","Table of Contents","Table of Contents","Table of Contents","Table of Contents","Table of Contents","Table of Contents","Table of Contents","Table of Contents","Table of Contents","Table of Contents","Table of Contents","Table of Contents","Table of Contents","Table of Contents","Table of Contents","Table of Contents","Table of Contents","Table of Contents","Table of Contents","Table of Contents","Table of Contents","Table of Contents","Table of Contents","Table of Contents","Table of Contents","Table of Contents","Table of Contents","Table of Contents","Table of Contents","Table of Contents","Table of Contents","Table of Contents","Table of Contents","Table of Contents","Table of Contents","Table of Contents","Table of Contents","Table of Contents","Table of Contents","Table of Contents","Table of Contents","Table of Contents","Table of Contents","Table of Contents","Table of Contents","Table of Contents","Table of Contents","Table of Contents","Table of Contents","Table of Contents","Table of Contents","Table of Contents","Table of Contents","Table of Contents","Table of Contents","Table of Contents","Table of Contents","Table of Contents","Table of Contents","Table of Contents","Table of Contents","Table of Contents","Table of Contents","Table of Contents","Table of Contents","Table of Contents","Table of Contents","Table of Contents","Table of Contents","Table of Contents","Table of Contents","Table of Contents","Table of Contents","Table of Contents","Table of Contents","Table of Contents","Table of Contents","Table of Contents","Table of Contents","Table of Contents","Table of Contents","Table of Contents","Table of Contents","Table of Contents","Table of Contents","Table of Contents","Table of Contents","Table of Contents","Table of Contents","Table of Contents","Table of Contents","Table of Contents","Table of Contents","Table of Contents","Table of Contents","Table of Contents","Table of Contents","Table of Contents","Table of Contents","Table of Contents","Table of Contents","Table of Contents","Table of Contents","Table of Contents","Table of Contents","Table of Contents","Table of Contents","Table of Contents","Table of Contents","Table of Contents","Table of Contents","Table of Contents","Table of Contents","Table of Contents","Table of Contents","Table of Contents","Table of Contents","Table of Contents","Table of Contents","Table of Contents","Table of Contents","Table of Contents","Table of Contents","Table of Contents","Table of Contents","Table of Contents","Table of Contents","Table of Contents","Table of Contents","Table of Contents","Table of Contents","Table of Contents","Table of Contents","Table of Contents","Table of Contents","Table of Contents","Table of Contents","Table of Contents","Table of Contents","Table of Contents","Table of Contents","Table of Contents","Table of Contents","Table of Contents","Table of Contents","Table of Contents","Table of Contents","Table of Contents","Table of Contents","Table of Contents","Table of Contents","Table of Contents","Table of Contents","Table of Contents","Table of Contents","Table of Contents","Table of Contents","Table of Contents","Table of Contents","Table of Contents","Table of Contents","Table of Contents","Table of Contents","Table of Contents","Table of Contents","Table of Contents","Table of Contents","Table of Contents","Table of Contents","Table of Contents","Table of Contents","Table of Contents","Table of Contents","Table of Contents","Table of Contents","Table of Contents","Table of Contents","Table of Contents","Table of Contents","Table of Contents","Table of Contents","Table of Contents","Table of Contents","Table of Contents","Table of Contents","Table of Contents","Table of Contents","Table of Contents","Table of Contents","Table of Contents","Table of Contents","Table of Contents","Table of Contents","Table of Contents","Table of Contents","Table of Contents","Table of Contents","Table of Contents","Table of Contents","Table of Contents","Table of Contents","Table of Contents","Table of Contents","Table of Contents","Table of Contents","Table of Contents","Table of Contents","Table of Contents","Table of Contents","Table of Contents","Table of Contents","Table of Contents","Table of Contents","Table of Contents","Table of Contents","Table of Contents","Table of Contents","Table of Contents","Table of Contents","Table of Contents","Table of Contents","Table of Contents","Table of Contents","Table of Contents","Table of Contents","Table of Contents","Table of Contents","Table of Contents","Table of Contents","Table of Contents","Table of Contents","Table of Contents","Table of Contents","Table of Contents","Table of Contents","Table of Contents","Table of Contents","Table of Contents","Table of Contents","Table of Contents","Table of Contents","Table of Contents","Table of Contents","Table of Contents","Table of Contents","Table of Contents","Table of Contents","Table of Contents","Table of Contents","Table of Contents","Table of Contents","Table of Contents","Table of Contents","Table of Contents","Table of Contents","Table of Contents","Table of Contents","Table of Contents","Table of Contents","Table of Contents","Table of Contents","Table of Contents","Table of Contents","Table of Contents","Table of Contents","Table of Contents","Table of Contents","Table of Contents","Table of Contents","Table of Contents","Table of Contents","Table of Contents","Table of Contents","Table of Contents","Table of Contents","Table of Contents","Table of Contents","Table of Contents","Table of Contents","Table of Contents","Table of Contents","Table of Contents","Table of Contents","Table of Contents","Table of Contents","Table of Contents","Table of Contents","Table of Contents","Table of Contents","Table of Contents","Table of Contents","Table of Contents","Table of Contents","Table of Contents","Table of Contents","Table of Contents","Table of Contents","Table of Contents","Table of Contents","Table of Contents","Table of Contents","Table of Contents","Table of Contents","Table of Contents","Table of Contents","Table of Contents","Table of Contents","Table of Contents","Table of Contents","Table of Contents","Table of Contents","Table of Contents","Table of Contents","Table of Contents","Table of Contents","Table of Contents","Table of Contents","Table of Contents","Table of Contents","Table of Contents","Table of Contents","Table of Contents","Table of Contents","Table of Contents","Table of Contents","Table of Contents","Table of Contents","Table of Contents","Table of Contents","Table of Contents","Table of Contents","Table of Contents","Table of Contents","Table of Contents","Table of Contents","Table of Contents","Table of Contents","Table of Contents","Table of Contents","Table of Contents","Table of Contents","Table of Contents","Table of Contents","Table of Contents","Table of Contents","Table of Contents","Table of Contents","Table of Contents","Table of Contents","Table of Contents","Table of Contents","Table of Contents","Table of Contents","Table of Contents","Table of Contents","Table of Contents","Table of Contents","Table of Contents","Table of Contents","Table of Contents","Table of Contents","Table of Contents","Table of Contents","Table of Contents","Table of Contents","Table of Contents","Table of Contents","Table of Contents","Table of Contents","Table of Contents","Table of Contents","Table of Contents","Table of Contents","Table of Contents","Table of Contents","Table of Contents","Table of Contents","Table of Contents","Table of Contents","Table of Contents","Table of Contents","Table of Contents","Table of Contents","Table of Contents","Table of Contents","Table of Contents","Table of Contents","Table of Contents","Table of Contents","Table of Contents","Table of Contents","Table of Contents","Table of Contents","Table of Contents","Table of Contents","Table of Contents","Table of Contents","Table of Contents","Table of Contents","Table of Contents","Table of Contents","Table of Contents","Table of Contents","Table of Contents","Table of Contents","Table of Contents","Table of Contents","Table of Contents","Table of Contents","Table of Contents","Table of Contents","Table of Contents","Table of Contents","Table of Contents","Table of Contents","Table of Contents","Table of Contents","Table of Contents","Table of Contents","Table of Contents","Table of Contents","Table of Contents","Table of Contents","Table of Contents","Table of Contents","Table of Contents","Table of Contents","Table of Contents","Table of Contents","Table of Contents","Table of Contents","Table of Contents","Table of Contents","Table of Contents","Table of Contents","Table of Contents","Table of Contents","Table of Contents","Table of Contents","Table of Contents","Table of Contents","Table of Contents","Table of Contents","Table of Contents","Table of Contents","Table of Contents","Table of Contents","Table of Contents","Table of Contents","Table of Contents","Table of Contents","Table of Contents","Table of Contents","Table of Contents","Table of Contents","Table of Contents","Table of Contents","Table of Contents","Table of Contents","Table of Contents","Table of Contents","Table of Contents","Table of Contents","Table of Contents","Table of Contents","Table of Contents","Table of Contents","Table of Contents","Table of Contents","Table of Contents","Table of Contents","Table of Contents","Table of Contents","Table of Contents","Table of Contents","Table of Contents","Table of Contents","Table of Contents","Table of Contents","Table of Contents","Table of Contents","Table of Contents","Table of Contents","Table of Contents","Table of Contents","Table of Contents","Table of Contents","Table of Contents","Table of Contents","Table of Contents","Table of Contents","Table of Contents","Table of Contents","Table of Contents","Table of Contents","Table of Contents","Table of Contents","Table of Contents","Table of Contents","Table of Contents","Table of Contents","Table of Contents","Table of Contents","Table of Contents","Table of Contents","Table of Contents","Table of Contents","Table of Contents","Table of Contents","Table of Contents","Table of Contents","Table of Contents","Table of Contents","Table of Contents","Table of Contents","Table of Contents","Table of Contents","Table of Contents","Table of Contents","Table of Contents","Table of Contents","Table of Contents","Table of Contents","Table of Contents","Table of Contents","Table of Contents","Table of Contents","Table of Contents","Table of Contents","Table of Contents","Table of Contents","Table of Contents","Table of Contents","Table of Contents","Table of Contents","Table of Contents","Table of Contents","Table of Contents","Table of Contents","Table of Contents","Table of Contents","Table of Contents","Table of Contents","Table of Contents","Table of Contents","Table of Contents","Table of Contents","Table of Contents","Table of Contents","Table of Contents","Table of Contents","Table of Contents","Table of Contents","Table of Contents","Table of Contents","Table of Contents","Table of Contents","Table of Contents","Table of Contents","Table of Contents","Table of Contents","Table of Contents","Table of Contents","Table of Contents","Table of Contents","Table of Contents","Table of Contents","Table of Contents","Table of Contents","Table of Contents","Table of Contents","Table of Contents","Table of Contents","Table of Contents","Table of Contents","Table of Contents","Table of Contents","Table of Contents","Table of Contents","Table of Contents","Table of Contents","Table of Contents","Table of Contents","Table of Contents","Table of Contents","Table of Contents","Table of Contents","Table of Contents","Table of Contents","Table of Contents","Table of Contents","Table of Contents","Table of Contents","Table of Contents","Table of Contents","Table of Contents","Table of Contents","Table of Contents","Table of Contents","Table of Contents","Table of Contents","Table of Contents","Table of Contents","Table of Contents","Table of Contents","Table of Contents","Table of Contents","Table of Contents","Table of Contents","Table of Contents","Table of Contents","Table of Contents","Table of Contents","Table of Contents","Table of Contents","Table of Contents","Table of Contents","Table of Contents","Table of Contents","Table of Contents","Table of Contents","Table of Contents","Table of Contents","Table of Contents","Table of Contents","Table of Contents","Table of Contents","Table of Contents","Table of Contents","Table of Contents","Table of Contents","Table of Contents","Table of Contents","Table of Contents","Table of Contents","Table of Contents","Table of Contents","Table of Contents","Table of Contents","Table of Contents","Table of Contents","Table of Contents","Table of Contents","Table of Contents","Table of Contents","Table of Contents","Table of Contents","Table of Contents","Table of Contents","Table of Contents","Table of Contents","Table of Contents","Table of Contents","Table of Contents","Table of Contents","Table of Contents","Table of Contents","Table of Contents","Table of Contents","Table of Contents","Table of Contents","Table of Contents","Table of Contents","Table of Contents","Table of Contents","Table of Contents","Table of Contents","Table of Contents","Table of Contents","Table of Contents","Table of Contents","Table of Contents","Table of Contents","Table of Contents","Table of Contents","Table of Contents","Table of Contents","Table of Contents","Table of Contents","Table of Contents","Table of Contents","Table of Contents","Table of Contents","Table of Contents","Table of Contents","Table of Contents","Table of Contents","Table of Contents","Table of Contents","Table of Contents","Table of Contents","Table of Contents","Table of Contents","Table of Contents","Table of Contents","Table of Contents","Table of Contents","Table of Contents","Table of Contents","Table of Contents","Table of Contents","Table of Contents","Table of Contents","Table of Contents","Table of Contents","Table of Contents","Table of Contents","Table of Contents","Table of Contents","Table of Contents","Table of Contents","Table of Contents","Table of Contents","Table of Contents","Table of Contents","Table of Contents","Table of Contents","Table of Contents","Table of Contents","Table of Contents","Table of Contents","Table of Contents","Table of Contents","Table of Contents","Table of Contents","Table of Contents","Table of Contents","Table of Contents","Table of Contents","Table of Contents","Table of Contents","Table of Contents","Table of Contents","Table of Contents","Table of Contents","Table of Contents","Table of Contents","Table of Contents","Table of Contents","Table of Contents","Table of Contents","Table of Contents","Table of Contents","Table of Contents","Table of Contents","Table of Contents","Table of Contents","Table of Contents","Table of Contents","Table of Contents","Table of Contents","Table of Contents","Table of Contents","Table of Contents","Table of Contents","Table of Contents","Table of Contents","Table of Contents","Table of Contents","Table of Contents","Table of Contents","Table of Contents","Table of Contents","Table of Contents","Table of Contents","Table of Contents","Table of Contents","Table of Contents","Table of Contents","Table of Contents","Table of Contents","Table of Contents","Table of Contents","Table of Contents","Table of Contents","Table of Contents","Table of Contents","Table of Contents","Table of Contents","Table of Contents","Table of Contents","Table of Contents","Table of Contents","Table of Contents","Table of Contents","Table of Contents","Table of Contents","Table of Contents","Table of Contents","Table of Contents","Table of Contents","Table of Contents","Table of Contents","Table of Contents","Table of Contents","Table of Contents","Table of Contents","Table of Contents","Table of Contents","Table of Contents","Table of Contents","Table of Contents","Table of Contents","Table of Contents","Table of Contents","Table of Contents","Table of Contents","Table of Contents","Table of Contents","Table of Contents","Table of Contents","Table of Contents","Table of Contents","Table of Contents","Table of Contents","Table of Contents","Table of Contents","Table of Contents","Table of Contents","Table of Contents","Table of Contents","Table of Contents","Table of Contents","Table of Contents","Table of Contents","Table of Contents","Table of Contents","Table of Contents","Table of Contents","Table of Contents","Table of Contents","Table of Contents","Table of Contents","Table of Contents","Table of Contents","Table of Contents","Table of Contents","Table of Contents","Table of Contents","Table of Contents","Table of Contents","Table of Contents","Table of Contents","Table of Contents","Table of Contents","Table of Contents","Table of Contents","Table of Contents","Table of Contents","Table of Contents","Table of Contents","Table of Contents","Table of Contents","Table of Contents","Table of Contents","Table of Contents","Table of Contents","Table of Contents","Table of Contents","Table of Contents","Table of Contents","Table of Contents","Table of Contents","Table of Contents","Table of Contents","Table of Contents","Table of Contents","Table of Contents","Table of Contents","Table of Contents","Table of Contents","Table of Contents","Table of Contents","Table of Contents","Table of Contents","Table of Contents","Table of Contents","Table of Contents","Table of Contents","Table of Contents","Table of Contents","Table of Contents","Table of Contents","Table of Contents","Table of Contents","Table of Contents","Table of Contents","Table of Contents","Table of Contents","Table of Contents","Table of Contents","Table of Contents","Table of Contents","Table of Contents","Table of Contents","Table of Contents","Table of Contents","Table of Contents","Table of Contents","Table of Contents","Table of Contents","Table of Contents","Table of Contents","Table of Contents","Table of Contents","Table of Contents","Table of Contents","Table of Contents","Table of Contents","Table of Contents","Table of Contents","Table of Contents","Table of Contents","Table of Contents","Table of Contents","Table of Contents","Table of Contents","Table of Contents","Table of Contents","Table of Contents","Table of Contents","Table of Contents","Table of Contents","Table of Contents","Table of Contents","Table of Contents","Table of Contents","Table of Contents","Table of Contents","Table of Contents","Table of Contents","Table of Contents","Table of Contents","Table of Contents","Table of Contents","Table of Contents","Table of Contents","Table of Contents","Table of Contents","Table of Contents","Table of Contents","Table of Contents","Table of Contents","Table of Contents","Table of Contents","Table of Contents","Table of Contents","Table of Contents","Table of Contents","Table of Contents","Table of Contents","Table of Contents","Table of Contents","Table of Contents","Table of Contents","Table of Contents","Table of Contents","Table of Contents","Table of Contents","Table of Contents","Table of Contents","Table of Contents","Table of Contents","Table of Contents","Table of Contents","Table of Contents","Table of Contents","Table of Contents","Table of Contents","Table of Contents","Table of Contents","Table of Contents","Table of Contents","Table of Contents","Table of Contents","Table of Contents","Table of Contents","Table of Contents","Table of Contents","Table of Contents","Table of Contents","Table of Contents","Table of Contents","Table of Contents","Table of Contents","Table of Contents","Table of Contents","Table of Contents","Table of Contents","Table of Contents","Table of Contents","Table of Contents","Table of Contents","Table of Contents","Table of Contents","Table of Contents","Table of Contents","Table of Contents","Table of Contents","Table of Contents","Table of Contents","Table of Contents","Table of Contents","Table of Contents","Table of Contents","Table of Contents","Table of Contents","Table of Contents","Table of Contents","Table of Contents","Table of Contents","Table of Contents","Table of Contents","Table of Contents","Table of Contents","Table of Contents","Table of Contents","Table of Contents","Table of Contents","Table of Contents","Table of Contents","Table of Contents","Table of Contents","Table of Contents","Table of Contents","Table of Contents","Table of Contents","Table of Contents","Table of Contents","Table of Contents","Table of Contents","Table of Contents","Table of Contents","Table of Contents","Table of Contents","Table of Contents","Table of Contents","Table of Contents","Table of Contents","Table of Contents","Table of Contents","Table of Contents","Table of Contents","Table of Contents","Table of Contents","Table of Contents","Table of Contents","Table of Contents","Table of Contents","Table of Contents","Table of Contents","Table of Contents","Table of Contents","Table of Contents","Table of Contents","Table of Contents","Table of Contents","Table of Contents","Table of Contents","Table of Contents","Table of Contents","Table of Contents","Table of Contents","Table of Contents","Table of Contents","Table of Contents","Table of Contents","Table of Contents","Table of Contents","Table of Contents","Table of Contents","Table of Contents","Table of Contents","Table of Contents","Table of Contents","Table of Contents","Table of Contents","Table of Contents","Table of Contents","Table of Contents","Table of Contents","Table of Contents","Table of Contents","Table of Contents","Table of Contents","Table of Contents","Table of Contents","Table of Contents","Table of Contents","Table of Contents","Table of Contents","Table of Contents","Table of Contents","Table of Contents","Table of Contents","Table of Contents","Table of Contents","Table of Contents","Table of Contents","Table of Contents","Table of Contents","Table of Contents","Table of Contents","Table of Contents","Table of Contents","Table of Contents","Table of Contents","Table of Contents","Table of Contents","Table of Contents","Table of Contents","Table of Contents","Table of Contents","Table of Contents","Table of Contents","Table of Contents","Table of Contents","Table of Contents","Table of Contents","Table of Contents","Table of Contents","Table of Contents","Table of Contents","Table of Contents","Table of Contents","Table of Contents","Table of Contents","Table of Contents","Table of Contents","Table of Contents","Table of Contents","Table of Contents","Table of Contents","Table of Contents","Table of Contents","Table of Contents","Table of Contents","Table of Contents","Table of Contents","Table of Contents","Table of Contents","Table of Contents","Table of Contents","Table of Contents","Table of Contents","Table of Contents","Table of Contents","Table of Contents","Table of Contents","Table of Contents","Table of Contents","Table of Contents","Table of Contents","Table of Contents","Table of Contents","Table of Contents","Table of Contents","Table of Contents","Table of Contents","Table of Contents","Table of Contents","Table of Contents","Table of Contents","Table of Contents","Table of Contents","Table of Contents","Table of Contents","Table of Contents","Table of Contents","Table of Contents","Table of Contents","Table of Contents","Table of Contents","Table of Contents","Table of Contents","Table of Contents","Table of Contents","Table of Contents","Table of Contents","Table of Contents","Table of Contents","Table of Contents","Table of Contents","Table of Contents","Table of Contents","Table of Contents","Table of Contents","Table of Contents","Table of Contents","Table of Contents","Table of Contents","Table of Contents","Table of Contents","Table of Contents","Table of Contents","Table of Contents","Table of Contents","Table of Contents","Table of Contents","Table of Contents","Table of Contents","Table of Contents","Table of Contents","Table of Contents","Table of Contents","Table of Contents","Table of Contents","Table of Contents","Table of Contents","Table of Contents","Table of Contents","Table of Contents","Table of Contents","Table of Contents","Table of Contents","Table of Contents","Table of Contents","Table of Contents","Table of Contents","Table of Contents","Table of Contents","Table of Contents","Table of Contents","Table of Contents","Table of Contents","Table of Contents","Table of Contents","Table of Contents","Table of Contents","Table of Contents","Table of Contents","Table of Contents","Table of Contents","Table of Contents","Table of Contents","Table of Contents","Table of Contents","Table of Contents","Table of Contents","Table of Contents","Table of Contents","Table of Contents","Table of Contents","Table of Contents","Table of Contents","Table of Contents","Table of Contents","Table of Contents","Table of Contents","Table of Contents","Table of Contents","Table of Contents","Table of Contents","Table of Contents","Table of Contents","Table of Contents","Table of Contents","Table of Contents","Table of Contents","Table of Contents","Table of Contents","Table of Contents","Table of Contents","Table of Contents","Table of Contents","Table of Contents","Table of Contents","Table of Contents","Table of Contents","Table of Contents","Table of Contents","Table of Contents","Table of Contents","Table of Contents","Table of Contents","Table of Contents","Table of Contents","Table of Contents","Table of Contents","Table of Contents","Table of Contents","Table of Contents","Table of Contents","Table of Contents","Table of Contents","Table of Contents","Table of Contents","Table of Contents","Table of Contents","Table of Contents","Table of Contents","Table of Contents","Table of Contents","Table of Contents","Table of Contents","Table of Contents","Table of Contents","Table of Contents","Table of Contents","Table of Contents","Table of Contents","Table of Contents","Table of Contents","Table of Contents","Table of Contents","Table of Contents","Table of Contents","Table of Contents","Table of Contents","Table of Contents","Table of Contents","Table of Contents","Table of Contents","Table of Contents","Table of Contents","Table of Contents","Table of Contents","Table of Contents","Table of Contents","Table of Contents","Table of Contents","Table of Contents","Table of Contents","Table of Contents","Table of Contents","Table of Contents","Table of Contents","Table of Contents","Table of Contents","Table of Contents","Table of Contents","Table of Contents","Table of Contents","Table of Contents","Table of Contents","Table of Contents","Table of Contents","Table of Contents","Table of Contents","Table of Contents","Table of Contents","Table of Contents","Table of Contents","Table of Contents","Table of Contents","Table of Contents","Table of Contents","Table of Contents","Table of Contents","Table of Contents","Table of Contents","Table of Contents","Table of Contents","Table of Contents","Table of Contents","Table of Contents","Table of Contents","Table of Contents","Table of Contents","Table of Contents","Table of Contents","Table of Contents","Table of Contents","Table of Contents","Table of Contents","Table of Contents","Table of Contents","Table of Contents","Table of Contents","Table of Contents","Table of Contents","Table of Contents","Table of Contents","Table of Contents","Table of Contents","Table of Contents","Table of Contents","Table of Contents","Table of Contents","Table of Contents","Table of Contents","Table of Contents","Table of Contents","Table of Contents","Table of Contents","Table of Contents","Table of Contents","Table of Contents","Table of Contents","Table of Contents","Table of Contents","Table of Contents","Table of Contents","Table of Contents","Table of Contents","Table of Contents","Table of Contents","Table of Contents","Table of Contents","Table of Contents","Table of Contents","Table of Contents","Table of Contents","Table of Contents","Table of Contents","Table of Contents","Table of Contents","Table of Contents","Table of Contents","Table of Contents","Table of Contents","Table of Contents","Table of Contents","Table of Contents","Table of Contents","Table of Contents","Table of Contents","Table of Contents","Table of Contents","Table of Contents","Table of Contents","Table of Contents","Table of Contents","Table of Contents","Table of Contents","Table of Contents","Table of Contents","Table of Contents","Table of Contents","Table of Contents","Table of Contents","Table of Contents","Table of Contents","Table of Contents","Table of Contents","Table of Contents","Table of Contents","Table of Contents","Table of Contents","Table of Contents","Table of Contents","Table of Contents","Table of Contents","Table of Contents","Table of Contents","Table of Contents","Table of Contents","Table of Contents","Table of Contents","Table of Contents","Table of Contents","Table of Contents","Table of Contents","Table of Contents","Table of Contents","Table of Contents","Table of Contents","Table of Contents","Table of Contents","Table of Contents","Table of Contents","Table of Contents","Table of Contents","Table of Contents","Table of Contents","Table of Contents","Table of Contents","Table of Contents","Table of Contents","Table of Contents","Table of Contents","Table of Contents","Table of Contents","Table of Contents","Table of Contents","Table of Contents","Table of Contents","Table of Contents","Table of Contents","Table of Contents","Table of Contents","Table of Contents","Table of Contents","Table of Contents","Table of Contents","Table of Contents","Table of Contents","Table of Contents","Table of Contents","Table of Contents","Table of Contents","Table of Contents","Table of Contents","Table of Contents","Table of Contents","Table of Contents","Table of Contents","Table of Contents","Table of Contents","Table of Contents","Table of Contents","Table of Contents","Table of Contents","Table of Contents","Table of Contents","Table of Contents","Table of Contents","Table of Contents","Table of Contents","Table of Contents","Table of Contents","Table of Contents","Table of Contents","Table of Contents","Table of Contents","Table of Contents","Table of Contents","Table of Contents","Table of Contents","Table of Contents","Table of Contents","Table of Contents","Table of Contents","Table of Contents","Table of Contents","Table of Contents","Table of Contents","Table of Contents","Table of Contents","Table of Contents","Table of Contents","Table of Contents","Table of Contents","Table of Contents","Table of Contents","Table of Contents","Table of Contents","Table of Contents","Table of Contents","Table of Contents","Table of Contents","Table of Contents","Table of Contents","Table of Contents","Table of Contents","Table of Contents","Table of Contents","Table of Contents","Table of Contents","Table of Contents","Table of Contents","Table of Contents","Table of Contents","Table of Contents","Table of Contents","Table of Contents","Table of Contents","Table of Contents","Table of Contents","Table of Contents","Table of Contents","Table of Contents","Table of Contents","Table of Contents","Table of Contents","Table of Contents","Table of Contents","Table of Contents","Table of Contents","Table of Contents","Table of Contents","Table of Contents","Table of Contents","Table of Contents","Table of Contents","Table of Contents","Table of Contents","Table of Contents","Table of Contents","Table of Contents","Table of Contents","Table of Contents","Table of Contents","Table of Contents","Table of Contents","Table of Contents","Table of Contents","Table of Contents","Table of Contents","Table of Contents","Table of Contents","Table of Contents","Table of Contents","Table of Contents","Table of Contents","Table of Contents","Table of Contents","Table of Contents","Table of Contents","Table of Contents","Table of Contents","Table of Contents","Table of Contents","Table of Contents","Table of Contents","Table of Contents","Table of Contents","Table of Contents","Table of Contents","Table of Contents","Table of Contents","Table of Contents","Table of Contents","Table of Contents","Table of Contents","Table of Contents","Table of Contents","Table of Contents","Table of Contents","Table of Contents","Table of Contents","Table of Contents","Table of Contents","Table of Contents","Table of Contents","Table of Contents","Table of Contents","Table of Contents","Table of Contents","Table of Contents","Table of Contents","Table of Contents","Table of Contents","Table of Contents","Table of Contents","Table of Contents","Table of Contents","Table of Contents","Table of Contents","Table of Contents","Table of Contents","Table of Contents","Table of Contents","Table of Contents","Table of Contents","Table of Contents","Table of Contents","Table of Contents","Table of Contents","Table of Contents","Table of Contents","Table of Contents","Table of Contents","Table of Contents","Table of Contents","Table of Contents","Table of Contents","Table of Contents","Table of Contents","Table of Contents","Table of Contents","Table of Contents","Table of Contents","Table of Contents","Table of Contents","Table of Contents","Table of Contents","Table of Contents","Table of Contents","Table of Contents","Table of Contents","Table of Contents","Table of Contents","Table of Contents","Table of Contents","Table of Contents","Table of Contents","Table of Contents","Table of Contents","Table of Contents","Table of Contents","Table of Contents","Table of Contents","Table of Contents","Table of Contents","Table of Contents","Table of Contents","Table of Contents","Table of Contents","Table of Contents","Table of Contents","Table of Contents","Table of Contents","Table of Contents","Table of Contents","Table of Contents","Table of Contents","Table of Contents","Table of Contents","Table of Contents","Table of Contents","Table of Contents","Table of Contents","Table of Contents","Table of Contents","Table of Contents","Table of Contents","Table of Contents","Table of Contents","Table of Contents","Table of Contents","Table of Contents","Table of Contents","Table of Contents","Table of Contents","Table of Contents","Table of Contents","Table of Contents","Table of Contents","Table of Contents","Table of Contents","Table of Contents","Table of Contents","Table of Contents","Table of Contents","Table of Contents","Table of Contents","Table of Contents","Table of Contents","Table of Contents","Table of Contents","Table of Contents","Table of Contents","Table of Contents","Table of Contents","Table of Contents","Table of Contents","Table of Contents","Table of Contents","Table of Contents","Table of Contents","Table of Contents","Table of Contents","Table of Contents","Table of Contents","Table of Contents","Table of Contents","Table of Contents","Table of Contents","Table of Contents","Table of Contents","Table of Contents","Table of Contents","Table of Contents","Table of Contents","Table of Contents","Table of Contents","Table of Contents","Table of Contents","Table of Contents","Table of Contents","Table of Contents","Table of Contents","Table of Contents","Table of Contents","Table of Contents","Table of Contents","Table of Contents","Table of Contents","Table of Contents","Table of Contents","Table of Contents","Table of Contents","Table of Contents","Table of Contents","Table of Contents","Table of Contents","Table of Contents","Table of Contents","Table of Contents","Table of Contents","Table of Contents","Table of Contents","Table of Contents","Table of Contents","Table of Contents","Table of Contents","Table of Contents","Table of Contents","Table of Contents","Table of Contents","Table of Contents","Table of Contents","Table of Contents","Table of Contents","Table of Contents","Table of Contents","Table of Contents","Table of Contents","Table of Contents","Table of Contents","Table of Contents","Table of Contents","Table of Contents","Table of Contents","Table of Contents","Table of Contents","Table of Contents","Table of Contents","Table of Contents","Table of Contents","Table of Contents","Table of Contents","Table of Contents","Table of Contents","Table of Contents","Table of Contents","Table of Contents","Table of Contents","Table of Contents","Table of Contents","Table of Contents","Table of Contents","Table of Contents","Table of Contents","Table of Contents","Table of Contents","Table of Contents","Table of Contents","Table of Contents","Table of Contents","Table of Contents","Table of Contents","Table of Contents","Table of Contents","Table of Contents","Table of Contents","Table of Contents","Table of Contents","Table of Contents","Table of Contents","Table of Contents","Table of Contents","Table of Contents","Table of Contents","Table of Contents","Table of Contents","Table of Contents","Table of Contents","Table of Contents","Table of Contents","Table of Contents","Table of Contents","Table of Contents","Table of Contents","Table of Contents","Table of Contents","Table of Contents","Table of Contents","Table of Contents","Table of Contents","Table of Contents","Table of Contents","Table of Contents","Table of Contents","Table of Contents","Table of Contents","Table of Contents","Table of Contents","Table of Contents","Table of Contents","Table of Contents","Table of Contents","Table of Contents","Table of Contents","Table of Contents","Table of Contents","Table of Contents","Table of Contents","Table of Contents","Table of Contents","Table of Contents","Table of Contents","Table of Contents","Table of Contents","Table of Contents","Table of Contents","Table of Contents","Table of Contents","Table of Contents","Table of Contents","Table of Contents","Table of Contents","Table of Contents","Table of Contents","Table of Contents","Table of Contents","Table of Contents","Table of Contents","Table of Contents","Table of Contents","Table of Contents","Table of Contents","Table of Contents","Table of Contents","Table of Contents","Table of Contents","Table of Contents","Table of Contents","Table of Contents","Table of Contents","Table of Contents","Table of Contents","Table of Contents","Table of Contents","Table of Contents","Table of Contents","Table of Contents","Table of Contents","Table of Contents","Table of Contents","Table of Contents","Table of Contents","Table of Contents","Table of Contents","Table of Contents","Table of Contents","Table of Contents","Table of Contents","Table of Contents","Table of Contents","Table of Contents","Table of Contents","Table of Contents","Table of Contents","Table of Contents","Table of Contents","Table of Contents","Table of Contents","Table of Contents","Table of Contents","Table of Contents","Table of Contents","Table of Contents","Table of Contents","Table of Contents","Table of Contents","Table of Contents","Table of Contents","Table of Contents","Table of Contents","Table of Contents","Table of Contents","Table of Contents","Table of Contents","Table of Contents","Table of Contents","Table of Contents","Table of Contents","Table of Contents","Table of Contents","Table of Contents","Table of Contents","Table of Contents","Table of Contents","Table of Contents","Table of Contents","Table of Contents","Table of Contents","Table of Contents","Table of Contents","Table of Contents","Table of Contents","Table of Contents","Table of Contents","Table of Contents","Table of Contents","Table of Contents","Table of Contents","Table of Contents","Table of Contents","Table of Contents","Table of Contents","Table of Contents","Table of Contents","Table of Contents","Table of Contents","Table of Contents","Table of Contents","Table of Contents","Table of Contents","Table of Contents","Table of Contents","Table of Contents","Table of Contents","Table of Contents","Table of Contents","Table of Contents","Table of Contents","Table of Contents","Table of Contents","Table of Contents","Table of Contents","Table of Contents","Table of Contents","Table of Contents","Table of Contents","Table of Contents","Table of Contents","Table of Contents","Table of Contents","Table of Contents","Table of Contents","Table of Contents","Table of Contents","Table of Contents","Table of Contents","Table of Contents","Table of Contents","Table of Contents","Table of Contents","Table of Contents","Table of Contents","Table of Contents","Table of Contents","Table of Contents","Table of Contents","Table of Contents","Table of Contents","Table of Contents","Table of Contents","Table of Contents","Table of Contents","Table of Contents","Table of Contents","Table of Contents","Table of Contents","Table of Contents","Table of Contents","Table of Contents","Table of Contents","Table of Contents","Table of Contents","Table of Contents","Table of Contents","Table of Contents","Table of Contents","Table of Contents","Table of Contents","Table of Contents","Table of Contents","Table of Contents","Table of Contents","Table of Contents","Table of Contents","Table of Contents","Table of Contents","Table of Contents","Table of Contents","Table of Contents","Table of Contents","Table of Contents","Table of Contents","Table of Contents","Table of Contents","Table of Contents","Table of Contents","Table of Contents","Table of Contents","Table of Contents","Table of Contents","Table of Contents","Table of Contents","Table of Contents","Table of Contents","Table of Contents","Table of Contents","Table of Contents","Table of Contents","Table of Contents","Table of Contents","Table of Contents","Table of Contents","Table of Contents","Table of Contents","Table of Contents","Table of Contents","Table of Contents","Table of Contents","Table of Contents","Table of Contents","Table of Contents","Table of Contents","Table of Contents","Table of Contents","Table of Contents","Table of Contents","Table of Contents","Table of Contents","Table of Contents","Table of Contents","Table of Contents","Table of Contents","Table of Contents","Table of Contents","Table of Contents","Table of Contents","Table of Contents","Table of Contents","Table of Contents","Table of Contents","Table of Contents","Table of Contents","Table of Contents","Table of Contents","Table of Contents","Table of Contents","Table of Contents","Table of Contents","Table of Contents","Table of Contents","Table of Contents","Table of Contents","Table of Contents","Table of Contents","Table of Contents","Table of Contents","Table of Contents","Table of Contents","Table of Contents","Table of Contents","Table of Contents","Table of Contents","Table of Contents","Table of Contents","Table of Contents","Table of Contents","Table of Contents","Table of Contents","Table of Contents","Table of Contents","Table of Contents","Table of Contents","Table of Contents","Table of Contents","Table of Contents","Table of Contents","Table of Contents","Table of Contents","Table of Contents","Table of Contents","Table of Contents","Table of Contents","Table of Contents","Table of Contents","Table of Contents","Table of Contents","Table of Contents","Table of Contents","Table of Contents","Table of Contents","Table of Contents","Table of Contents","Table of Contents","Table of Contents","Table of Contents","Table of Contents","Table of Contents","Table of Contents","Table of Contents","Table of Contents","Table of Contents","Table of Contents","Table of Contents","Table of Contents","Table of Contents","Table of Contents","Table of Contents","Table of Contents","Table of Contents","Table of Contents","Table of Contents","Table of Contents","Table of Contents","Table of Contents","Table of Contents","Table of Contents","Table of Contents","Table of Contents","Table of Contents","Table of Contents","Table of Contents","Table of Contents","Table of Contents","Table of Contents","Table of Contents","Table of Contents","Table of Contents","Table of Contents","Table of Contents","Table of Contents","Table of Contents","Table of Contents","Table of Contents","Table of Contents","Table of Contents","Table of Contents","Table of Contents","Table of Contents","Table of Contents","Table of Contents","Table of Contents","Table of Contents","Table of Contents","Table of Contents","Table of Contents","Table of Contents","Table of Contents","Table of Contents","Table of Contents","Table of Contents","Table of Contents","Table of Contents","Table of Contents","Table of Contents","Table of Contents","Table of Contents","Table of Contents","Table of Contents","Table of Contents","Table of Contents","Table of Contents","Table of Contents","Table of Contents","Table of Contents","Table of Contents","Table of Contents","Table of Contents","Table of Contents","Table of Contents","Table of Contents","Table of Contents","Table of Contents","Table of Contents","Table of Contents","Table of Contents","Table of Contents","Table of Contents","Table of Contents","Table of Contents","Table of Contents","Table of Contents","Table of Contents","Table of Contents","Table of Contents","Table of Contents","Table of Contents","Table of Contents","Table of Contents","Table of Contents","Table of Contents","Table of Contents","Table of Contents","Table of Contents","Table of Contents","Table of Contents","Table of Contents","Table of Contents","Table of Contents","Table of Contents","Table of Contents","Table of Contents","Table of Contents","Table of Contents","Table of Contents","Table of Contents","Table of Contents","Table of Contents","Table of Contents","Table of Contents","Table of Contents","Table of Contents","Table of Contents","Table of Contents","Table of Contents","Table of Contents","Table of Contents","Table of Contents","Table of Contents","Table of Contents","Table of Contents","Table of Contents","Table of Contents","Table of Contents","Table of Contents","Table of Contents","Table of Contents","Table of Contents","Table of Contents","Table of Contents","Table of Contents","Table of Contents","Table of Contents","Table of Contents","Table of Contents","Table of Contents","Table of Contents","Table of Contents","Table of Contents","Table of Contents","Table of Contents","Table of Contents","Table of Contents","Table of Contents","Table of Contents","Table of Contents","Table of Contents","Table of Contents","Table of Contents","Table of Contents","Table of Contents","Table of Contents","Table of Contents","Table of Contents","Table of Contents","Table of Contents","Table of Contents","Table of Contents","Table of Contents","Table of Contents","Table of Contents","Table of Contents","Table of Contents","Table of Contents","Table of Contents","Table of Contents","Table of Contents","Table of Contents","Table of Contents","Table of Contents","Table of Contents","Table of Contents","Table of Contents","Table of Contents","Table of Contents","Table of Contents","Table of Contents","Table of Contents","Table of Contents","Table of Contents","Table of Contents","Table of Contents","Table of Contents","Table of Contents","Table of Contents","Table of Contents","Table of Contents","Table of Contents","Table of Contents","Table of Contents","Table of Contents","Table of Contents","Table of Contents","Table of Contents","Table of Contents","Table of Contents","Table of Contents","Table of Contents","Table of Contents","Table of Contents","Table of Contents","Table of Contents","Table of Contents","Table of Contents","Table of Contents","Table of Contents","Table of Contents","Table of Contents","Table of Contents","Table of Contents","Table of Contents","Table of Contents","Table of Contents","Table of Contents","Table of Contents","Table of Contents","Table of Contents","Table of Contents","Table of Contents","Table of Contents","Table of Contents","Table of Contents","Table of Contents","Table of Contents","Table of Contents","Table of Contents","Table of Contents","Table of Contents","Table of Contents","Table of Contents","Table of Contents","Table of Contents","Table of Contents","Table of Contents","Table of Contents","Table of Contents","Table of Contents","Table of Contents","Table of Contents","Table of Contents","Table of Contents","Table of Contents","Table of Contents","Table of Contents","Table of Contents","Table of Contents","Table of Contents","Table of Contents","Table of Contents","Table of Contents","Table of Contents","Table of Contents","Table of Contents","Table of Contents","Table of Contents","Table of Contents","Table of Contents","Table of Contents","Table of Contents","Table of Contents","Table of Contents","Table of Contents","Table of Contents","Table of Contents","Table of Contents","Table of Contents","Table of Contents","Table of Contents","Table of Contents","Table of Contents","Table of Contents","Table of Contents","Table of Contents","Table of Contents","Table of Contents","Table of Contents","Table of Contents","Table of Contents","Table of Contents","Table of Contents","Table of Contents","Table of Contents","Table of Contents","Table of Contents","Table of Contents","Table of Contents","Table of Contents","Table of Contents","Table of Contents","Table of Contents","Table of Contents","Table of Contents","Table of Contents","Table of Contents","Table of Contents","Table of Contents","Table of Contents","Table of Contents","Table of Contents","Table of Contents","Table of Contents","Table of Contents","Table of Contents","Table of Contents","Table of Contents","Table of Contents","Table of Contents","Table of Contents","Table of Contents","Table of Contents","Table of Contents","Table of Contents","Table of Contents","Table of Contents","Table of Contents","Table of Contents","Table of Contents","Table of Contents","Table of Contents","Table of Contents","Table of Contents","Table of Contents","Table of Contents","Table of Contents","Table of Contents","Table of Contents","Table of Contents","Table of Contents","Table of Contents","Table of Contents","Table of Contents","Table of Contents","Table of Contents","Table of Contents","Table of Contents","Table of Contents","Table of Contents","Table of Contents","Table of Contents","Table of Contents","Table of Contents","Table of Contents","Table of Contents","Table of Contents","Table of Contents","Table of Contents","Table of Contents","Table of Contents","Table of Contents","Table of Contents","Table of Contents","Table of Contents","Table of Contents","Table of Contents","Table of Contents","Table of Contents","Table of Contents","Table of Contents","Table of Contents","Table of Contents","Table of Contents","Table of Contents","Table of Contents","Table of Contents","Table of Contents","Table of Contents","Table of Contents","Table of Contents","Table of Contents","Table of Contents","Table of Contents","Table of Contents","Table of Contents","Table of Contents","Table of Contents","Table of Contents","Table of Contents","Table of Contents","Table of Contents","Table of Contents","Table of Contents","Table of Contents","Table of Contents","Table of Contents","Table of Contents","Table of Contents","Table of Contents","Table of Contents","Table of Contents","Table of Contents","Table of Contents","Table of Contents","Table of Contents","Table of Contents","Table of Contents","Table of Contents","Table of Contents","Table of Contents","Table of Contents","Table of Contents","Table of Contents","Table of Contents","Table of Contents","Table of Contents","Table of Contents","Table of Contents","Table of Contents","Table of Contents","Table of Contents","Table of Contents","Table of Contents","Table of Contents","Table of Contents","Table of Contents","Table of Contents","Table of Contents","Table of Contents","Table of Contents","Table of Contents","Table of Contents","Table of Contents","Table of Contents","Table of Contents","Table of Contents","Table of Contents","Table of Contents","Table of Contents","Table of Contents","Table of Contents","Table of Contents","Table of Contents","Table of Contents","Table of Contents","Table of Contents","Table of Contents","Table of Contents","Table of Contents","Table of Contents","Table of Contents","Table of Contents","Table of Contents","Table of Contents","Table of Contents","Table of Contents","Table of Contents","Table of Contents","Table of Contents","Table of Contents","Table of Contents","Table of Contents","Table of Contents","Table of Contents","Table of Contents","Table of Contents","Table of Contents","Table of Contents","Table of Contents","Table of Contents","Table of Contents","Table of Contents","Table of Contents","Table of Contents","Table of Contents","Table of Contents","Table of Contents","Table of Contents","Table of Contents","Table of Contents","Table of Contents","Table of Contents","Table of Contents","Table of Contents","Table of Contents","Table of Contents","Table of Contents","Table of Contents","Table of Contents","Table of Contents","Table of Contents","Table of Contents","Table of Contents","Table of Contents","Table of Contents","Table of Contents","Table of Contents","Table of Contents","Table of Contents","Table of Contents","Table of Contents","Table of Contents","Table of Contents","Table of Contents","Table of Contents","Table of Contents","Table of Contents","Table of Contents","Table of Contents","Table of Contents","Table of Contents","Table of Contents","Table of Contents","Table of Contents","Table of Contents","Table of Contents","Table of Contents","Table of Contents","Table of Contents","Table of Contents","Table of Contents","Table of Contents","Table of Contents","Table of Contents","Table of Contents","Table of Contents","Table of Contents","Table of Contents","Table of Contents","Table of Contents","Table of Contents","Table of Contents","Table of Contents","Table of Contents","Table of Contents","Table of Contents","Table of Contents","Table of Contents","Table of Contents","Table of Contents","Table of Contents","Table of Contents","Table of Contents","Table of Contents","Table of Contents","Table of Contents","Table of Contents","Table of Contents","Table of Contents","Table of Contents","Table of Contents","Table of Contents","Table of Contents","Table of Contents","Table of Contents","Table of Contents","Table of Contents","Table of Contents","Table of Contents","Table of Contents","Table of Contents","Table of Contents","Table of Contents","Table of Contents","Table of Contents","Table of Contents","Table of Contents","Table of Contents","Table of Contents","Table of Contents","Table of Contents","Table of Contents","Table of Contents","Table of Contents","Table of Contents","Table of Contents","Table of Contents","Table of Contents","Table of Contents","Table of Contents","Table of Contents","Table of Contents","Table of Contents","Table of Contents","Table of Contents","Table of Contents","Table of Contents","Table of Contents","Table of Contents","Table of Contents","Table of Contents","Table of Contents","Table of Contents","Table of Contents","Table of Contents","Table of Contents","Table of Contents","Table of Contents","Table of Contents","Table of Contents","Table of Contents","Table of Contents","Table of Contents","Table of Contents","Table of Contents","Table of Contents","Table of Contents","Table of Contents","Table of Contents","Table of Contents","Table of Contents","Table of Contents","Table of Contents","Table of Contents","Table of Contents","Table of Contents","Table of Contents","Table of Contents","Table of Contents","Table of Contents","Table of Contents","Table of Contents","Table of Contents","Table of Contents","Table of Contents","Table of Contents","Table of Contents","Table of Contents","Table of Contents","Table of Contents","Table of Contents","Table of Contents","Table of Contents","Table of Contents","Table of Contents","Table of Contents","Table of Contents","Table of Contents","Table of Contents","Table of Contents","Table of Contents","Table of Contents","Table of Contents","Table of Contents","Table of Contents","Table of Contents","Table of Contents","Table of Contents","Table of Contents","Table of Contents","Table of Contents","Table of Contents","Table of Contents","Table of Contents","Table of Contents","Table of Contents","Table of Contents","Table of Contents","Table of Contents","Table of Contents","Table of Contents","Table of Contents","Table of Contents","Table of Contents","Table of Contents","Table of Contents","Table of Contents","Table of Contents","Table of Contents","Table of Contents","Table of Contents","Table of Contents","Table of Contents","Table of Contents","Table of Contents","Table of Contents","Table of Contents","Table of Contents","Table of Contents","Table of Contents","Table of Contents","Table of Contents","Table of Contents","Table of Contents","Table of Contents","Table of Contents","Table of Contents","Table of Contents","Table of Contents","Table of Contents","Table of Contents","Table of Contents","Table of Contents","Table of Contents","Table of Contents","Table of Contents","Table of Contents","Table of Contents","Table of Contents","Table of Contents","Table of Contents","Table of Contents","Table of Contents","Table of Contents","Table of Contents","Table of Contents","Table of Contents","Table of Contents","Table of Contents","Table of Contents","Table of Contents","Table of Contents","Table of Contents","Table of Contents","Table of Contents","Table of Contents","Table of Contents","Table of Contents","Table of Contents","Table of Contents","Table of Contents","Table of Contents","Table of Contents","Table of Contents","Table of Contents","Table of Contents","Table of Contents","Table of Contents","Table of Contents","Table of Contents","Table of Contents","Table of Contents","Table of Contents","Table of Contents","Table of Contents","Table of Contents","Table of Contents","Table of Contents","Table of Contents","Table of Contents","Table of Contents","Table of Contents","Table of Contents","Table of Contents","Table of Contents","Table of Contents","Table of Contents","Table of Contents","Table of Contents","Table of Contents","Table of Contents","Table of Contents","Table of Contents","Table of Contents","Table of Contents","Table of Contents","Table of Contents","Table of Contents","Table of Contents","Table of Contents","Table of Contents","Table of Contents","Table of Contents","Table of Contents","Table of Contents","Table of Contents","Table of Contents","Table of Contents","Table of Contents","Table of Contents","Table of Contents","Table of Contents","Table of Contents","Table of Contents","Table of Contents","Table of Contents","Table of Contents","Table of Contents","Table of Contents","Table of Contents","Table of Contents","Table of Contents","Table of Contents","Table of Contents","Table of Contents","Table of Contents","Table of Contents","Table of Contents","Table of Contents","Table of Contents","Table of Contents","Table of Contents","Table of Contents","Table of Contents","Table of Contents","Table of Contents","Table of Contents","Table of Contents","Table of Contents","Table of Contents","Table of Contents","Table of Contents","Table of Contents","Table of Contents","Table of Contents","Table of Contents","Table of Contents","Table of Contents","Table of Contents","Table of Contents","Table of Contents","Table of Contents","Table of Contents","Table of Contents","Table of Contents","Table of Contents","Table of Contents","Table of Contents","Table of Contents","Table of Contents","Table of Contents","Table of Contents","Table of Contents","Table of Contents","Table of Contents","Table of Contents","Table of Contents","Table of Contents","Table of Contents","Table of Contents","Table of Contents","Table of Contents","Table of Contents","Table of Contents","Table of Contents","Table of Contents","Table of Contents","Table of Contents","Table of Contents","Table of Contents","Table of Contents","Table of Contents","Table of Contents","Table of Contents","Table of Contents","Table of Contents","Table of Contents","Table of Contents","Table of Contents","Table of Contents","Table of Contents","Table of Contents","Table of Contents","Table of Contents","Table of Contents","Table of Contents","Table of Contents","Table of Contents","Table of Contents","Table of Contents","Table of Contents","Table of Contents","Table of Contents","Table of Contents","Table of Contents","Table of Contents","Table of Contents","Table of Contents","Table of Contents","Table of Contents","Table of Contents","Table of Contents","Table of Contents","Table of Contents","Table of Contents","Table of Contents","Table of Contents","Table of Contents","Table of Contents","Table of Contents","Table of Contents","Table of Contents","Table of Contents","Table of Contents","Table of Contents","Table of Contents","Table of Contents","Table of Contents","Table of Contents","Table of Contents","Table of Contents","Table of Contents","Table of Contents","Table of Contents","Table of Contents","Table of Contents","Table of Contents","Table of Contents","Table of Contents","Table of Contents","Table of Contents","Table of Contents","Table of Contents","Table of Contents","Table of Contents","Table of Contents","Table of Contents","Table of Contents","Table of Contents","Table of Contents","Table of Contents","Table of Contents","Table of Contents","Table of Contents","Table of Contents","Table of Contents","Table of Contents","Table of Contents","Table of Contents","Table of Contents","Table of Contents","Table of Contents","Table of Contents","Table of Contents","Table of Contents","Table of Contents","Table of Contents","Table of Contents","Table of Contents","Table of Contents","Table of Contents","Table of Contents","Table of Contents","Table of Contents","Table of Contents","Table of Contents","Table of Contents","Table of Contents","Table of Contents","Table of Contents","Table of Contents","Table of Contents","Table of Contents","Table of Contents","Table of Contents","Table of Contents","Table of Contents","Table of Contents","Table of Contents","Table of Contents","Table of Contents","Table of Contents","Table of Contents","Table of Contents","Table of Contents","Table of Contents","Table of Contents","Table of Contents","Table of Contents","Table of Contents","Table of Contents","Table of Contents","Table of Contents","Table of Contents","Table of Contents","Table of Contents","Table of Contents","Table of Contents","Table of Contents","Table of Contents","Table of Contents","Table of Contents","Table of Contents","Table of Contents","Table of Contents","Table of Contents","Table of Contents","Table of Contents","Table of Contents","Table of Contents","Table of Contents","Table of Contents","Table of Contents","Table of Contents","Table of Contents","Table of Contents","Table of Contents","Table of Contents","Table of Contents","Table of Contents","Table of Contents","Table of Contents","Table of Contents","Table of Contents","Table of Contents","Table of Contents","Table of Contents","Table of Contents","Table of Contents","Table of Contents","Table of Contents","Table of Contents","Table of Contents","Table of Contents","Table of Contents","Table of Contents","Table of Contents","Table of Contents","Table of Contents","Table of Contents","Table of Contents","Table of Contents","Table of Contents","Table of Contents","Table of Contents","Table of Contents","Table of Contents","Table of Contents","Table of Contents","Table of Contents","Table of Contents","Table of Contents","Table of Contents","Table of Contents","Table of Contents","Table of Contents","Table of Contents","Table of Contents","Table of Contents","Table of Contents","Table of Contents","Table of Contents","Table of Contents","Table of Contents","Table of Contents","Table of Contents","Table of Contents","Table of Contents","Table of Contents","Table of Contents","Table of Contents","Table of Contents","Table of Contents","Table of Contents","Table of Contents","Table of Contents","Table of Contents","Table of Contents","Table of Contents","Table of Contents","Table of Contents","Table of Contents","Table of Contents","Table of Contents","Table of Contents","Table of Contents","Table of Contents","Table of Contents","Table of Contents","Table of Contents","Table of Contents","Table of Contents","Table of Contents","Table of Contents","Table of Contents","Table of Contents","Table of Contents","Table of Contents","Table of Contents","Table of Contents","Table of Contents","Table of Contents","Table of Contents","Table of Contents","Table of Contents","Table of Contents","Table of Contents","Table of Contents","Table of Contents","Table of Contents","Table of Contents","Table of Contents","Table of Contents","Table of Contents","Table of Contents","Table of Contents","Table of Contents","Table of Contents","Table of Contents","Table of Contents","Table of Contents","Table of Contents","Table of Contents","Table of Contents","Table of Contents","Table of Contents","Table of Contents","Table of Contents","Table of Contents","Table of Contents","Table of Contents","Table of Contents","Table of Contents","Table of Contents","Table of Contents","Table of Contents","Table of Contents","Table of Contents","Table of Contents","Table of Contents","Table of Contents","Table of Contents","Table of Contents","Table of Contents","Table of Contents","Table of Contents","Table of Contents","Table of Contents","Table of Contents","Table of Contents","Table of Contents","Table of Contents","Table of Contents","Table of Contents","Table of Contents","Table of Contents","Table of Contents","Table of Contents","Table of Contents","Table of Contents","Table of Contents","Table of Contents","Table of Contents","Table of Contents","Table of Contents","Table of Contents","Table of Contents","Table of Contents","Table of Contents","Table of Contents","Table of Contents","Table of Contents","Table of Contents","Table of Contents","Table of Contents","Table of Contents","Table of Contents","Table of Contents","Table of Contents","Table of Contents","Table of Contents","Table of Contents","Table of Contents","Table of Contents","Table of Contents","Table of Contents","Table of Contents","Table of Contents","Table of Contents","Table of Contents","Table of Contents","Table of Contents","Table of Contents","Table of Contents","Table of Contents","Table of Contents","Table of Contents","Table of Contents","Table of Contents","Table of Contents","Table of Contents","Table of Contents","Table of Contents","Table of Contents","Table of Contents","Table of Contents","Table of Contents","Table of Contents","Table of Contents","Table of Contents","Table of Contents","Table of Contents","Table of Contents","Table of Contents","Table of Contents","Table of Contents","Table of Contents","Table of Contents","Table of Contents","Table of Contents","Table of Contents","Table of Contents","Table of Contents","Table of Contents","Table of Contents","Table of Contents","Table of Contents","Table of Contents","Table of Contents","Table of Contents","Table of Contents","Table of Contents","Table of Contents","Table of Contents","Table of Contents","Table of Contents","Table of Contents","Table of Contents","Table of Contents","Table of Contents","Table of Contents","Table of Contents","Table of Contents","Table of Contents","Table of Contents","Table of Contents","Table of Contents","Table of Contents","Table of Contents","Table of Contents","Table of Contents","Table of Contents","Table of Contents","Table of Contents","Table of Contents","Table of Contents","Table of Contents","Table of Contents","Table of Contents","Table of Contents","Table of Contents","Table of Contents","Table of Contents","Table of Contents","Table of Contents","Table of Contents","Table of Contents","Table of Contents","Table of Contents","Table of Contents","Table of Contents","Table of Contents","Table of Contents","Table of Contents","Table of Contents","Table of Contents","Table of Contents","Table of Contents","Table of Contents","Table of Contents","Table of Contents","Table of Contents","Table of Contents","Table of Contents","Table of Contents","Table of Contents","Table of Contents","Table of Contents","Table of Contents","Table of Contents","Table of Contents","Table of Contents","Table of Contents","Table of Contents","Table of Contents","Table of Contents","Table of Contents","Table of Contents","Table of Contents","Table of Contents","Table of Contents","Table of Contents","Table of Contents","Table of Contents","Table of Contents","Table of Contents","Table of Contents","Table of Contents","Table of Contents","Table of Contents","Table of Contents","Table of Contents","Table of Contents","Table of Contents","Table of Contents","Table of Contents","Table of Contents","Table of Contents","Table of Contents","Table of Contents","Table of Contents","Table of Contents","Table of Contents","Table of Contents","Table of Contents","Table of Contents","Table of Contents","Table of Contents","Table of Contents","Table of Contents","Table of Contents","Table of Contents","Table of Contents","Table of Contents","Table of Contents","Table of Contents","Table of Contents","Table of Contents","Table of Contents","Table of Contents","Table of Contents","Table of Contents","Table of Contents","Table of Contents","Table of Contents","Table of Contents","Table of Contents","Table of Contents","Table of Contents","Table of Contents","Table of Contents","Table of Contents","Table of Contents","Table of Contents","Table of Contents","Table of Contents","Table of Contents","Table of Contents","Table of Contents","Table of Contents","Table of Contents","Table of Contents","Table of Contents","Table of Contents","Table of Contents","Table of Contents","Table of Contents","Table of Contents","Table of Contents","Table of Contents","Table of Contents","Table of Contents","Table of Contents","Table of Contents","Table of Contents","Table of Contents","Table of Contents","Table of Contents","Table of Contents","Table of Contents","Table of Contents","Table of Contents","Table of Contents","Table of Contents","Table of Contents","Table of Contents","Table of Contents","Table of Contents","Table of Contents","Table of Contents","Table of Contents","Table of Contents","Table of Contents","Table of Contents","Table of Contents","Table of Contents","Table of Contents","Table of Contents","Table of Contents","Table of Contents","Table of Contents","Table of Contents","Table of Contents","Table of Contents","Table of Contents","Table of Contents","Table of Contents","Table of Contents","Table of Contents","Table of Contents","Table of Contents","Table of Contents","Table of Contents","Table of Contents","Table of Contents","Table of Contents","Table of Contents","Table of Contents","Table of Contents","Table of Contents","Table of Contents","Table of Contents","Table of Contents","Table of Contents","Table of Contents","Table of Contents","Table of Contents","Table of Contents","Table of Contents","Table of Contents","Table of Contents","Table of Contents","Table of Contents","Table of Contents","Table of Contents","Table of Contents","Table of Contents","Table of Contents","Table of Contents","Table of Contents","Table of Contents","Table of Contents","Table of Contents","Table of Contents","Table of Contents","Table of Contents","Table of Contents","Table of Contents","Table of Contents","Table of Contents","Table of Contents","Table of Contents","Table of Contents","Table of Contents","Table of Contents","Table of Contents","Table of Contents","Table of Contents","Table of Contents","Table of Contents","Table of Contents","Table of Contents","Table of Contents","Table of Contents","Table of Contents","Table of Contents","Table of Contents","Table of Contents","Table of Contents","Table of Contents","Table of Contents","Table of Contents","Table of Contents","Table of Contents","Table of Contents","Table of Contents","Table of Contents","Table of Contents","Table of Contents","Table of Contents","Table of Contents","Table of Contents","Table of Contents","Table of Contents","Table of Contents","Table of Contents","Table of Contents","Table of Contents","Table of Contents","Table of Contents","Table of Contents","Table of Contents","Table of Contents","Table of Contents","Table of Contents","Table of Contents","Table of Contents","Table of Contents","Table of Contents","Table of Contents","Table of Contents","Table of Contents","Table of Contents","Table of Contents","Table of Contents","Table of Contents","Table of Contents","Table of Contents","Table of Contents","Table of Contents","Table of Contents","Table of Contents","Table of Contents","Table of Contents","Table of Contents","Table of Contents","Table of Contents","Table of Contents","Table of Contents","Table of Contents","Table of Contents","Table of Contents","Table of Contents","Table of Contents","Table of Contents","Table of Contents","Table of Contents","Table of Contents","Table of Contents","Table of Contents","Table of Contents","Table of Contents","Table of Contents","Table of Contents","Table of Contents","Table of Contents","Table of Contents","Table of Contents","Table of Contents","Table of Contents","Table of Contents","Table of Contents","Table of Contents","Table of Contents","Table of Contents","Table of Contents","Table of Contents","Table of Contents","Table of Contents","Table of Contents","Table of Contents","Table of Contents","Table of Contents","Table of Contents","Table of Contents","Table of Contents","Table of Contents","Table of Contents","Table of Contents","Table of Contents","Table of Contents","Table of Contents","Table of Contents","Table of Contents","Table of Contents","Table of Contents","Table of Contents","Table of Contents","Table of Contents","Table of Contents","Table of Contents","Table of Contents","Table of Contents","Table of Contents","Table of Contents","Table of Contents","Table of Contents","Table of Contents","Table of Contents","Table of Contents","Table of Contents","Table of Contents","Table of Contents","Table of Contents","Table of Contents","Table of Contents","Table of Contents","Table of Contents","Table of Contents","Table of Contents","Table of Contents","Table of Contents","Table of Contents","Table of Contents","Table of Contents","Table of Contents","Table of Contents","Table of Contents","Table of Contents","Table of Contents","Table of Contents","Table of Contents","Table of Contents","Table of Contents","Table of Contents","Table of Contents","Table of Contents","Table of Contents","Table of Contents","Table of Contents","Table of Contents","Table of Contents","Table of Contents","Table of Contents","Table of Contents","Table of Contents","Table of Contents","Table of Contents","Table of Contents","Table of Contents","Table of Contents","Table of Contents","Table of Contents","Table of Contents","Table of Contents","Table of Contents","Table of Contents","Table of Contents","Table of Contents","Table of Contents","Table of Contents","Table of Contents","Table of Contents","Table of Contents","Table of Contents","Table of Contents","Table of Contents","Table of Contents","Table of Contents","Table of Contents","Table of Contents","Table of Contents","Table of Contents","Table of Contents","Table of Contents","Table of Contents","Table of Contents","Table of Contents","Table of Contents","Table of Contents","Table of Contents","Table of Contents","Table of Contents","Table of Contents","Table of Contents","Table of Contents","Table of Contents","Table of Contents","Table of Contents","Table of Contents","Table of Contents","Table of Contents","Table of Contents","Table of Contents","Table of Contents","Table of Contents","Table of Contents","Table of Contents","Table of Contents","Table of Contents","Table of Contents","Table of Contents","Table of Contents","Table of Contents","Table of Contents","Table of Contents","Table of Contents","Table of Contents","Table of Contents","Table of Contents","Table of Contents","Table of Contents","Table of Contents","Table of Contents","Table of Contents","Table of Contents","Table of Contents","Table of Contents","Table of Contents","Table of Contents","Table of Contents","Table of Contents","Table of Contents","Table of Contents","Table of Contents","Table of Contents","Table of Contents","Table of Contents","Table of Contents","Table of Contents","Table of Contents","Table of Contents","Table of Contents","Table of Contents","Table of Contents","Table of Contents","Table of Contents","Table of Contents","Table of Contents","Table of Contents","Table of Contents","Table of Contents","Table of Contents","Table of Contents","Table of Contents","Table of Contents","Table of Contents","Table of Contents","Table of Contents","Table of Contents","Table of Contents","Table of Contents","Table of Contents","Table of Contents","Table of Contents","Table of Contents","Table of Contents","Table of Contents","Table of Contents","Table of Contents","Table of Contents","Table of Contents","Table of Contents","Table of Contents","Table of Contents","Table of Contents","Table of Contents","Table of Contents","Table of Contents","Table of Contents","Table of Contents","Table of Contents","Table of Contents","Table of Contents","Table of Contents","Table of Contents","Table of Contents","Table of Contents","Table of Contents","Table of Contents","Table of Contents","Table of Contents","Table of Contents","Table of Contents","Table of Contents","Table of Contents","Table of Contents","Table of Contents","Table of Contents","Table of Contents","Table of Contents","Table of Contents","Table of Contents","Table of Contents","Table of Contents"]
["Christine Heyser, Mass Care Coordinator"]
["PA Department of Human Services"]
["717-461-0389"]
["cheyser@pa.gov "]
["More information about mass care in Pennsylvania: www.dhs.pa.gov/MassCare "]

{"sheet":"A-Target Capab. & Comm. Info","index":1,"n_rows":35,"n_cols":8,"rows_kept":35,"cut":false,"hidden":false,"merged":[[29,0,29,16383],[25,0,28,8],[0,0,0,8],[2,0,2,8],[16,0,16,8],[24,0,24,8],[21,2,21,8],[22,2,22,8]]}
["SECTION A: Target Capability & Community Information "]
[]
["TARGET CAPABILITY  (complete/highlight items that apply)"]
["A1","Meals to be served:","Breakfast","Lunch","Dinner","Snacks","Water ","Other (describe): "]
[null,"Check ALL that apply"]
[null,"Quantity/day:"]
["A2","Type of Feeding:","Mobile Feeding","Food Boxes","Meals for Shelter","On site serving","Drive thru pickup","Other (describe): "]
[null,"Check ALL that apply"]
[null,"Quantity/day:"]
["A3","Hot/Cold/Frozen/Shelf Stable:","Hot","Cold","Frozen","Shelf Stable"]
[null,"Check ALL that apply"]
[null,"Quantity/day:"]
["A4","Water:","Bottles","Gallons","Water Buffalo","Other (describe):"]
[" ","Check ALL that apply"]
[null,"Quantity/day:"]
[]
["COMMUNITY INFORMATION  (complete/highlight items that apply)"]
["A5","Special Dietary Needs:","Access and Functional Needs ","Older Adults","Infants ","Cultural Groups","Other (describe):"]
[null,"Demographics of Population to be Fed (can assume 20% of population has an access and/or functional need):"]
["A6","Community Conditions:","Power Outage","Transportation Issues","Water Outage ","Sewer Outage","Other (describe):"]
[]
["A7","Agency having jurisdiction over food safety:"]
["A8","Contact information for food safety agency:"]
[]
["NOTES/ADDITIONAL INFORMATION"]
[]
[]
[]
[]
["QUICK NAVIGATION "]
[null,"Continue to:"]
[null,"Section B: Site Information "]
[]
[null,"Return to:"]
[null,"Introduction"]

{"sheet":"B-Site Info","index":2,"n_rows":36,"n_cols":4,"rows_kept":36,"cut":false,"hidden":false,"merged":[[30,0,30,16383],[3,0,3,3],[11,1,11,3],[10,1,10,3],[9,1,9,3],[5,1,5,3],[7,1,7,3],[8,1,8,3],[13,1,13,3],[4,1,4,3],[12,1,12,3],[14,0,14,3],[0,0,0,3],[2,0,2,3],[25,0,25,9],[26,0,29,9]]}
["SECTION B: SIte Information"]
[]
["SITE CONSIDERATIONS"]
["Types of non church occupancies that typically work well (also see Field Kitchen Support): "]
[null,"50'x100' with space also needed to park approx eight 53' trailers (hard packed or paved site) and space for mobile feeding staging and/or drive thru feeding."]
[null,"Fairgrounds, Parks, Community Buildings not being used as shelters  "]
[null,"Campgrounds (Boy/Girl Scout or Religious)"]
[null,"General aviation airport or old military bases, including National Guard Armory buildings"]
[null,"Industrial parks where a business has closed "]
[null,"Sport/Entertainment Venue parking lots (understand that we cannot close operations for scheduled events so they may need to use an alternate parking/entry point) "]
[null,"Vacant Commercial Parking Lots (warehouse or shopping centers)"]
[null,"Schools are not typically good sites because they seek to go operational ASAP.  The exception to this is if the kitchen is set up on a school football stadium parking lot.  However, that spaced is used for student parking so that has to be factored in planning.  "]
[null,"Other open areas owned or operated by the jurisdiction having authority"]
[]
["SITE INFORMATION"]
[null,null,"SITE 1","SITE 2 (Add additional columns if needed)"]
["B1","Food Preparation Site Name:"]
["B2","Type of Occupancy:"]
["B3","Site Address:"]
["B4","County:"]
["B5","Site available for disaster feeding use through (date):"]
["B6","On Site Contact Person:"]
["B7","On Site Contact Person Cell:"]
["B8","On Site Contact Person Email:"]
[]
["NOTES/ADDITIONAL INFORMATION"]
[]
[]
[]
[]
["QUICK NAVIGATION "]
[null,"Continue to:"]
[null,"Section C: Partner Agencies and Interim Catering"]
[]
[null,"Return to:"]
[null,"Introduction"]

{"sheet":"C-Partner Agencies & Catering","index":3,"n_rows":41,"n_cols":6,"rows_kept":41,"cut":false,"hidden":false,"merged":[[19,3,19,4],[2,0,2,1],[4,3,4,4],[5,3,5,4],[6,3,6,4],[3,3,3,4],[20,3,20,4],[8,0,8,1],[15,0,15,1],[0,0,0,5],[35,0,35,16383],[31,0,34,5],[22,0,22,5],[30,0,30,5],[9,3,9,4],[10,3,10,4],[11,3,11,4],[12,3,12,4],[13,3,13,4],[16,3,16,4],[17,3,17,4],[18,3,18,4]]}
["SECTION C: Partner Agencies & Interim Catering "]
[]
["PARTNER AGENCIES "]
[null,null,"Supplier","Contact Info"]
["C1","Food Product Supplier(s):"]
[]
[]
[]
["PRODUCTION"]
[null,null,"Meal Producer 1","Meal Producer 2 (Add additional columns if needed)"]
["C2","Meal Producer(s):"]
["C3","ServSafe certified staff available? "]
["C4","Maximum Capacity Meals/Day:"]
["C5","Date/Time Operational or Expected Operational:"]
[]
["DISTROBUTION"]
[null,null,"Meal Distributor 1","Meal Distributor 2 (Add additional columns if needed)"]
["C6","Meal Distributor(s):"]
[]
[]
[]
[]
["INTERIM CATERING - contracted to provide meals prior to setup of primary feeding partners"]
[null,"Vendor Name/Contact","Specifications","Quantity ","Date/Time of Delivery","Notes"]
["C7"]
[]
[]
[]
[]
[]
["NOTES/ADDITIONAL INFORMATION"]
[]
[]
[]
[]
["QUICK NAVIGATION "]
[null,"Continue to:"]
[null,"Section D: Field Kitchen Site Support"]
[]
[null,"Return to:"]
[null,"Introduction"]

{"sheet":"D-Field Kitchen Site Support","index":4,"n_rows":33,"n_cols":11,"rows_kept":33,"cut":false,"hidden":false,"merged":[[0,0,0,10],[2,0,2,16383],[27,0,27,16383],[22,0,22,10],[23,0,26,10],[6,2,6,3],[5,2,5,3],[4,2,4,3]]}
["SECTION D: Field Kitchen Site Support"]
[]
["FIELD KITCHEN SITE SUPPORT"]
[null,"Equipment/Service/Supply","Specifications","Quantity Estimator","REQ.","HAVE","NEED","State Agency Asset Available","Supplier/Vendor","Date/Time of Delivery","Date/Time of Demobilization"]
[null,null,"*Given specifications/quantities are an estimate of required needs for 20,000 meals/day Southern Baptist Kitchen. Adjust for your Feeding operation as necessary. "]
["D1","Paved area ","Min 40-'x60' but 50'x100' preferred for kitchen itself. Space also needed to park approx eight 53' trailers (hard packed or paved site) and for ERV staging",null,null,null,{"$f":"E6-F6","v":0}]
["D2","Site access","Truck routes to access the site cannot utilize narrow streets or areas with low hanging limbs (need 13’ 6” clearance). Utilize Waze, Google Maps, and/or https://www.511pa.com/ to check for road closures.",null,null,null,{"$f":"E7-F7","v":0}]
["D3","Light Tower","4000 watt (self-contained)",null,null,null,0,"x"]
["D4","Tent","1600 sq ft pole tent with side curtains and floors, To cover food prep areas",null,null,null,0,"x"]
["D5","Portable HVAC","2 ton portable for tent",null,null,null,0]
["D6","Tent lighting","Strings","4 strings/tent",null,null,0]
["D7","Folding Chairs",null,"150 approx",null,null,0]
["D8","Folding Tables ","8'","60 approx",null,null,0]
["D9","Warehouse fans","52” ","4 minimum",null,null,0]
["D10","12/3 extension cords","100’","40 approx",null,null,0]
["D11","3 way splitters","Spider Boxes with cables","40 approx",null,null,0]
["D12","Plastic trash cans with lids","55 gallon ","20 minimum",null,null,0]
["D13","Security","required overnight if kitchen staff sleep off site or dependent on geography",null,null,null,0]
["D14","Fencing/Barriers","Also See H. Safety & Traffic Control",null,null,null,0]
["D16","Signage","Menu, Pick-Up Here, etc. ",null,null,null,0]
["D17","Water Buffalo","Cooking/cleaning; will need to be refilled ",null,null,null,0]
[]
["NOTES/ADDITIONAL INFORMATION"]
[]
[]
[]
[]
["QUICK NAVIGATION "]
[null,"Continue to:"]
[null,"Section E: Storage, Cooking & Power"]
[]
[null,"Return to:"]
[null,"Introduction"]

{"sheet":"E-Storage, Cooking & Power ","index":5,"n_rows":28,"n_cols":11,"rows_kept":28,"cut":false,"hidden":false,"merged":[[0,0,0,10],[2,0,2,10],[9,0,9,16383],[18,0,21,10]]}
["SECTION E: Storage, Cooking & Power Generation "]
[]
["STORAGE"]
[null,"Equipment/Service/Supply","Specifications","Quantity Estimator","REQ.","HAVE","NEED","State Agency Asset Available","Supplier/Vendor","Date/Time of Delivery","Date/Time of Demobilization"]
["E1","Refrigerated (reefer) Trucks",null,null,null,null,{"$f":"E5-F5","v":0}]
["E2","Dry Storage",null,null,null,null,{"$f":"E6-F6","v":0}]
["E3","Ice",null,null,null,null,0]
["E4","Other",null,null,null,null,{"$f":"E8-F8","v":0}]
[]
["COOKING/POWER GENERATION"]
[null,"Equipment/Service/Supply","Specifications","Quantity Estimator","REQ.","HAVE","NEED","State Agency Asset Available","Supplier/Vendor","Date/Time of Delivery","Date/Time of Demobilization"]
["E5","Propane Refueling","For 20,000 meals/day Southern Baptist kitchen, must be established within 2 days, Pharmacy/Kitchen trailers must have refueling established within 1 day","two 100 gal tanks for 20K meal/day kitchen",null,null,{"$f":"E12-F12","v":0}]
["E6","Generator","Generator size will be dependent on operational need.  HVAC units require at least a 10KVA generator/unit. Southern Baptist kitchens come wth 14 KVA generator.",null,null,null,{"$f":"E13-F13","v":0},"x"]
["E7","Diesel",null,null,null,null,0]
["E8","Diesel refueling ","Daily for refrigerated trailers (and for ERVs if services are down in the area)",null,null,null,0]
["E9","Generator servicing","Mobile or after hours servicing for generators",null,null,null,{"$f":"E16-F16","v":0}]
[]
["NOTES/ADDITIONAL INFORMATION"]
[]
[]
[]
[]
["QUICK NAVIGATION "]
[null,"Continue to:"]
[null,"Section F: Packaging, Moving & Sanitation"]
[]
[null,"Return to:"]
[null,"Introduction"]

{"sheet":"F-Packaging, Moving & Sanitat","index":6,"n_rows":51,"n_cols":11,"rows_kept":51,"cut":false,"hidden":false,"merged":[[0,0,0,10],[2,0,2,10],[20,0,20,10],[41,0,44,10],[36,2,36,3],[22,2,22,3]]}
["SECTION F: Packaging, Moving &Sanitation"]
[]
["PACKAGING/MOVING"]
[null,"Equipment/Service/Supply","Specifications","Quantity Estimator","REQ.","HAVE","NEED","State Agency Asset Available","Supplier/Vendor","Date/Time of Delivery","Date/Time of Demobilization"]
["F1","Clamshells",null,null,null,null,{"$f":"E5-F5","v":0}]
["F2","Other size/type food packaging",null,null,null,null,{"$f":"E6-F6","v":0}]
["F3","Utensils","Banquet packs include napkins and come prepackaged",null,null,null,{"$f":"E7-F7","v":0}]
["F4","Napkins",null,null,null,null,0]
["F5","Serving utensils",null,null,null,null,0]
["F6","Cooking utensils",null,null,null,null,0]
["F7","Cambros","Insulated food containers for transport ",null,null,null,0]
["F8","Cambro Itemrs ",null,null,null,null,0]
["F9","Palletizing Supplies",null,null,null,null,0]
["F10","Boxing",null,null,null,null,0]
["F11","Forklift","appropriate for site terrain",null,null,null,0]
["F12","Forklift Operator",null,null,null,null,0]
["F13","Pallet Jack","Manual",null,null,null,{"$f":"E17-F17","v":0}]
["F14","Hand truck",null,null,null,null,0]
["F15","Kitchen cart",null,null,null,null,0]
[]
["SANITATION"]
[null,"Equipment/Service/Supply","Specifications","Quantity Estimator","REQ.","HAVE","NEED","State Agency Asset Available","Supplier/Vendor","Date/Time of Delivery","Date/Time of Demobilization"]
[null,null,"*Given specifications/quantities are an estimate of required needs for 20,000 meals/day Southern Baptist Kitchen. Adjust for your Feeding operation as necessary. ",null,null,null,{"$f":"E23-F23","v":0}]
["F16","Hand Washing Stations",null,null,null,null,{"$f":"E24-F24","v":0}]
["F17","ADA Hand Washing Stations",null,null,null,null,{"$f":"E25-F25","v":0}]
["F18","Hand Sanitizer",null,null,null,null,0]
["F19","Masks, Gloves, Hairnets, Beardnets",null,null,null,null,{"$f":"E27-F27","v":0}]
["F20","ServSafe trained staff",null,null,null,null,0]
["F21","Dumpster","40 yard construction dumpster","20 yard capacity needed/day",null,null,0]
["F22","Dumpster Servicing","Daily",null,null,null,0]
["F23","Grease receptacle",null,null,null,null,0]
["F24","Portable Toilets","Dependent on site and sewer system conditions",6,null,null,0]
["F25","ADA Accessible Portable Toilets",null,2,null,null,0]
["F26","Portable toilet servicing ","Daily",null,null,null,0]
["F27","Hot water pressure washer",null,null,null,null,0]
["F28","Grey water receptacle",null,null,null,null,0]
["F29","RV wastewater dumping truck service","Every 2 days, or Grey water can be captured and pumped to a sewer access point like a sewer cover or a building cleanout opening as long as it is less than 150’ away.   ",null,null,null,{"$f":"E37-F37","v":0}]
["F30","Groundcover for outdoor cooking area",null,null,null,null,0]
["F31","Vehicle servicing","Mobile or after hours servicing for vehicles",null,null,null,0]
[]
["NOTES/ADDITIONAL INFORMATION"]
[]
[]
[]
[]
["QUICK NAVIGATION "]
[null,"Continue to:"]
[null,"Section G: Staffing & Staff Support"]
[]
[null,"Return to:"]
[null,"Introduction"]

{"sheet":"G-Staffing & Staff Support","index":7,"n_rows":24,"n_cols":11,"rows_kept":24,"cut":false,"hidden":false,"merged":[[0,0,0,11],[2,0,2,10],[14,0,17,10]]}
["SECTION G: Staffing & Staff Support"]
[]
["STAFFING/STAFF SUPPORT"]
[null,"Equipment/Service/Supply","Specifications","Quantity Estimator","REQ.","HAVE","NEED","State Agency Asset Available","Supplier/Vendor","Date/Time of Delivery","Date/Time of Demobilization"]
["G1","Volunteers",null,"40-50 per 20,000 meals/day Southern Baptists Kitchen, 20-35 per 10,000 meals/day Southern Baptists kitchen",null,null,{"$f":"E5-F5","v":0},"x"]
["G2","Staff housing","On site preferred, climate controlled, ideally in a different location that other staff as kitchen volunteers get up around 3:30 AM and go to bed by 9 PM.  If on site housing is not available the Baptist leadership will try to arrange housing at a nearby Baptist church.  ",null,null,null,{"$f":"E6-F6","v":0}]
["G3","Staff parking","Can be grass","2 volunteers/car",null,null,0]
["G4","Eating space","In a building or tent",null,null,null,{"$f":"E8-F8","v":0}]
["G5","Portable Toilets",null,"do not double count from sanitation section",null,null,0]
["G6","Cots",null,null,null,null,0,"x"]
["G7","Portable Showers","Baptist groups typically provide shower trailers for teams if needed.  (Fresh and grey water needs are increased significantly.)",null,null,null,0]
["G8","Port A Cool Fans",null,null,null,null,0]
[]
["NOTES/ADDITIONAL INFORMATION"]
[]
[]
[]
[]
["QUICK NAVIGATION "]
[null,"Continue to:"]
[null,"Section H: Safety, Traffic Control & Misc."]
[]
[null,"Return to:"]
[null,"Introduction"]

{"sheet":"H-Safety, Traffic Cntrl & Misc","index":8,"n_rows":32,"n_cols":11,"rows_kept":32,"cut":false,"hidden":false,"merged":[[0,0,0,11],[25,0,28,10],[2,0,2,10],[13,0,13,10]]}
["SECTION H: Safety, Traffic Control & Miscellaneous"]
[]
["SAFETY/TRAFFIC CONTROL"]
[null,"Equipment/Service/Supply","Specifications","Quantity Estimator","REQ.","HAVE","NEED","State Agency Asset Available","Supplier/Vendor","Date/Time of Delivery","Date/Time of Demobilization"]
["H1","Cones",null,null,null,null,{"$f":"E5-F5","v":0},"x"]
["H2","Signage",null,null,null,null,{"$f":"E6-F6","v":0},"x"]
["H3","Traffic control equipment",null,null,null,null,{"$f":"E7-F7","v":0}]
["H4","Traffic control personnel",null,null,null,null,0]
["H5","Radios",null,null,null,null,0,"x"]
["H6","AED",null,null,null,null,0,"x"]
["H7","First Aid kit",null,null,null,null,0,"x"]
["H8","Safety Officer",null,null,null,null,0]
[]
["MISCELLANEOUS "]
[null,"Equipment/Service/Supply","Specifications","Quantity Estimator","REQ.","HAVE","NEED","State Agency Asset Available","Supplier/Vendor","Date/Time of Delivery","Date/Time of Demobilization"]
["H9",null,null,null,null,null,{"$f":"E16-F16","v":0}]
["H10",null,null,null,null,null,{"$f":"E17-F17","v":0}]
["H11",null,null,null,null,null,0]
["H12",null,null,null,null,null,0]
["H13",null,null,null,null,null,{"$f":"E20-F20","v":0}]
["H14",null,null,null,null,null,{"$f":"E21-F21","v":0}]
["H15",null,null,null,null,null,{"$f":"E22-F22","v":0}]
["H16",null,null,null,null,null,0]
[]
["NOTES/ADDITIONAL INFORMATION"]
[]
[]
[]
[]
["QUICK NAVIGATION "]
[null,"Return to:"]
[null,"Introduction"]

{"sheet":"Reference","index":9,"n_rows":0,"n_cols":0,"rows_kept":0,"cut":false,"hidden":false,"merged":[]}